Publisher Label,Publisher URI,Body Name,Service Area Categorisation,Service Division Categorisation,Expenses Type,Date,Transaction Number,Amount,Capital or Revenue,Supplier Name,Merchant Category
Peterborough,http://opendatacommunities.org/id/unitary-authority/peterborough,Peterborough City Council,Adult Social Care,Split,Supplies and Services,03/08/2015 00:00,713463,1019.44,REVENUE,RESIDENTIAL CARE,Linkage Community Trust Limited
Peterborough,http://opendatacommunities.org/id/unitary-authority/peterborough,Peterborough City Council,Adult Social Care,Split,Supplies and Services,03/08/2015 00:00,716876,1019.44,REVENUE,RESIDENTIAL CARE,Linkage Community Trust Limited
Peterborough,http://opendatacommunities.org/id/unitary-authority/peterborough,Peterborough City Council,Adult Social Care,Split,Supplies and Services,03/08/2015 00:00,722301,1019.44,REVENUE,RESIDENTIAL CARE,Linkage Community Trust Limited
Peterborough,http://opendatacommunities.org/id/unitary-authority/peterborough,Peterborough City Council,Adult Social Care,Split,Supplies and Services,03/08/2015 00:00,731126,1019.44,REVENUE,RESIDENTIAL CARE,Linkage Community Trust Limited
Peterborough,http://opendatacommunities.org/id/unitary-authority/peterborough,Peterborough City Council,Children's & Education Services - Children's Social Care,Children Looked After,Employees,03/08/2015 00:00,731661,692.59,REVENUE,EXTERNAL TEMPORARY STAFF,Service Care Solutions Ltd
Peterborough,http://opendatacommunities.org/id/unitary-authority/peterborough,Peterborough City Council,Children's & Education Services - Children's Social Care,Other Children's & Families Services,Employees,03/08/2015 00:00,738110,2147.82,REVENUE,EXTERNAL TEMPORARY STAFF,Sanctuary Personnel Ltd
Peterborough,http://opendatacommunities.org/id/unitary-authority/peterborough,Peterborough City Council,Adult Social Care,Split,Supplies and Services,03/08/2015 00:00,740513,892.01,REVENUE,RESIDENTIAL CARE,Linkage Community Trust Limited
Peterborough,http://opendatacommunities.org/id/unitary-authority/peterborough,Peterborough City Council,Children's & Education Services - Children's Social Care,Children Looked After,Employees,03/08/2015 00:00,743213,550.15,REVENUE,EXTERNAL TEMPORARY STAFF,Blue Arrow Ltd
Peterborough,http://opendatacommunities.org/id/unitary-authority/peterborough,Peterborough City Council,Children's & Education Services - Children's Social Care,Children Looked After,Employees,03/08/2015 00:00,743353,550.3,REVENUE,EXTERNAL TEMPORARY STAFF,Service Care Solutions Ltd
Peterborough,http://opendatacommunities.org/id/unitary-authority/peterborough,Peterborough City Council,Adult Social Care,Older People,Supplies and Services,03/08/2015 00:00,747121,2569.5,REVENUE,HOME CARE,Cambridgeshirehomecare
Peterborough,http://opendatacommunities.org/id/unitary-authority/peterborough,Peterborough City Council,Children's & Education Services - Education,Other Education and Community Budget,Supplies and Services,03/08/2015 00:00,749412,540,REVENUE,ADVERTISING,Term Times
Peterborough,http://opendatacommunities.org/id/unitary-authority/peterborough,Peterborough City Council,Adult Social Care,Other Adult Services,Third Party Payments,03/08/2015 00:00,749475,74867.25,REVENUE,THIRD PARTY PAYMENTS - CONTRACT,CRI
Peterborough,http://opendatacommunities.org/id/unitary-authority/peterborough,Peterborough City Council,Public Health,Substance Misuse,Third Party Payments,03/08/2015 00:00,749477,85170.75,REVENUE,THIRD PARTY PAYMENTS - CONTRACT,CRI
Peterborough,http://opendatacommunities.org/id/unitary-authority/peterborough,Peterborough City Council,Public Health,Substance Misuse,Third Party Payments,03/08/2015 00:00,749478,227263.75,REVENUE,THIRD PARTY PAYMENTS - CONTRACT,CRI
Peterborough,http://opendatacommunities.org/id/unitary-authority/peterborough,Peterborough City Council,Public Health,Substance Misuse,Third Party Payments,03/08/2015 00:00,749479,72442.75,REVENUE,THIRD PARTY PAYMENTS - CONTRACT,CRI
Peterborough,http://opendatacommunities.org/id/unitary-authority/peterborough,Peterborough City Council,Support Services,Support Services,Supplies and Services,03/08/2015 00:00,750062,1249.5,REVENUE,EXTERNAL TEMPORARY STAFF,Go Management Ltd TA GoUmbrella
Peterborough,http://opendatacommunities.org/id/unitary-authority/peterborough,Peterborough City Council,Capital,Capital,Capital Pending Update to BS,03/08/2015 00:00,750098,18381.89,CAPITAL,BUILDING AND SITE WORKS,Honeywell Control Systems Ltd
Peterborough,http://opendatacommunities.org/id/unitary-authority/peterborough,Peterborough City Council,Capital,Capital,Capital Pending Update to BS,03/08/2015 00:00,750102,5518.28,CAPITAL,BUILDING AND SITE WORKS,Honeywell Control Systems Ltd
Peterborough,http://opendatacommunities.org/id/unitary-authority/peterborough,Peterborough City Council,Capital,Capital,Capital Pending Update to BS,03/08/2015 00:00,750106,5518.28,CAPITAL,BUILDING AND SITE WORKS,Honeywell Control Systems Ltd
Peterborough,http://opendatacommunities.org/id/unitary-authority/peterborough,Peterborough City Council,Children's & Education Services - Children's Social Care,Services to Young People,Supplies and Services,03/08/2015 00:00,750137,720,REVENUE,PURCHASED SOCIAL CARE SERVICES,NewStart Networks
Peterborough,http://opendatacommunities.org/id/unitary-authority/peterborough,Peterborough City Council,Capital,Capital,Capital Pending Update to BS,03/08/2015 00:00,750170,2550,CAPITAL,BUILDING AND SITE WORKS,Display Energy Solutions Ltd
Peterborough,http://opendatacommunities.org/id/unitary-authority/peterborough,Peterborough City Council,Adult Social Care,Adult Learning Disabilities,Supplies and Services,03/08/2015 00:00,750265,14723.92,REVENUE,RESIDENTIAL CARE,WESTWARD CARE HOMES LTD (Westward Healthcare)
Peterborough,http://opendatacommunities.org/id/unitary-authority/peterborough,Peterborough City Council,Adult Social Care,Adult Mental Health,Supplies and Services,03/08/2015 00:00,750309,1941.2,REVENUE,RESIDENTIAL CARE,GSE Residential Ltd
Peterborough,http://opendatacommunities.org/id/unitary-authority/peterborough,Peterborough City Council,Adult Social Care,Adult Mental Health,Supplies and Services,03/08/2015 00:00,750310,2265.54,REVENUE,RESIDENTIAL CARE,GSE Residential Ltd
Peterborough,http://opendatacommunities.org/id/unitary-authority/peterborough,Peterborough City Council,Adult Social Care,Adult Mental Health,Supplies and Services,03/08/2015 00:00,750316,1728.4,REVENUE,RESIDENTIAL CARE,GSE Residential Ltd
Peterborough,http://opendatacommunities.org/id/unitary-authority/peterborough,Peterborough City Council,Adult Social Care,Adult Mental Health,Supplies and Services,03/08/2015 00:00,750317,2345.17,REVENUE,RESIDENTIAL CARE,GSE Residential Ltd
Peterborough,http://opendatacommunities.org/id/unitary-authority/peterborough,Peterborough City Council,Adult Social Care,Adult Mental Health,Supplies and Services,03/08/2015 00:00,750318,2540.64,REVENUE,RESIDENTIAL CARE,GSE Residential Ltd
Peterborough,http://opendatacommunities.org/id/unitary-authority/peterborough,Peterborough City Council,Capital,Capital,Capital Pending Update to BS,03/08/2015 00:00,750338,8019.84,CAPITAL,CONSULTANTS FEES,Venue Catering Partner Ltd
Peterborough,http://opendatacommunities.org/id/unitary-authority/peterborough,Peterborough City Council,Support Services,Support Services,Supplies and Services,03/08/2015 00:00,750345,528,REVENUE,ADVERTISING,Term Times
Peterborough,http://opendatacommunities.org/id/unitary-authority/peterborough,Peterborough City Council,Children's & Education Services - Children's Social Care,Services to Young People,Supplies and Services,03/08/2015 00:00,750368,1285.18,REVENUE,PURCHASED SOCIAL CARE SERVICES,Wrixon Care Services
Peterborough,http://opendatacommunities.org/id/unitary-authority/peterborough,Peterborough City Council,Adult Social Care,Older People,Supplies and Services,03/08/2015 00:00,750387,2213.12,REVENUE,RESIDENTIAL CARE,BUPA Care Homes
Peterborough,http://opendatacommunities.org/id/unitary-authority/peterborough,Peterborough City Council,Children's & Education Services - Education,Secondary,Supplies and Services,03/08/2015 00:00,750413,26319.74,REVENUE,CONTRACT SERVICES,IIC by Education (P'boro) Ltd
Peterborough,http://opendatacommunities.org/id/unitary-authority/peterborough,Peterborough City Council,More than one Service Area Category,More than one Service Division,Balance Sheet,03/08/2015 00:00,750419,6537.11,Balance Sheet,INPUT VAT,IIC by Education (P'boro) Ltd
Peterborough,http://opendatacommunities.org/id/unitary-authority/peterborough,Peterborough City Council,Children's & Education Services - Education,Secondary,Employees,03/08/2015 00:00,750421,963.32,REVENUE,PENSIONS,IIC by Education (P'boro) Ltd
Peterborough,http://opendatacommunities.org/id/unitary-authority/peterborough,Peterborough City Council,Adult Social Care,Older People,Supplies and Services,03/08/2015 00:00,750432,1648.32,REVENUE,RESIDENTIAL CARE,BUPA Care Homes
Peterborough,http://opendatacommunities.org/id/unitary-authority/peterborough,Peterborough City Council,More than one Service Area Category,More than one Service Division,More than one Expenses Type,03/08/2015 00:00,750469,18054,REVENUE,PROFESSIONAL SERVICES,Cambridgeshire County Council
Peterborough,http://opendatacommunities.org/id/unitary-authority/peterborough,Peterborough City Council,Children's & Education Services - Children's Social Care,Children Looked After,Supplies and Services - Transfer Payments,03/08/2015 00:00,750480,1401.6,REVENUE,BOARDING OUT ALLOWANCES,Archway Care Ltd
Peterborough,http://opendatacommunities.org/id/unitary-authority/peterborough,Peterborough City Council,More than one Service Area Category,More than one Service Division,More than one Expenses Type,03/08/2015 00:00,750494,1920,REVENUE,TRAINING,In-Trac Training & Consultancy Services
Peterborough,http://opendatacommunities.org/id/unitary-authority/peterborough,Peterborough City Council,Deficit/(Surplus) on Trading Undertakings,Trading Account Surpluses & Deficits,Supplies and Services,03/08/2015 00:00,750575,1535.76,REVENUE,ITEMS FOR RESALE,Thomas Dudley Ltd
Peterborough,http://opendatacommunities.org/id/unitary-authority/peterborough,Peterborough City Council,Adult Social Care,Older People,Supplies and Services,03/08/2015 00:00,750594,2016.2,REVENUE,RESIDENTIAL CARE,BUPA Care Homes
Peterborough,http://opendatacommunities.org/id/unitary-authority/peterborough,Peterborough City Council,Adult Social Care,Older People,Supplies and Services,03/08/2015 00:00,750597,1610.8,REVENUE,RESIDENTIAL CARE,BUPA Care Homes
Peterborough,http://opendatacommunities.org/id/unitary-authority/peterborough,Peterborough City Council,Adult Social Care,Older People,Supplies and Services,03/08/2015 00:00,750600,2245.68,REVENUE,RESIDENTIAL CARE,BUPA Care Homes
Peterborough,http://opendatacommunities.org/id/unitary-authority/peterborough,Peterborough City Council,Adult Social Care,Older People,Supplies and Services,03/08/2015 00:00,750602,2512,REVENUE,RESIDENTIAL CARE,BUPA Care Homes
Peterborough,http://opendatacommunities.org/id/unitary-authority/peterborough,Peterborough City Council,Adult Social Care,Older People,Supplies and Services,03/08/2015 00:00,750605,4957.71,REVENUE,RESIDENTIAL CARE,THE TUDORS
Peterborough,http://opendatacommunities.org/id/unitary-authority/peterborough,Peterborough City Council,Adult Social Care,Adult Learning Disabilities,Supplies and Services,03/08/2015 00:00,750611,6400,REVENUE,RESIDENTIAL CARE,Community Care Solutions Ltd
Peterborough,http://opendatacommunities.org/id/unitary-authority/peterborough,Peterborough City Council,Highways and Transport Services,Street Lighting,Premises,03/08/2015 00:00,750651,62604.65,REVENUE,ELECTRICITY,EDF Energy Networks Ltd
Peterborough,http://opendatacommunities.org/id/unitary-authority/peterborough,Peterborough City Council,Adult Social Care,Adult Learning Disabilities,Supplies and Services,03/08/2015 00:00,750739,6831.92,REVENUE,RESIDENTIAL CARE,NEW BOUNDARIES COMMUNITY SERVICES LTD
Peterborough,http://opendatacommunities.org/id/unitary-authority/peterborough,Peterborough City Council,Adult Social Care,Older People,Transport,03/08/2015 00:00,750741,3909.13,REVENUE,LEASING CHARGES,Arnold Clark Finance Ltd
Peterborough,http://opendatacommunities.org/id/unitary-authority/peterborough,Peterborough City Council,Adult Social Care,Split,Supplies and Services,03/08/2015 00:00,750866,923.93,REVENUE,RESIDENTIAL CARE,Linkage Community Trust Limited
Peterborough,http://opendatacommunities.org/id/unitary-authority/peterborough,Peterborough City Council,Support Services,Support Services,Employees,03/08/2015 00:00,750883,832.5,REVENUE,EXTERNAL TEMPORARY STAFF,Sellick Partnership Group Limited
Peterborough,http://opendatacommunities.org/id/unitary-authority/peterborough,Peterborough City Council,More than one Service Area Category,More than one Service Division,Supplies and Services,03/08/2015 00:00,750986,1782.88,REVENUE,POSTAGE,Whistl London Ltd
Peterborough,http://opendatacommunities.org/id/unitary-authority/peterborough,Peterborough City Council,Housing Services,Private Sector Housing Renewal,Supplies and Services,03/08/2015 00:00,751102,1045.5,REVENUE,CONTRACTORS,Home and Garden Mann
Peterborough,http://opendatacommunities.org/id/unitary-authority/peterborough,Peterborough City Council,Adult Social Care,Adult Mental Health,Supplies and Services,03/08/2015 00:00,751130,2015,REVENUE,RESIDENTIAL CARE,Klair House Residential Care Homes
Peterborough,http://opendatacommunities.org/id/unitary-authority/peterborough,Peterborough City Council,Adult Social Care,Adult Learning Disabilities,Supplies and Services,03/08/2015 00:00,751170,1030.57,REVENUE,DAY CARE,Sense
Peterborough,http://opendatacommunities.org/id/unitary-authority/peterborough,Peterborough City Council,Adult Social Care,Older People,Supplies and Services,03/08/2015 00:00,752251,1506.01,REVENUE,HOME CARE,Sagecare
Peterborough,http://opendatacommunities.org/id/unitary-authority/peterborough,Peterborough City Council,Adult Social Care,Older People,Supplies and Services,03/08/2015 00:00,752256,1221.63,REVENUE,HOME CARE,Sagecare
Peterborough,http://opendatacommunities.org/id/unitary-authority/peterborough,Peterborough City Council,Adult Social Care,Older People,Supplies and Services,03/08/2015 00:00,752262,594.72,REVENUE,HOME CARE,Sagecare
Peterborough,http://opendatacommunities.org/id/unitary-authority/peterborough,Peterborough City Council,Adult Social Care,Older People,Supplies and Services,03/08/2015 00:00,752263,732.36,REVENUE,HOME CARE,Sagecare
Peterborough,http://opendatacommunities.org/id/unitary-authority/peterborough,Peterborough City Council,Adult Social Care,Older People,Supplies and Services,03/08/2015 00:00,752265,1809.7,REVENUE,HOME CARE,Sagecare
Peterborough,http://opendatacommunities.org/id/unitary-authority/peterborough,Peterborough City Council,Adult Social Care,Older People,Supplies and Services,03/08/2015 00:00,752268,712.92,REVENUE,HOME CARE,Sagecare
Peterborough,http://opendatacommunities.org/id/unitary-authority/peterborough,Peterborough City Council,Adult Social Care,Older People,Supplies and Services,03/08/2015 00:00,752269,509.73,REVENUE,HOME CARE,Sagecare
Peterborough,http://opendatacommunities.org/id/unitary-authority/peterborough,Peterborough City Council,Adult Social Care,Older People,Supplies and Services,03/08/2015 00:00,752271,522.96,REVENUE,HOME CARE,Sagecare
Peterborough,http://opendatacommunities.org/id/unitary-authority/peterborough,Peterborough City Council,Adult Social Care,Older People,Supplies and Services,03/08/2015 00:00,752273,519.18,REVENUE,HOME CARE,Sagecare
Peterborough,http://opendatacommunities.org/id/unitary-authority/peterborough,Peterborough City Council,Adult Social Care,Older People,Supplies and Services,03/08/2015 00:00,752274,643.43,REVENUE,HOME CARE,Sagecare
Peterborough,http://opendatacommunities.org/id/unitary-authority/peterborough,Peterborough City Council,Adult Social Care,Older People,Supplies and Services,03/08/2015 00:00,752279,584.63,REVENUE,HOME CARE,Sagecare
Peterborough,http://opendatacommunities.org/id/unitary-authority/peterborough,Peterborough City Council,Adult Social Care,Older People,Supplies and Services,03/08/2015 00:00,752281,678.48,REVENUE,HOME CARE,Sagecare
Peterborough,http://opendatacommunities.org/id/unitary-authority/peterborough,Peterborough City Council,Adult Social Care,Older People,Supplies and Services,03/08/2015 00:00,752287,1303.49,REVENUE,HOME CARE,Sagecare
Peterborough,http://opendatacommunities.org/id/unitary-authority/peterborough,Peterborough City Council,Adult Social Care,Older People,Supplies and Services,03/08/2015 00:00,752298,1636.8,REVENUE,HOME CARE,Sagecare
Peterborough,http://opendatacommunities.org/id/unitary-authority/peterborough,Peterborough City Council,Adult Social Care,Older People,Supplies and Services,03/08/2015 00:00,752304,2012.1,REVENUE,HOME CARE,Sagecare
Peterborough,http://opendatacommunities.org/id/unitary-authority/peterborough,Peterborough City Council,Adult Social Care,Older People,Supplies and Services,03/08/2015 00:00,752306,518.55,REVENUE,HOME CARE,Sagecare
Peterborough,http://opendatacommunities.org/id/unitary-authority/peterborough,Peterborough City Council,Adult Social Care,Older People,Supplies and Services,03/08/2015 00:00,752314,536.34,REVENUE,HOME CARE,Sagecare
Peterborough,http://opendatacommunities.org/id/unitary-authority/peterborough,Peterborough City Council,Children's & Education Services - Children's Social Care,Children Looked After,Employees,03/08/2015 00:00,752575,766.2,REVENUE,EXTERNAL TEMPORARY STAFF,Wrixon Care Services
Peterborough,http://opendatacommunities.org/id/unitary-authority/peterborough,Peterborough City Council,Children's & Education Services - Children's Social Care,Children Looked After,Employees,03/08/2015 00:00,752576,1090.2,REVENUE,EXTERNAL TEMPORARY STAFF,Wrixon Care Services
Peterborough,http://opendatacommunities.org/id/unitary-authority/peterborough,Peterborough City Council,Adult Social Care,Older People,Supplies and Services,03/08/2015 00:00,752577,3644,REVENUE,RESIDENTIAL CARE,Bandrum Nursing Home Ltd
Peterborough,http://opendatacommunities.org/id/unitary-authority/peterborough,Peterborough City Council,Children's & Education Services - Children's Social Care,Children Looked After,Employees,03/08/2015 00:00,752578,591,REVENUE,EXTERNAL TEMPORARY STAFF,Wrixon Care Services
Peterborough,http://opendatacommunities.org/id/unitary-authority/peterborough,Peterborough City Council,Children's & Education Services - Children's Social Care,Children Looked After,Employees,03/08/2015 00:00,752579,525,REVENUE,EXTERNAL TEMPORARY STAFF,Wrixon Care Services
Peterborough,http://opendatacommunities.org/id/unitary-authority/peterborough,Peterborough City Council,Adult Social Care,Adult Learning Disabilities,Supplies and Services,03/08/2015 00:00,752583,3576.32,REVENUE,RESIDENTIAL CARE,GLASALLT FAWR
Peterborough,http://opendatacommunities.org/id/unitary-authority/peterborough,Peterborough City Council,Adult Social Care,Adult Learning Disabilities,Supplies and Services,03/08/2015 00:00,752585,3576.32,REVENUE,RESIDENTIAL CARE,GLASALLT FAWR
Peterborough,http://opendatacommunities.org/id/unitary-authority/peterborough,Peterborough City Council,Adult Social Care,Adult Learning Disabilities,Supplies and Services,03/08/2015 00:00,752587,3576.32,REVENUE,RESIDENTIAL CARE,GLASALLT FAWR
Peterborough,http://opendatacommunities.org/id/unitary-authority/peterborough,Peterborough City Council,Adult Social Care,Adult Learning Disabilities,Supplies and Services,03/08/2015 00:00,752589,3576.32,REVENUE,RESIDENTIAL CARE,GLASALLT FAWR
Peterborough,http://opendatacommunities.org/id/unitary-authority/peterborough,Peterborough City Council,Adult Social Care,Social Care Activities,Third Party Payments,03/08/2015 00:00,752610,743.2,REVENUE,THIRD PARTY PAYMENTS - CONTRACT,Redacted Personal Data
Peterborough,http://opendatacommunities.org/id/unitary-authority/peterborough,Peterborough City Council,Adult Social Care,Older People,Supplies and Services,03/08/2015 00:00,752724,17759.33,REVENUE,RESIDENTIAL CARE,NHS Cambs & P'boro CCG (Clinical Commissioning Group)
Peterborough,http://opendatacommunities.org/id/unitary-authority/peterborough,Peterborough City Council,Adult Social Care,Adult Physical Disability & Sensory Impairment,Supplies and Services,03/08/2015 00:00,752740,2856.6,REVENUE,RESIDENTIAL CARE,LESTER HALL APARTMENTS LTD
Peterborough,http://opendatacommunities.org/id/unitary-authority/peterborough,Peterborough City Council,Other Operating Expenditure,More than one Service Division,Third Party Payments,03/08/2015 00:00,752992,984.56,REVENUE,PAYMENT TO CENTRAL GOVERNMENT,Dept for Communities & Local Government (DCLG)
Peterborough,http://opendatacommunities.org/id/unitary-authority/peterborough,Peterborough City Council,Adult Social Care,Older People,Supplies and Services,03/08/2015 00:00,753083,583.11,REVENUE,HOME CARE,Sagecare
Peterborough,http://opendatacommunities.org/id/unitary-authority/peterborough,Peterborough City Council,Adult Social Care,Older People,Supplies and Services,03/08/2015 00:00,753085,579.24,REVENUE,HOME CARE,Sagecare
Peterborough,http://opendatacommunities.org/id/unitary-authority/peterborough,Peterborough City Council,Adult Social Care,Older People,Supplies and Services,03/08/2015 00:00,753087,653.52,REVENUE,HOME CARE,Sagecare
Peterborough,http://opendatacommunities.org/id/unitary-authority/peterborough,Peterborough City Council,Adult Social Care,Older People,Supplies and Services,03/08/2015 00:00,753089,702.6,REVENUE,HOME CARE,Sagecare
Peterborough,http://opendatacommunities.org/id/unitary-authority/peterborough,Peterborough City Council,Adult Social Care,Adult Learning Disabilities,Supplies and Services,03/08/2015 00:00,753091,627.12,REVENUE,HOME CARE,Sagecare
Peterborough,http://opendatacommunities.org/id/unitary-authority/peterborough,Peterborough City Council,Adult Social Care,Older People,Supplies and Services,03/08/2015 00:00,753093,697.35,REVENUE,HOME CARE,Sagecare
Peterborough,http://opendatacommunities.org/id/unitary-authority/peterborough,Peterborough City Council,Adult Social Care,Older People,Supplies and Services,03/08/2015 00:00,753094,551.04,REVENUE,HOME CARE,Sagecare
Peterborough,http://opendatacommunities.org/id/unitary-authority/peterborough,Peterborough City Council,Adult Social Care,Older People,Supplies and Services,03/08/2015 00:00,753095,503.52,REVENUE,HOME CARE,Sagecare
Peterborough,http://opendatacommunities.org/id/unitary-authority/peterborough,Peterborough City Council,Adult Social Care,Older People,Supplies and Services,03/08/2015 00:00,753099,1803.12,REVENUE,HOME CARE,Sagecare
Peterborough,http://opendatacommunities.org/id/unitary-authority/peterborough,Peterborough City Council,Adult Social Care,Older People,Supplies and Services,03/08/2015 00:00,753103,790.65,REVENUE,HOME CARE,Sagecare
Peterborough,http://opendatacommunities.org/id/unitary-authority/peterborough,Peterborough City Council,Adult Social Care,Older People,Supplies and Services,03/08/2015 00:00,753104,668.39,REVENUE,HOME CARE,Sagecare
Peterborough,http://opendatacommunities.org/id/unitary-authority/peterborough,Peterborough City Council,Adult Social Care,Older People,Supplies and Services,03/08/2015 00:00,753113,1312.84,REVENUE,HOME CARE,Sagecare
Peterborough,http://opendatacommunities.org/id/unitary-authority/peterborough,Peterborough City Council,Adult Social Care,Older People,Supplies and Services,03/08/2015 00:00,753115,663.87,REVENUE,HOME CARE,Sagecare
Peterborough,http://opendatacommunities.org/id/unitary-authority/peterborough,Peterborough City Council,Adult Social Care,Older People,Supplies and Services,03/08/2015 00:00,753116,657.72,REVENUE,HOME CARE,Sagecare
Peterborough,http://opendatacommunities.org/id/unitary-authority/peterborough,Peterborough City Council,Adult Social Care,Older People,Supplies and Services,03/08/2015 00:00,753119,504.53,REVENUE,HOME CARE,Sagecare
Peterborough,http://opendatacommunities.org/id/unitary-authority/peterborough,Peterborough City Council,Adult Social Care,Older People,Supplies and Services,03/08/2015 00:00,753122,1016.16,REVENUE,HOME CARE,Sagecare
Peterborough,http://opendatacommunities.org/id/unitary-authority/peterborough,Peterborough City Council,Adult Social Care,Older People,Supplies and Services,03/08/2015 00:00,753124,665.64,REVENUE,HOME CARE,Sagecare
Peterborough,http://opendatacommunities.org/id/unitary-authority/peterborough,Peterborough City Council,Adult Social Care,Older People,Supplies and Services,03/08/2015 00:00,753126,573.36,REVENUE,HOME CARE,Sagecare
Peterborough,http://opendatacommunities.org/id/unitary-authority/peterborough,Peterborough City Council,Adult Social Care,Older People,Supplies and Services,03/08/2015 00:00,753129,536.16,REVENUE,HOME CARE,Sagecare
Peterborough,http://opendatacommunities.org/id/unitary-authority/peterborough,Peterborough City Council,Adult Social Care,Older People,Supplies and Services,03/08/2015 00:00,753130,722.85,REVENUE,HOME CARE,Sagecare
Peterborough,http://opendatacommunities.org/id/unitary-authority/peterborough,Peterborough City Council,Adult Social Care,Older People,Supplies and Services,03/08/2015 00:00,753133,585.48,REVENUE,HOME CARE,Sagecare
Peterborough,http://opendatacommunities.org/id/unitary-authority/peterborough,Peterborough City Council,Adult Social Care,Older People,Supplies and Services,03/08/2015 00:00,753134,755.17,REVENUE,HOME CARE,Sagecare
Peterborough,http://opendatacommunities.org/id/unitary-authority/peterborough,Peterborough City Council,Adult Social Care,Older People,Supplies and Services,03/08/2015 00:00,753138,653.46,REVENUE,HOME CARE,Sagecare
Peterborough,http://opendatacommunities.org/id/unitary-authority/peterborough,Peterborough City Council,Adult Social Care,Older People,Supplies and Services,03/08/2015 00:00,753140,1312.02,REVENUE,HOME CARE,Sagecare
Peterborough,http://opendatacommunities.org/id/unitary-authority/peterborough,Peterborough City Council,Adult Social Care,Older People,Supplies and Services,03/08/2015 00:00,753145,806.01,REVENUE,HOME CARE,Sagecare
Peterborough,http://opendatacommunities.org/id/unitary-authority/peterborough,Peterborough City Council,Adult Social Care,Older People,Supplies and Services,03/08/2015 00:00,753148,686.88,REVENUE,HOME CARE,Sagecare
Peterborough,http://opendatacommunities.org/id/unitary-authority/peterborough,Peterborough City Council,Adult Social Care,Older People,Supplies and Services,03/08/2015 00:00,753149,862.32,REVENUE,HOME CARE,Sagecare
Peterborough,http://opendatacommunities.org/id/unitary-authority/peterborough,Peterborough City Council,Adult Social Care,Older People,Supplies and Services,03/08/2015 00:00,753151,1073.38,REVENUE,HOME CARE,Sagecare
Peterborough,http://opendatacommunities.org/id/unitary-authority/peterborough,Peterborough City Council,Adult Social Care,Older People,Supplies and Services,03/08/2015 00:00,753152,735.07,REVENUE,HOME CARE,Sagecare
Peterborough,http://opendatacommunities.org/id/unitary-authority/peterborough,Peterborough City Council,Adult Social Care,Older People,Supplies and Services,03/08/2015 00:00,753155,1026.39,REVENUE,HOME CARE,Sagecare
Peterborough,http://opendatacommunities.org/id/unitary-authority/peterborough,Peterborough City Council,Adult Social Care,Older People,Supplies and Services,03/08/2015 00:00,753164,882,REVENUE,HOME CARE,Sagecare
Peterborough,http://opendatacommunities.org/id/unitary-authority/peterborough,Peterborough City Council,Adult Social Care,Older People,Supplies and Services,03/08/2015 00:00,753166,603.24,REVENUE,HOME CARE,Sagecare
Peterborough,http://opendatacommunities.org/id/unitary-authority/peterborough,Peterborough City Council,Adult Social Care,Adult Learning Disabilities,Supplies and Services,03/08/2015 00:00,753176,1113.3,REVENUE,HOME CARE,Sagecare
Peterborough,http://opendatacommunities.org/id/unitary-authority/peterborough,Peterborough City Council,Adult Social Care,Older People,Supplies and Services,03/08/2015 00:00,753183,583,REVENUE,HOME CARE,COMFORCARE SENIOR SERVICES
Peterborough,http://opendatacommunities.org/id/unitary-authority/peterborough,Peterborough City Council,Adult Social Care,Older People,Supplies and Services,03/08/2015 00:00,753184,754.82,REVENUE,HOME CARE,COMFORCARE SENIOR SERVICES
Peterborough,http://opendatacommunities.org/id/unitary-authority/peterborough,Peterborough City Council,Adult Social Care,Older People,Supplies and Services,03/08/2015 00:00,753186,665.94,REVENUE,HOME CARE,COMFORCARE SENIOR SERVICES
Peterborough,http://opendatacommunities.org/id/unitary-authority/peterborough,Peterborough City Council,Adult Social Care,Older People,Supplies and Services,03/08/2015 00:00,753187,631.4,REVENUE,HOME CARE,COMFORCARE SENIOR SERVICES
Peterborough,http://opendatacommunities.org/id/unitary-authority/peterborough,Peterborough City Council,Adult Social Care,Older People,Supplies and Services,03/08/2015 00:00,753188,527.78,REVENUE,HOME CARE,COMFORCARE SENIOR SERVICES
Peterborough,http://opendatacommunities.org/id/unitary-authority/peterborough,Peterborough City Council,Adult Social Care,Older People,Supplies and Services,03/08/2015 00:00,753189,749.32,REVENUE,HOME CARE,COMFORCARE SENIOR SERVICES
Peterborough,http://opendatacommunities.org/id/unitary-authority/peterborough,Peterborough City Council,Adult Social Care,Older People,Supplies and Services,03/08/2015 00:00,753190,1848.22,REVENUE,HOME CARE,COMFORCARE SENIOR SERVICES
Peterborough,http://opendatacommunities.org/id/unitary-authority/peterborough,Peterborough City Council,Adult Social Care,Older People,Supplies and Services,03/08/2015 00:00,753191,646.8,REVENUE,HOME CARE,COMFORCARE SENIOR SERVICES
Peterborough,http://opendatacommunities.org/id/unitary-authority/peterborough,Peterborough City Council,Adult Social Care,Older People,Supplies and Services,03/08/2015 00:00,753192,1310.76,REVENUE,HOME CARE,COMFORCARE SENIOR SERVICES
Peterborough,http://opendatacommunities.org/id/unitary-authority/peterborough,Peterborough City Council,Adult Social Care,Older People,Supplies and Services,03/08/2015 00:00,753194,514.8,REVENUE,HOME CARE,COMFORCARE SENIOR SERVICES
Peterborough,http://opendatacommunities.org/id/unitary-authority/peterborough,Peterborough City Council,Adult Social Care,Older People,Supplies and Services,03/08/2015 00:00,753195,946.68,REVENUE,HOME CARE,COMFORCARE SENIOR SERVICES
Peterborough,http://opendatacommunities.org/id/unitary-authority/peterborough,Peterborough City Council,Adult Social Care,Older People,Supplies and Services,03/08/2015 00:00,753197,632.5,REVENUE,HOME CARE,COMFORCARE SENIOR SERVICES
Peterborough,http://opendatacommunities.org/id/unitary-authority/peterborough,Peterborough City Council,Adult Social Care,Older People,Supplies and Services,03/08/2015 00:00,753198,560.51,REVENUE,HOME CARE,COMFORCARE SENIOR SERVICES
Peterborough,http://opendatacommunities.org/id/unitary-authority/peterborough,Peterborough City Council,Adult Social Care,Older People,Supplies and Services,03/08/2015 00:00,753204,2041.82,REVENUE,HOME CARE,COMFORCARE SENIOR SERVICES
Peterborough,http://opendatacommunities.org/id/unitary-authority/peterborough,Peterborough City Council,Adult Social Care,Older People,Supplies and Services,03/08/2015 00:00,753207,1620.96,REVENUE,HOME CARE,COMFORCARE SENIOR SERVICES
Peterborough,http://opendatacommunities.org/id/unitary-authority/peterborough,Peterborough City Council,Adult Social Care,Older People,Supplies and Services,03/08/2015 00:00,753209,813.56,REVENUE,HOME CARE,COMFORCARE SENIOR SERVICES
Peterborough,http://opendatacommunities.org/id/unitary-authority/peterborough,Peterborough City Council,Adult Social Care,Older People,Supplies and Services,03/08/2015 00:00,753210,607.42,REVENUE,HOME CARE,COMFORCARE SENIOR SERVICES
Peterborough,http://opendatacommunities.org/id/unitary-authority/peterborough,Peterborough City Council,Adult Social Care,Older People,Supplies and Services,03/08/2015 00:00,753211,1647.58,REVENUE,HOME CARE,COMFORCARE SENIOR SERVICES
Peterborough,http://opendatacommunities.org/id/unitary-authority/peterborough,Peterborough City Council,Adult Social Care,Older People,Supplies and Services,03/08/2015 00:00,753214,845.68,REVENUE,HOME CARE,COMFORCARE SENIOR SERVICES
Peterborough,http://opendatacommunities.org/id/unitary-authority/peterborough,Peterborough City Council,Adult Social Care,Older People,Supplies and Services,03/08/2015 00:00,753222,620.18,REVENUE,HOME CARE,COMFORCARE SENIOR SERVICES
Peterborough,http://opendatacommunities.org/id/unitary-authority/peterborough,Peterborough City Council,Adult Social Care,Older People,Supplies and Services,03/08/2015 00:00,753223,897.82,REVENUE,HOME CARE,COMFORCARE SENIOR SERVICES
Peterborough,http://opendatacommunities.org/id/unitary-authority/peterborough,Peterborough City Council,Adult Social Care,Adult Learning Disabilities,Supplies and Services,03/08/2015 00:00,753457,7457.64,REVENUE,RESIDENTIAL CARE,Community Care Solutions Ltd
Peterborough,http://opendatacommunities.org/id/unitary-authority/peterborough,Peterborough City Council,Adult Social Care,Older People,Supplies and Services,03/08/2015 00:00,753647,1632.53,REVENUE,RESIDENTIAL CARE,THE TUDORS
Peterborough,http://opendatacommunities.org/id/unitary-authority/peterborough,Peterborough City Council,Capital,Capital,Capital Pending Update to BS,03/08/2015 00:00,753683,213666,CAPITAL,BUILDING AND SITE WORKS,Garfield Builders Ltd
Peterborough,http://opendatacommunities.org/id/unitary-authority/peterborough,Peterborough City Council,Support Services,Support Services,Premises,03/08/2015 00:00,753690,1879.92,REVENUE,CLEANING,Beebys Ltd
Peterborough,http://opendatacommunities.org/id/unitary-authority/peterborough,Peterborough City Council,Children's & Education Services - Children's Social Care,Children Looked After,Employees,03/08/2015 00:00,753714,1068,REVENUE,EXTERNAL TEMPORARY STAFF,Wrixon Care Services
Peterborough,http://opendatacommunities.org/id/unitary-authority/peterborough,Peterborough City Council,Adult Social Care,Older People,Supplies and Services,03/08/2015 00:00,753833,517.11,REVENUE,HOME CARE,Sagecare
Peterborough,http://opendatacommunities.org/id/unitary-authority/peterborough,Peterborough City Council,Adult Social Care,Older People,Supplies and Services,03/08/2015 00:00,754301,2436,REVENUE,RESIDENTIAL CARE,Castleview Nursing Home
Peterborough,http://opendatacommunities.org/id/unitary-authority/peterborough,Peterborough City Council,More than one Service Area Category,More than one Service Division,More than one Expenses Type,03/08/2015 00:00,754404,3417.66,"Mixture of Capital, Revenue and/or Balance Sheet",GRANT PAYMENT,InBuild
Peterborough,http://opendatacommunities.org/id/unitary-authority/peterborough,Peterborough City Council,More than one Service Area Category,More than one Service Division,More than one Expenses Type,03/08/2015 00:00,754407,4619.64,"Mixture of Capital, Revenue and/or Balance Sheet",GRANT PAYMENT,InBuild
Peterborough,http://opendatacommunities.org/id/unitary-authority/peterborough,Peterborough City Council,More than one Service Area Category,More than one Service Division,More than one Expenses Type,03/08/2015 00:00,754415,3555.04,"Mixture of Capital, Revenue and/or Balance Sheet",GRANT PAYMENT,InBuild
Peterborough,http://opendatacommunities.org/id/unitary-authority/peterborough,Peterborough City Council,More than one Service Area Category,More than one Service Division,More than one Expenses Type,03/08/2015 00:00,754419,4251.92,"Mixture of Capital, Revenue and/or Balance Sheet",GRANT PAYMENT,InBuild
Peterborough,http://opendatacommunities.org/id/unitary-authority/peterborough,Peterborough City Council,More than one Service Area Category,More than one Service Division,More than one Expenses Type,03/08/2015 00:00,754422,523.19,"Mixture of Capital, Revenue and/or Balance Sheet",GRANT PAYMENT,InBuild
Peterborough,http://opendatacommunities.org/id/unitary-authority/peterborough,Peterborough City Council,More than one Service Area Category,More than one Service Division,More than one Expenses Type,03/08/2015 00:00,754425,3528.54,"Mixture of Capital, Revenue and/or Balance Sheet",GRANT PAYMENT,InBuild
Peterborough,http://opendatacommunities.org/id/unitary-authority/peterborough,Peterborough City Council,More than one Service Area Category,More than one Service Division,More than one Expenses Type,03/08/2015 00:00,754440,2710,"Mixture of Capital, Revenue and/or Balance Sheet",GRANT PAYMENT,Heating & Plumbing Services Wisbech Ltd
Peterborough,http://opendatacommunities.org/id/unitary-authority/peterborough,Peterborough City Council,Capital,Capital,Capital Pending Update to BS,03/08/2015 00:00,754540,4800,CAPITAL,BUILDING AND SITE WORKS,Enterprise Managed Services Limited
Peterborough,http://opendatacommunities.org/id/unitary-authority/peterborough,Peterborough City Council,Capital,Capital,Capital Pending Update to BS,03/08/2015 00:00,754547,4732.8,CAPITAL,BUILDING AND SITE WORKS,Enterprise Managed Services Limited
Peterborough,http://opendatacommunities.org/id/unitary-authority/peterborough,Peterborough City Council,Capital,Capital,Capital Pending Update to BS,03/08/2015 00:00,754549,6300,CAPITAL,PROFESSIONAL FEES,Enterprise Managed Services Limited
Peterborough,http://opendatacommunities.org/id/unitary-authority/peterborough,Peterborough City Council,Capital,Capital,Capital Pending Update to BS,03/08/2015 00:00,754554,7734.5,CAPITAL,PROPERTY SERVICES FEES,Enterprise Managed Services Limited
Peterborough,http://opendatacommunities.org/id/unitary-authority/peterborough,Peterborough City Council,Capital,Capital,Capital Pending Update to BS,03/08/2015 00:00,754555,5280,CAPITAL,OTHER INTERNAL FEES,Enterprise Managed Services Limited
Peterborough,http://opendatacommunities.org/id/unitary-authority/peterborough,Peterborough City Council,Capital,Capital,Capital Pending Update to BS,03/08/2015 00:00,754558,5520,CAPITAL,BUILDING AND SITE WORKS,Enterprise Managed Services Limited
Peterborough,http://opendatacommunities.org/id/unitary-authority/peterborough,Peterborough City Council,Capital,Capital,Capital Pending Update to BS,03/08/2015 00:00,754559,7404,CAPITAL,PROPERTY SERVICES FEES,Enterprise Managed Services Limited
Peterborough,http://opendatacommunities.org/id/unitary-authority/peterborough,Peterborough City Council,Capital,Capital,Capital Pending Update to BS,03/08/2015 00:00,754578,1765.21,CAPITAL,PROPERTY SERVICES FEES,Enterprise Managed Services Limited
Peterborough,http://opendatacommunities.org/id/unitary-authority/peterborough,Peterborough City Council,Children's & Education Services - Education,Other Education and Community Budget,Premises,03/08/2015 00:00,754582,4680,REVENUE,MAINTENANCE,Enterprise Managed Services Limited
Peterborough,http://opendatacommunities.org/id/unitary-authority/peterborough,Peterborough City Council,Capital,Capital,Capital Pending Update to BS,03/08/2015 00:00,754594,846,CAPITAL,PROPERTY SERVICES FEES,Enterprise Managed Services Limited
Peterborough,http://opendatacommunities.org/id/unitary-authority/peterborough,Peterborough City Council,Capital,Capital,Capital Pending Update to BS,03/08/2015 00:00,754595,1156.74,CAPITAL,BUILDING AND SITE WORKS,Enterprise Managed Services Limited
Peterborough,http://opendatacommunities.org/id/unitary-authority/peterborough,Peterborough City Council,Children's & Education Services - Education,Other Education and Community Budget,Premises,03/08/2015 00:00,754626,1068,REVENUE,MAINTENANCE,Enterprise Managed Services Limited
Peterborough,http://opendatacommunities.org/id/unitary-authority/peterborough,Peterborough City Council,Adult Social Care,Assistive Equipment and Technology,Supplies and Services,03/08/2015 00:00,754732,83907,REVENUE,OCCUPATIONAL THERAPY EQUIPMENT,NRS Healthcare
Peterborough,http://opendatacommunities.org/id/unitary-authority/peterborough,Peterborough City Council,Capital,Capital,Capital Pending Update to BS,03/08/2015 00:00,755697,1900103.62,CAPITAL,INFRASTRUCTURE,Balfour Beatty Civil Engineering
Peterborough,http://opendatacommunities.org/id/unitary-authority/peterborough,Peterborough City Council,Children's & Education Services - Children's Social Care,Family Support Services,Supplies and Services,03/08/2015 00:00,755720,11638.5,REVENUE,PURCHASED SOCIAL CARE SERVICES,Vivacity Culture and Leisure
Peterborough,http://opendatacommunities.org/id/unitary-authority/peterborough,Peterborough City Council,Adult Social Care,Adult Mental Health,Supplies and Services,03/08/2015 00:00,755750,8225.17,REVENUE,HOME CARE,Cambridgeshirehomecare
Peterborough,http://opendatacommunities.org/id/unitary-authority/peterborough,Peterborough City Council,Adult Social Care,Older People,Supplies and Services,03/08/2015 00:00,755772,1821.88,REVENUE,RESIDENTIAL CARE,FIELD HOUSE (EYE) LTD
Peterborough,http://opendatacommunities.org/id/unitary-authority/peterborough,Peterborough City Council,Adult Social Care,Older People,Supplies and Services,03/08/2015 00:00,755773,1120.16,REVENUE,RESIDENTIAL CARE,FIELD HOUSE (EYE) LTD
Peterborough,http://opendatacommunities.org/id/unitary-authority/peterborough,Peterborough City Council,Adult Social Care,Older People,Supplies and Services,03/08/2015 00:00,755774,1322,REVENUE,RESIDENTIAL CARE,FIELD HOUSE (EYE) LTD
Peterborough,http://opendatacommunities.org/id/unitary-authority/peterborough,Peterborough City Council,Adult Social Care,Older People,Supplies and Services,03/08/2015 00:00,755776,1093,REVENUE,RESIDENTIAL CARE,FIELD HOUSE (EYE) LTD
Peterborough,http://opendatacommunities.org/id/unitary-authority/peterborough,Peterborough City Council,Adult Social Care,Older People,Supplies and Services,03/08/2015 00:00,755777,1322,REVENUE,RESIDENTIAL CARE,FIELD HOUSE (EYE) LTD
Peterborough,http://opendatacommunities.org/id/unitary-authority/peterborough,Peterborough City Council,Adult Social Care,Older People,Supplies and Services,03/08/2015 00:00,755778,1093,REVENUE,RESIDENTIAL CARE,FIELD HOUSE (EYE) LTD
Peterborough,http://opendatacommunities.org/id/unitary-authority/peterborough,Peterborough City Council,Adult Social Care,Older People,Supplies and Services,03/08/2015 00:00,755781,1821.88,REVENUE,RESIDENTIAL CARE,FIELD HOUSE (EYE) LTD
Peterborough,http://opendatacommunities.org/id/unitary-authority/peterborough,Peterborough City Council,Adult Social Care,Older People,Supplies and Services,03/08/2015 00:00,755783,1382.83,REVENUE,RESIDENTIAL CARE,FIELD HOUSE (EYE) LTD
Peterborough,http://opendatacommunities.org/id/unitary-authority/peterborough,Peterborough City Council,Adult Social Care,Older People,Supplies and Services,03/08/2015 00:00,755785,672.9,REVENUE,RESIDENTIAL CARE,FIELD HOUSE (EYE) LTD
Peterborough,http://opendatacommunities.org/id/unitary-authority/peterborough,Peterborough City Council,Adult Social Care,Older People,Supplies and Services,03/08/2015 00:00,755787,996.92,REVENUE,RESIDENTIAL CARE,FIELD HOUSE (EYE) LTD
Peterborough,http://opendatacommunities.org/id/unitary-authority/peterborough,Peterborough City Council,Adult Social Care,Older People,Supplies and Services,03/08/2015 00:00,755788,1406.96,REVENUE,RESIDENTIAL CARE,FIELD HOUSE (EYE) LTD
Peterborough,http://opendatacommunities.org/id/unitary-authority/peterborough,Peterborough City Council,Adult Social Care,Older People,Supplies and Services,03/08/2015 00:00,755792,1674.52,REVENUE,RESIDENTIAL CARE,Ashmere
Peterborough,http://opendatacommunities.org/id/unitary-authority/peterborough,Peterborough City Council,Adult Social Care,Older People,Supplies and Services,03/08/2015 00:00,755795,910.94,REVENUE,RESIDENTIAL CARE,FIELD HOUSE (EYE) LTD
Peterborough,http://opendatacommunities.org/id/unitary-authority/peterborough,Peterborough City Council,Adult Social Care,Older People,Supplies and Services,03/08/2015 00:00,755799,1545.12,REVENUE,RESIDENTIAL CARE,FIELD HOUSE (EYE) LTD
Peterborough,http://opendatacommunities.org/id/unitary-authority/peterborough,Peterborough City Council,Adult Social Care,Older People,Supplies and Services,03/08/2015 00:00,755801,1672.72,REVENUE,RESIDENTIAL CARE,FIELD HOUSE (EYE) LTD
Peterborough,http://opendatacommunities.org/id/unitary-authority/peterborough,Peterborough City Council,Adult Social Care,Older People,Supplies and Services,03/08/2015 00:00,755803,1545.12,REVENUE,RESIDENTIAL CARE,FIELD HOUSE (EYE) LTD
Peterborough,http://opendatacommunities.org/id/unitary-authority/peterborough,Peterborough City Council,Adult Social Care,Older People,Supplies and Services,03/08/2015 00:00,755805,1302.56,REVENUE,RESIDENTIAL CARE,FIELD HOUSE (EYE) LTD
Peterborough,http://opendatacommunities.org/id/unitary-authority/peterborough,Peterborough City Council,Adult Social Care,Older People,Supplies and Services,03/08/2015 00:00,755806,672.2,REVENUE,RESIDENTIAL CARE,FIELD HOUSE (EYE) LTD
Peterborough,http://opendatacommunities.org/id/unitary-authority/peterborough,Peterborough City Council,Adult Social Care,Older People,Supplies and Services,03/08/2015 00:00,755840,1503.1,REVENUE,RESIDENTIAL CARE,PJ Care Ltd
Peterborough,http://opendatacommunities.org/id/unitary-authority/peterborough,Peterborough City Council,Adult Social Care,Older People,Supplies and Services,03/08/2015 00:00,755862,4291.28,REVENUE,RESIDENTIAL CARE,BUPA Care Homes
Peterborough,http://opendatacommunities.org/id/unitary-authority/peterborough,Peterborough City Council,Adult Social Care,Older People,Supplies and Services,03/08/2015 00:00,755865,1556.12,REVENUE,RESIDENTIAL CARE,BUPA Care Homes
Peterborough,http://opendatacommunities.org/id/unitary-authority/peterborough,Peterborough City Council,Adult Social Care,Older People,Supplies and Services,03/08/2015 00:00,755866,1555.32,REVENUE,RESIDENTIAL CARE,BUPA Care Homes
Peterborough,http://opendatacommunities.org/id/unitary-authority/peterborough,Peterborough City Council,Adult Social Care,Older People,Supplies and Services,03/08/2015 00:00,755871,1555.32,REVENUE,RESIDENTIAL CARE,BUPA Care Homes
Peterborough,http://opendatacommunities.org/id/unitary-authority/peterborough,Peterborough City Council,Housing Services,Private Sector Housing Renewal,Supplies and Services,03/08/2015 00:00,755880,1326,REVENUE,SPECIAL PROJECTS,Heating & Plumbing Services Wisbech Ltd
Peterborough,http://opendatacommunities.org/id/unitary-authority/peterborough,Peterborough City Council,Children's & Education Services - Children's Social Care,Other Children's & Families Services,Employees,03/08/2015 00:00,755883,1620,REVENUE,EXTERNAL TEMPORARY STAFF,Medicare First
Peterborough,http://opendatacommunities.org/id/unitary-authority/peterborough,Peterborough City Council,Children's & Education Services - Children's Social Care,Other Children's & Families Services,Employees,03/08/2015 00:00,755884,1647.84,REVENUE,EXTERNAL TEMPORARY STAFF,Medicare First
Peterborough,http://opendatacommunities.org/id/unitary-authority/peterborough,Peterborough City Council,Children's & Education Services - Children's Social Care,Other Children's & Families Services,Employees,03/08/2015 00:00,755885,1686.72,REVENUE,EXTERNAL TEMPORARY STAFF,Medicare First
Peterborough,http://opendatacommunities.org/id/unitary-authority/peterborough,Peterborough City Council,Children's & Education Services - Children's Social Care,Other Children's & Families Services,Employees,03/08/2015 00:00,755886,1620,REVENUE,EXTERNAL TEMPORARY STAFF,Medicare First
Peterborough,http://opendatacommunities.org/id/unitary-authority/peterborough,Peterborough City Council,Children's & Education Services - Children's Social Care,Other Children's & Families Services,Employees,03/08/2015 00:00,755887,1680,REVENUE,EXTERNAL TEMPORARY STAFF,Medicare First
Peterborough,http://opendatacommunities.org/id/unitary-authority/peterborough,Peterborough City Council,Housing Services,Private Sector Housing Renewal,Supplies and Services,03/08/2015 00:00,755897,714,REVENUE,CONTRACTORS,Rawheat Heating & Plumbing Eng.
Peterborough,http://opendatacommunities.org/id/unitary-authority/peterborough,Peterborough City Council,Adult Social Care,Older People,Supplies and Services,03/08/2015 00:00,755937,17057.87,REVENUE,HOME CARE,Independence Matters
Peterborough,http://opendatacommunities.org/id/unitary-authority/peterborough,Peterborough City Council,Children's & Education Services - Education,Other Education and Community Budget,Transport,03/08/2015 00:00,755938,763.2,REVENUE,HIRED TRANSPORT,A2B Euro Cars
Peterborough,http://opendatacommunities.org/id/unitary-authority/peterborough,Peterborough City Council,Children's & Education Services - Education,Other Education and Community Budget,Transport,03/08/2015 00:00,755939,1665,REVENUE,HIRED TRANSPORT,A2B Euro Cars
Peterborough,http://opendatacommunities.org/id/unitary-authority/peterborough,Peterborough City Council,More than one Service Area Category,More than one Service Division,Transport,03/08/2015 00:00,755940,1368,REVENUE,HIRED TRANSPORT,A2B Euro Cars
Peterborough,http://opendatacommunities.org/id/unitary-authority/peterborough,Peterborough City Council,Children's & Education Services - Education,Other Education and Community Budget,Transport,03/08/2015 00:00,755941,1914.84,REVENUE,HIRED TRANSPORT,A2B Euro Cars
Peterborough,http://opendatacommunities.org/id/unitary-authority/peterborough,Peterborough City Council,More than one Service Area Category,More than one Service Division,Transport,03/08/2015 00:00,755942,903.6,REVENUE,HIRED TRANSPORT,A2B Euro Cars
Peterborough,http://opendatacommunities.org/id/unitary-authority/peterborough,Peterborough City Council,More than one Service Area Category,More than one Service Division,Transport,03/08/2015 00:00,755943,1340.4,REVENUE,HIRED TRANSPORT,A2B Euro Cars
Peterborough,http://opendatacommunities.org/id/unitary-authority/peterborough,Peterborough City Council,Children's & Education Services - Education,Other Education and Community Budget,Transport,03/08/2015 00:00,755944,1053.6,REVENUE,HIRED TRANSPORT,A2B Euro Cars
Peterborough,http://opendatacommunities.org/id/unitary-authority/peterborough,Peterborough City Council,Children's & Education Services - Education,Other Education and Community Budget,Transport,03/08/2015 00:00,755945,1329.12,REVENUE,HIRED TRANSPORT,A2B Euro Cars
Peterborough,http://opendatacommunities.org/id/unitary-authority/peterborough,Peterborough City Council,Children's & Education Services - Education,Other Education and Community Budget,Transport,03/08/2015 00:00,755946,837.6,REVENUE,HIRED TRANSPORT,A2B Euro Cars
Peterborough,http://opendatacommunities.org/id/unitary-authority/peterborough,Peterborough City Council,Children's & Education Services - Education,Other Education and Community Budget,Transport,03/08/2015 00:00,755947,866.4,REVENUE,HIRED TRANSPORT,A2B Euro Cars
Peterborough,http://opendatacommunities.org/id/unitary-authority/peterborough,Peterborough City Council,Children's & Education Services - Education,Other Education and Community Budget,Transport,03/08/2015 00:00,755949,2627.4,REVENUE,HIRED TRANSPORT,A2B Euro Cars
Peterborough,http://opendatacommunities.org/id/unitary-authority/peterborough,Peterborough City Council,Children's & Education Services - Education,Other Education and Community Budget,Transport,03/08/2015 00:00,755950,1936.2,REVENUE,HIRED TRANSPORT,A2B Euro Cars
Peterborough,http://opendatacommunities.org/id/unitary-authority/peterborough,Peterborough City Council,Children's & Education Services - Education,Other Education and Community Budget,Transport,03/08/2015 00:00,755951,2290.2,REVENUE,HIRED TRANSPORT,A2B Euro Cars
Peterborough,http://opendatacommunities.org/id/unitary-authority/peterborough,Peterborough City Council,Children's & Education Services - Education,Other Education and Community Budget,Transport,03/08/2015 00:00,755952,3222,REVENUE,HIRED TRANSPORT,A2B Euro Cars
Peterborough,http://opendatacommunities.org/id/unitary-authority/peterborough,Peterborough City Council,Children's & Education Services - Education,Other Education and Community Budget,Transport,03/08/2015 00:00,755953,510,REVENUE,HIRED TRANSPORT,A2B Euro Cars
Peterborough,http://opendatacommunities.org/id/unitary-authority/peterborough,Peterborough City Council,Children's & Education Services - Education,Other Education and Community Budget,Transport,03/08/2015 00:00,755954,612,REVENUE,HIRED TRANSPORT,A2B Euro Cars
Peterborough,http://opendatacommunities.org/id/unitary-authority/peterborough,Peterborough City Council,Children's & Education Services - Education,Other Education and Community Budget,Transport,03/08/2015 00:00,755956,1437.36,REVENUE,HIRED TRANSPORT,Peterborough Cars
Peterborough,http://opendatacommunities.org/id/unitary-authority/peterborough,Peterborough City Council,Children's & Education Services - Education,Other Education and Community Budget,Transport,03/08/2015 00:00,755957,1576.58,REVENUE,HIRED TRANSPORT,Peterborough Cars
Peterborough,http://opendatacommunities.org/id/unitary-authority/peterborough,Peterborough City Council,Children's & Education Services - Education,Other Education and Community Budget,Transport,03/08/2015 00:00,755958,1203.59,REVENUE,HIRED TRANSPORT,Peterborough Cars
Peterborough,http://opendatacommunities.org/id/unitary-authority/peterborough,Peterborough City Council,Children's & Education Services - Education,Other Education and Community Budget,Transport,03/08/2015 00:00,755959,820.8,REVENUE,HIRED TRANSPORT,Peterborough Cars
Peterborough,http://opendatacommunities.org/id/unitary-authority/peterborough,Peterborough City Council,Children's & Education Services - Education,Other Education and Community Budget,Transport,03/08/2015 00:00,755960,648,REVENUE,HIRED TRANSPORT,Peterborough Cars
Peterborough,http://opendatacommunities.org/id/unitary-authority/peterborough,Peterborough City Council,Children's & Education Services - Education,Other Education and Community Budget,Transport,03/08/2015 00:00,755961,950.4,REVENUE,HIRED TRANSPORT,Peterborough Cars
Peterborough,http://opendatacommunities.org/id/unitary-authority/peterborough,Peterborough City Council,Children's & Education Services - Education,Other Education and Community Budget,Transport,03/08/2015 00:00,755962,1610.14,REVENUE,HIRED TRANSPORT,Peterborough Cars
Peterborough,http://opendatacommunities.org/id/unitary-authority/peterborough,Peterborough City Council,More than one Service Area Category,More than one Service Division,More than one Expenses Type,03/08/2015 00:00,755981,7785,"Mixture of Capital, Revenue and/or Balance Sheet",GRANT PAYMENT,Pollock Lifts
Peterborough,http://opendatacommunities.org/id/unitary-authority/peterborough,Peterborough City Council,Adult Social Care,Older People,Supplies and Services,05/08/2015 00:00,707597,4318.4,REVENUE,HOME CARE,Voyage
Peterborough,http://opendatacommunities.org/id/unitary-authority/peterborough,Peterborough City Council,Adult Social Care,Older People,Supplies and Services,05/08/2015 00:00,713826,4318.4,REVENUE,HOME CARE,Voyage
Peterborough,http://opendatacommunities.org/id/unitary-authority/peterborough,Peterborough City Council,More than one Service Area Category,More than one Service Division,Employees,05/08/2015 00:00,744386,1888.06,REVENUE,EXTERNAL TEMPORARY STAFF,The Synergy Group
Peterborough,http://opendatacommunities.org/id/unitary-authority/peterborough,Peterborough City Council,More than one Service Area Category,More than one Service Division,Employees,05/08/2015 00:00,747015,1924.99,REVENUE,EXTERNAL TEMPORARY STAFF,The Synergy Group
Peterborough,http://opendatacommunities.org/id/unitary-authority/peterborough,Peterborough City Council,Children's & Education Services - Children's Social Care,Children Looked After,Supplies and Services - Transfer Payments,05/08/2015 00:00,747186,5284.8,REVENUE,BOARDING OUT ALLOWANCES,I S P
Peterborough,http://opendatacommunities.org/id/unitary-authority/peterborough,Peterborough City Council,Children's & Education Services - Children's Social Care,Other Children's & Families Services,Supplies and Services - Transfer Payments,05/08/2015 00:00,748479,885.71,REVENUE,BOARDING OUT ALLOWANCES,PC Homes
Peterborough,http://opendatacommunities.org/id/unitary-authority/peterborough,Peterborough City Council,Adult Social Care,Adult Learning Disabilities,Supplies and Services,05/08/2015 00:00,748763,2707.04,REVENUE,RESIDENTIAL CARE,LEONARD CHESHIRE DISABILITY
Peterborough,http://opendatacommunities.org/id/unitary-authority/peterborough,Peterborough City Council,Support Services,Support Services,Employees,05/08/2015 00:00,748774,1648.2,REVENUE,EXTERNAL TEMPORARY STAFF,Venn Group Ltd
Peterborough,http://opendatacommunities.org/id/unitary-authority/peterborough,Peterborough City Council,Support Services,Support Services,Employees,05/08/2015 00:00,748775,1672.8,REVENUE,EXTERNAL TEMPORARY STAFF,Venn Group Ltd
Peterborough,http://opendatacommunities.org/id/unitary-authority/peterborough,Peterborough City Council,Children's & Education Services - Children's Social Care,Children Looked After,Supplies and Services - Transfer Payments,05/08/2015 00:00,748852,3342.9,REVENUE,BOARDING OUT ALLOWANCES,National Fostering Agency
Peterborough,http://opendatacommunities.org/id/unitary-authority/peterborough,Peterborough City Council,Support Services,Support Services,Employees,05/08/2015 00:00,748990,1672.8,REVENUE,EXTERNAL TEMPORARY STAFF,Venn Group Ltd
Peterborough,http://opendatacommunities.org/id/unitary-authority/peterborough,Peterborough City Council,Adult Social Care,Other Adult Services,Third Party Payments,05/08/2015 00:00,750239,5438.5,REVENUE,THIRD PARTY PAYMENTS - CONTRACT,CRI
Peterborough,http://opendatacommunities.org/id/unitary-authority/peterborough,Peterborough City Council,Children's & Education Services - Children's Social Care,Children Looked After,Premises,05/08/2015 00:00,750244,2580,REVENUE,MAINTENANCE,Chris Groome Decorating
Peterborough,http://opendatacommunities.org/id/unitary-authority/peterborough,Peterborough City Council,Children's & Education Services - Children's Social Care,Other Children's & Families Services,Employees,05/08/2015 00:00,750305,1817.1,REVENUE,EXTERNAL TEMPORARY STAFF,Eden Brown Ltd
Peterborough,http://opendatacommunities.org/id/unitary-authority/peterborough,Peterborough City Council,Children's & Education Services - Children's Social Care,Other Children's & Families Services,Employees,05/08/2015 00:00,750307,1703.1,REVENUE,EXTERNAL TEMPORARY STAFF,Eden Brown Ltd
Peterborough,http://opendatacommunities.org/id/unitary-authority/peterborough,Peterborough City Council,Children's & Education Services - Children's Social Care,Other Children's & Families Services,Employees,05/08/2015 00:00,750308,701.35,REVENUE,EXTERNAL TEMPORARY STAFF,Eden Brown Ltd
Peterborough,http://opendatacommunities.org/id/unitary-authority/peterborough,Peterborough City Council,Children's & Education Services - Children's Social Care,Other Children's & Families Services,Employees,05/08/2015 00:00,750311,655.19,REVENUE,EXTERNAL TEMPORARY STAFF,Eden Brown Ltd
Peterborough,http://opendatacommunities.org/id/unitary-authority/peterborough,Peterborough City Council,Children's & Education Services - Children's Social Care,Other Children's & Families Services,Employees,05/08/2015 00:00,750312,2042.4,REVENUE,EXTERNAL TEMPORARY STAFF,Eden Brown Ltd
Peterborough,http://opendatacommunities.org/id/unitary-authority/peterborough,Peterborough City Council,Adult Social Care,Adult Learning Disabilities,Supplies and Services,05/08/2015 00:00,750336,920.44,REVENUE,RESIDENTIAL CARE,Craegmoor Priory Group
Peterborough,http://opendatacommunities.org/id/unitary-authority/peterborough,Peterborough City Council,Adult Social Care,Adult Mental Health,Supplies and Services,05/08/2015 00:00,750337,3333.6,REVENUE,RESIDENTIAL CARE,Craegmoor Priory Group
Peterborough,http://opendatacommunities.org/id/unitary-authority/peterborough,Peterborough City Council,Adult Social Care,Adult Learning Disabilities,Supplies and Services,05/08/2015 00:00,750352,4538.04,REVENUE,RESIDENTIAL CARE,Craegmoor Priory Group
Peterborough,http://opendatacommunities.org/id/unitary-authority/peterborough,Peterborough City Council,Adult Social Care,Adult Learning Disabilities,Supplies and Services,05/08/2015 00:00,750359,4604.6,REVENUE,RESIDENTIAL CARE,Craegmoor Priory Group
Peterborough,http://opendatacommunities.org/id/unitary-authority/peterborough,Peterborough City Council,Adult Social Care,Older People,Supplies and Services,05/08/2015 00:00,750360,3210.8,REVENUE,RESIDENTIAL CARE,Craegmoor Priory Group
Peterborough,http://opendatacommunities.org/id/unitary-authority/peterborough,Peterborough City Council,Adult Social Care,Adult Mental Health,Supplies and Services,05/08/2015 00:00,750361,4756,REVENUE,RESIDENTIAL CARE,Craegmoor Priory Group
Peterborough,http://opendatacommunities.org/id/unitary-authority/peterborough,Peterborough City Council,Children's & Education Services - Children's Social Care,Children Looked After,Premises,05/08/2015 00:00,750388,645,REVENUE,MAINTENANCE,Bull & Co Ltd
Peterborough,http://opendatacommunities.org/id/unitary-authority/peterborough,Peterborough City Council,Environmental and Regulatory Services,"Cemetery, Crematorium & Mortuary Services",Supplies and Services,05/08/2015 00:00,750400,1177.2,REVENUE,ITEMS FOR RESALE,Ashdown Supplies
Peterborough,http://opendatacommunities.org/id/unitary-authority/peterborough,Peterborough City Council,Children's & Education Services - Education,Secondary,Supplies and Services,05/08/2015 00:00,750411,6570.68,REVENUE,SERVICE CHARGE,IIC by Education (P'boro) Ltd
Peterborough,http://opendatacommunities.org/id/unitary-authority/peterborough,Peterborough City Council,Support Services,Support Services,Employees,05/08/2015 00:00,750436,1544.27,REVENUE,EXTERNAL TEMPORARY STAFF,The Synergy Group
Peterborough,http://opendatacommunities.org/id/unitary-authority/peterborough,Peterborough City Council,Support Services,Support Services,Employees,05/08/2015 00:00,750438,1591.92,REVENUE,EXTERNAL TEMPORARY STAFF,The Synergy Group
Peterborough,http://opendatacommunities.org/id/unitary-authority/peterborough,Peterborough City Council,Support Services,Support Services,Supplies and Services,05/08/2015 00:00,750447,1132.8,REVENUE,PRINTING,G P Print
Peterborough,http://opendatacommunities.org/id/unitary-authority/peterborough,Peterborough City Council,Support Services,Support Services,Employees,05/08/2015 00:00,750458,1989.9,REVENUE,EXTERNAL TEMPORARY STAFF,The Synergy Group
Peterborough,http://opendatacommunities.org/id/unitary-authority/peterborough,Peterborough City Council,Support Services,Support Services,Employees,05/08/2015 00:00,750460,1857.24,REVENUE,EXTERNAL TEMPORARY STAFF,The Synergy Group
Peterborough,http://opendatacommunities.org/id/unitary-authority/peterborough,Peterborough City Council,Children's & Education Services - Children's Social Care,Children Looked After,Supplies and Services - Transfer Payments,05/08/2015 00:00,750482,3620.8,REVENUE,BOARDING OUT ALLOWANCES,Archway Care Ltd
Peterborough,http://opendatacommunities.org/id/unitary-authority/peterborough,Peterborough City Council,Children's & Education Services - Children's Social Care,Children Looked After,Supplies and Services - Transfer Payments,05/08/2015 00:00,750488,3620.8,REVENUE,BOARDING OUT ALLOWANCES,Archway Care Ltd
Peterborough,http://opendatacommunities.org/id/unitary-authority/peterborough,Peterborough City Council,Children's & Education Services - Children's Social Care,More than one Service Division,Supplies and Services,05/08/2015 00:00,750530,1235,REVENUE,PURCHASED SOCIAL CARE SERVICES,Adoptionplus Ltd
Peterborough,http://opendatacommunities.org/id/unitary-authority/peterborough,Peterborough City Council,Deficit/(Surplus) on Trading Undertakings,Trading Account Surpluses & Deficits,Supplies and Services,05/08/2015 00:00,750531,3600,REVENUE,ITEMS FOR RESALE,OneCNC Uk Ltd
Peterborough,http://opendatacommunities.org/id/unitary-authority/peterborough,Peterborough City Council,Cultural and Related Services,Recreation & Sport,Supplies and Services,05/08/2015 00:00,750566,720,REVENUE,ADMINISTRATION EXPENSES,RMIS Ltd
Peterborough,http://opendatacommunities.org/id/unitary-authority/peterborough,Peterborough City Council,Adult Social Care,Older People,Supplies and Services,05/08/2015 00:00,750615,5421.04,REVENUE,RESIDENTIAL CARE,Runwood Homes Ltd
Peterborough,http://opendatacommunities.org/id/unitary-authority/peterborough,Peterborough City Council,Children's & Education Services - Children's Social Care,Other Children's & Families Services,Supplies and Services,05/08/2015 00:00,750616,8400,REVENUE,CONSULTANTS FEES,Cambs & P'boro NHS Foundation Trust
Peterborough,http://opendatacommunities.org/id/unitary-authority/peterborough,Peterborough City Council,Environmental and Regulatory Services,Regulatory services,Employees,05/08/2015 00:00,750623,684,REVENUE,EXTERNAL TEMPORARY STAFF,Kenyon Block Consultants
Peterborough,http://opendatacommunities.org/id/unitary-authority/peterborough,Peterborough City Council,Support Services,Support Services,Supplies and Services,05/08/2015 00:00,750634,2100,REVENUE,LEGAL COSTS,"Fender, Mr Carl"
Peterborough,http://opendatacommunities.org/id/unitary-authority/peterborough,Peterborough City Council,Children's & Education Services - Education,Primary,Supplies and Services,05/08/2015 00:00,750667,35976,REVENUE,COMPUTER SOFTWARE,Research Machines Plc  (RM)
Peterborough,http://opendatacommunities.org/id/unitary-authority/peterborough,Peterborough City Council,Capital,Capital,Capital Pending Update to BS,05/08/2015 00:00,750749,21703.2,CAPITAL,INFRASTRUCTURE,UK Power Networks (operations) Ltd
Peterborough,http://opendatacommunities.org/id/unitary-authority/peterborough,Peterborough City Council,Capital,Capital,Capital Pending Update to BS,05/08/2015 00:00,750752,5586,CAPITAL,INFRASTRUCTURE,UK Power Networks (operations) Ltd
Peterborough,http://opendatacommunities.org/id/unitary-authority/peterborough,Peterborough City Council,Highways and Transport Services,Street Lighting,Supplies and Services,05/08/2015 00:00,750753,910.8,REVENUE,CONTRACTORS,UK Power Networks (operations) Ltd
Peterborough,http://opendatacommunities.org/id/unitary-authority/peterborough,Peterborough City Council,Support Services,Support Services,Employees,05/08/2015 00:00,750788,1672.8,REVENUE,EXTERNAL TEMPORARY STAFF,Venn Group Ltd
Peterborough,http://opendatacommunities.org/id/unitary-authority/peterborough,Peterborough City Council,More than one Service Area Category,More than one Service Division,Balance Sheet,05/08/2015 00:00,750792,6500,Balance Sheet,INSURANCE CLAIMS,Berwicks Solicitors
Peterborough,http://opendatacommunities.org/id/unitary-authority/peterborough,Peterborough City Council,Capital,Capital,Capital Pending Update to BS,05/08/2015 00:00,750795,609.21,CAPITAL,ADVERTISING,Johnston Press Midlands Division
Peterborough,http://opendatacommunities.org/id/unitary-authority/peterborough,Peterborough City Council,Cultural and Related Services,Culture & Heritage,Supplies and Services,05/08/2015 00:00,750797,6000,REVENUE,ADVERTISING,Cambridgeshire Chamber of Commerce
Peterborough,http://opendatacommunities.org/id/unitary-authority/peterborough,Peterborough City Council,Children's & Education Services - Children's Social Care,Other Children's & Families Services,Employees,05/08/2015 00:00,750798,10062,REVENUE,TRAINING,Dartington Hall Trust
Peterborough,http://opendatacommunities.org/id/unitary-authority/peterborough,Peterborough City Council,Children's & Education Services - Children's Social Care,Children Looked After,Supplies and Services - Transfer Payments,05/08/2015 00:00,750806,819.2,REVENUE,LEAVING CARE GRANTS,Millwill Furnishers
Peterborough,http://opendatacommunities.org/id/unitary-authority/peterborough,Peterborough City Council,Support Services,Support Services,Employees,05/08/2015 00:00,750844,660,REVENUE,TRAINING,Huntingdonshire District Council
Peterborough,http://opendatacommunities.org/id/unitary-authority/peterborough,Peterborough City Council,Children's & Education Services - Children's Social Care,Family Support Services,Supplies and Services,05/08/2015 00:00,750845,505.14,REVENUE,EQUIPMENT,The MSR Service
Peterborough,http://opendatacommunities.org/id/unitary-authority/peterborough,Peterborough City Council,Adult Social Care,Learning Disability Support - Adults (18-64),Employees,05/08/2015 00:00,750846,713.95,REVENUE,EXTERNAL TEMPORARY STAFF,Brook Street Bureau Plc
Peterborough,http://opendatacommunities.org/id/unitary-authority/peterborough,Peterborough City Council,Adult Social Care,Learning Disability Support - Adults (18-64),Employees,05/08/2015 00:00,750859,562.25,REVENUE,EXTERNAL TEMPORARY STAFF,Jark Healthcare
Peterborough,http://opendatacommunities.org/id/unitary-authority/peterborough,Peterborough City Council,Environmental and Regulatory Services,Regulatory services,Supplies and Services,05/08/2015 00:00,750867,921.6,REVENUE,SCIENTIFIC TESTING,Environmental Scientifics Group Ltd
Peterborough,http://opendatacommunities.org/id/unitary-authority/peterborough,Peterborough City Council,Planning Services,Development Control,Supplies and Services,05/08/2015 00:00,750892,1104,REVENUE,ADVERTISING,Johnston Press Midlands Division
Peterborough,http://opendatacommunities.org/id/unitary-authority/peterborough,Peterborough City Council,Adult Social Care,Social Care Activities,Employees,05/08/2015 00:00,750895,1584,REVENUE,EXTERNAL TEMPORARY STAFF,Caritas Recruitment
Peterborough,http://opendatacommunities.org/id/unitary-authority/peterborough,Peterborough City Council,Highways and Transport Services,"Transport planning, policy and strategy",Supplies and Services,05/08/2015 00:00,750897,1668.07,REVENUE,ADVERTISING,Johnston Press Midlands Division
Peterborough,http://opendatacommunities.org/id/unitary-authority/peterborough,Peterborough City Council,Adult Social Care,Learning Disability Support - Adults (18-64),Employees,05/08/2015 00:00,750909,1545.3,REVENUE,EXTERNAL TEMPORARY STAFF,Pulse
Peterborough,http://opendatacommunities.org/id/unitary-authority/peterborough,Peterborough City Council,Children's & Education Services - Children's Social Care,Services to Young People,Supplies and Services,05/08/2015 00:00,750921,4801.2,REVENUE,PURCHASED SOCIAL CARE SERVICES,121 Social Care Limited
Peterborough,http://opendatacommunities.org/id/unitary-authority/peterborough,Peterborough City Council,Support Services,Support Services,Supplies and Services,05/08/2015 00:00,750922,1200,REVENUE,PRINTING,Fisherprint Ltd
Peterborough,http://opendatacommunities.org/id/unitary-authority/peterborough,Peterborough City Council,Children's & Education Services - Education,Other Education and Community Budget,Supplies and Services,05/08/2015 00:00,750929,1272,REVENUE,EDUCATION EXPENSES,Top Class Tutors
Peterborough,http://opendatacommunities.org/id/unitary-authority/peterborough,Peterborough City Council,Children's & Education Services - Education,Other Education and Community Budget,Supplies and Services,05/08/2015 00:00,750931,624,REVENUE,EDUCATION EXPENSES,Top Class Tutors
Peterborough,http://opendatacommunities.org/id/unitary-authority/peterborough,Peterborough City Council,Children's & Education Services - Education,Other Education and Community Budget,Employees,05/08/2015 00:00,750933,2866.5,REVENUE,SUPPLY TEACHERS,Top Class Tutors
Peterborough,http://opendatacommunities.org/id/unitary-authority/peterborough,Peterborough City Council,More than one Service Area Category,More than one Service Division,More than one Expenses Type,05/08/2015 00:00,750962,775,REVENUE,TRAINING,Do the Write Thing Ltd
Peterborough,http://opendatacommunities.org/id/unitary-authority/peterborough,Peterborough City Council,Public Health,Smoking and tobacco,Third Party Payments,05/08/2015 00:00,751147,1473,REVENUE,THIRD PARTY PAYMENTS - CONTRACT,Intermedical
Peterborough,http://opendatacommunities.org/id/unitary-authority/peterborough,Peterborough City Council,Adult Social Care,Older People,Supplies and Services,05/08/2015 00:00,751150,1645.85,REVENUE,RESIDENTIAL CARE,Pilgrim Havens
Peterborough,http://opendatacommunities.org/id/unitary-authority/peterborough,Peterborough City Council,Adult Social Care,More than one Service Division,More than one Expenses Type,05/08/2015 00:00,751153,1970.3,REVENUE,RESIDENTIAL CARE,Pilgrim Havens
Peterborough,http://opendatacommunities.org/id/unitary-authority/peterborough,Peterborough City Council,Adult Social Care,Older People,Supplies and Services,05/08/2015 00:00,751155,1338.8,REVENUE,RESIDENTIAL CARE,Pilgrim Havens
Peterborough,http://opendatacommunities.org/id/unitary-authority/peterborough,Peterborough City Council,Adult Social Care,Adult Learning Disabilities,Supplies and Services,05/08/2015 00:00,751158,528,REVENUE,HOME CARE,Mencap
Peterborough,http://opendatacommunities.org/id/unitary-authority/peterborough,Peterborough City Council,Adult Social Care,Older People,Supplies and Services,05/08/2015 00:00,751172,1267.48,REVENUE,RESIDENTIAL CARE,St Georges Glatton Hall
Peterborough,http://opendatacommunities.org/id/unitary-authority/peterborough,Peterborough City Council,Deficit/(Surplus) on Trading Undertakings,Trading Account Surpluses & Deficits,Supplies and Services,05/08/2015 00:00,751732,1752.71,REVENUE,ITEMS FOR RESALE,Eaton Ltd
Peterborough,http://opendatacommunities.org/id/unitary-authority/peterborough,Peterborough City Council,Children's & Education Services - Children's Social Care,Other Children's & Families Services,Employees,05/08/2015 00:00,751741,1680,REVENUE,EXTERNAL TEMPORARY STAFF,Medicare First
Peterborough,http://opendatacommunities.org/id/unitary-authority/peterborough,Peterborough City Council,Children's & Education Services - Children's Social Care,Other Children's & Families Services,Employees,05/08/2015 00:00,751743,1681.62,REVENUE,EXTERNAL TEMPORARY STAFF,Medicare First
Peterborough,http://opendatacommunities.org/id/unitary-authority/peterborough,Peterborough City Council,Adult Social Care,Older People,Supplies and Services,05/08/2015 00:00,751748,-750.55,REVENUE,RESIDENTIAL CARE,BUPA Care Homes
Peterborough,http://opendatacommunities.org/id/unitary-authority/peterborough,Peterborough City Council,Adult Social Care,Older People,Supplies and Services,05/08/2015 00:00,751756,1383.44,REVENUE,RESIDENTIAL CARE,BUPA Care Homes
Peterborough,http://opendatacommunities.org/id/unitary-authority/peterborough,Peterborough City Council,Adult Social Care,Older People,Supplies and Services,05/08/2015 00:00,751758,1378.48,REVENUE,RESIDENTIAL CARE,BUPA Care Homes
Peterborough,http://opendatacommunities.org/id/unitary-authority/peterborough,Peterborough City Council,Adult Social Care,Older People,Supplies and Services,05/08/2015 00:00,751759,1545.56,REVENUE,RESIDENTIAL CARE,BUPA Care Homes
Peterborough,http://opendatacommunities.org/id/unitary-authority/peterborough,Peterborough City Council,Adult Social Care,Older People,Supplies and Services,05/08/2015 00:00,751766,1326.08,REVENUE,RESIDENTIAL CARE,BUPA Care Homes
Peterborough,http://opendatacommunities.org/id/unitary-authority/peterborough,Peterborough City Council,Adult Social Care,Older People,Supplies and Services,05/08/2015 00:00,751768,773.12,REVENUE,RESIDENTIAL CARE,BUPA Care Homes
Peterborough,http://opendatacommunities.org/id/unitary-authority/peterborough,Peterborough City Council,Adult Social Care,Older People,Supplies and Services,05/08/2015 00:00,751770,1645.08,REVENUE,RESIDENTIAL CARE,BUPA Care Homes
Peterborough,http://opendatacommunities.org/id/unitary-authority/peterborough,Peterborough City Council,Adult Social Care,Older People,Supplies and Services,05/08/2015 00:00,751772,1238.72,REVENUE,RESIDENTIAL CARE,BUPA Care Homes
Peterborough,http://opendatacommunities.org/id/unitary-authority/peterborough,Peterborough City Council,Adult Social Care,Older People,Supplies and Services,05/08/2015 00:00,751774,2940,REVENUE,RESIDENTIAL CARE,BUPA Care Homes
Peterborough,http://opendatacommunities.org/id/unitary-authority/peterborough,Peterborough City Council,Adult Social Care,Older People,Supplies and Services,05/08/2015 00:00,751775,1623.72,REVENUE,RESIDENTIAL CARE,BUPA Care Homes
Peterborough,http://opendatacommunities.org/id/unitary-authority/peterborough,Peterborough City Council,Adult Social Care,Older People,Supplies and Services,05/08/2015 00:00,751776,1485.68,REVENUE,RESIDENTIAL CARE,BUPA Care Homes
Peterborough,http://opendatacommunities.org/id/unitary-authority/peterborough,Peterborough City Council,Adult Social Care,Older People,Supplies and Services,05/08/2015 00:00,751777,1623.72,REVENUE,RESIDENTIAL CARE,BUPA Care Homes
Peterborough,http://opendatacommunities.org/id/unitary-authority/peterborough,Peterborough City Council,Adult Social Care,Older People,Supplies and Services,05/08/2015 00:00,751778,-936.44,REVENUE,RESIDENTIAL CARE,BUPA Care Homes
Peterborough,http://opendatacommunities.org/id/unitary-authority/peterborough,Peterborough City Council,Adult Social Care,Older People,Supplies and Services,05/08/2015 00:00,751779,2128.92,REVENUE,RESIDENTIAL CARE,BUPA Care Homes
Peterborough,http://opendatacommunities.org/id/unitary-authority/peterborough,Peterborough City Council,Adult Social Care,Older People,Supplies and Services,05/08/2015 00:00,751780,1629.6,REVENUE,RESIDENTIAL CARE,BUPA Care Homes
Peterborough,http://opendatacommunities.org/id/unitary-authority/peterborough,Peterborough City Council,Adult Social Care,Older People,Supplies and Services,05/08/2015 00:00,751781,1385.84,REVENUE,RESIDENTIAL CARE,BUPA Care Homes
Peterborough,http://opendatacommunities.org/id/unitary-authority/peterborough,Peterborough City Council,Adult Social Care,Older People,Supplies and Services,05/08/2015 00:00,751782,1821.88,REVENUE,RESIDENTIAL CARE,BUPA Care Homes
Peterborough,http://opendatacommunities.org/id/unitary-authority/peterborough,Peterborough City Council,Adult Social Care,Older People,Supplies and Services,05/08/2015 00:00,751783,1500.4,REVENUE,RESIDENTIAL CARE,BUPA Care Homes
Peterborough,http://opendatacommunities.org/id/unitary-authority/peterborough,Peterborough City Council,Adult Social Care,Older People,Supplies and Services,05/08/2015 00:00,751784,1336.4,REVENUE,RESIDENTIAL CARE,BUPA Care Homes
Peterborough,http://opendatacommunities.org/id/unitary-authority/peterborough,Peterborough City Council,Adult Social Care,Older People,Supplies and Services,05/08/2015 00:00,751785,1180.52,REVENUE,RESIDENTIAL CARE,BUPA Care Homes
Peterborough,http://opendatacommunities.org/id/unitary-authority/peterborough,Peterborough City Council,Adult Social Care,Older People,Supplies and Services,05/08/2015 00:00,751786,1326.08,REVENUE,RESIDENTIAL CARE,BUPA Care Homes
Peterborough,http://opendatacommunities.org/id/unitary-authority/peterborough,Peterborough City Council,Adult Social Care,Older People,Supplies and Services,05/08/2015 00:00,751787,1257.68,REVENUE,RESIDENTIAL CARE,BUPA Care Homes
Peterborough,http://opendatacommunities.org/id/unitary-authority/peterborough,Peterborough City Council,Adult Social Care,Older People,Supplies and Services,05/08/2015 00:00,751788,1595.2,REVENUE,RESIDENTIAL CARE,BUPA Care Homes
Peterborough,http://opendatacommunities.org/id/unitary-authority/peterborough,Peterborough City Council,Adult Social Care,Older People,Supplies and Services,05/08/2015 00:00,751805,1326.08,REVENUE,RESIDENTIAL CARE,BUPA Care Homes
Peterborough,http://opendatacommunities.org/id/unitary-authority/peterborough,Peterborough City Council,Adult Social Care,Older People,Supplies and Services,05/08/2015 00:00,751807,842.2,REVENUE,RESIDENTIAL CARE,BUPA Care Homes
Peterborough,http://opendatacommunities.org/id/unitary-authority/peterborough,Peterborough City Council,Adult Social Care,Older People,Supplies and Services,05/08/2015 00:00,751809,-936.44,REVENUE,RESIDENTIAL CARE,BUPA Care Homes
Peterborough,http://opendatacommunities.org/id/unitary-authority/peterborough,Peterborough City Council,Adult Social Care,Older People,Supplies and Services,05/08/2015 00:00,752323,1057.04,REVENUE,RESIDENTIAL CARE,BUPA Care Homes
Peterborough,http://opendatacommunities.org/id/unitary-authority/peterborough,Peterborough City Council,Adult Social Care,Older People,Supplies and Services,05/08/2015 00:00,752324,1165.68,REVENUE,RESIDENTIAL CARE,BUPA Care Homes
Peterborough,http://opendatacommunities.org/id/unitary-authority/peterborough,Peterborough City Council,Adult Social Care,Older People,Supplies and Services,05/08/2015 00:00,752335,1623.72,REVENUE,RESIDENTIAL CARE,BUPA Care Homes
Peterborough,http://opendatacommunities.org/id/unitary-authority/peterborough,Peterborough City Council,Adult Social Care,Older People,Supplies and Services,05/08/2015 00:00,752336,1440.32,REVENUE,RESIDENTIAL CARE,BUPA Care Homes
Peterborough,http://opendatacommunities.org/id/unitary-authority/peterborough,Peterborough City Council,Adult Social Care,Older People,Supplies and Services,05/08/2015 00:00,752337,1590.2,REVENUE,RESIDENTIAL CARE,BUPA Care Homes
Peterborough,http://opendatacommunities.org/id/unitary-authority/peterborough,Peterborough City Council,Adult Social Care,Older People,Supplies and Services,05/08/2015 00:00,752338,1016.4,REVENUE,RESIDENTIAL CARE,BUPA Care Homes
Peterborough,http://opendatacommunities.org/id/unitary-authority/peterborough,Peterborough City Council,Adult Social Care,Older People,Supplies and Services,05/08/2015 00:00,752372,2140.52,REVENUE,RESIDENTIAL CARE,BUPA Care Homes
Peterborough,http://opendatacommunities.org/id/unitary-authority/peterborough,Peterborough City Council,Adult Social Care,Older People,Supplies and Services,05/08/2015 00:00,752381,1564.36,REVENUE,RESIDENTIAL CARE,BUPA Care Homes
Peterborough,http://opendatacommunities.org/id/unitary-authority/peterborough,Peterborough City Council,Adult Social Care,Older People,Supplies and Services,05/08/2015 00:00,752383,1267,REVENUE,RESIDENTIAL CARE,BUPA Care Homes
Peterborough,http://opendatacommunities.org/id/unitary-authority/peterborough,Peterborough City Council,Adult Social Care,Older People,Supplies and Services,05/08/2015 00:00,752384,963.44,REVENUE,RESIDENTIAL CARE,BUPA Care Homes
Peterborough,http://opendatacommunities.org/id/unitary-authority/peterborough,Peterborough City Council,Adult Social Care,Older People,Supplies and Services,05/08/2015 00:00,752385,1277.88,REVENUE,RESIDENTIAL CARE,BUPA Care Homes
Peterborough,http://opendatacommunities.org/id/unitary-authority/peterborough,Peterborough City Council,Adult Social Care,Older People,Supplies and Services,05/08/2015 00:00,752386,1326.08,REVENUE,RESIDENTIAL CARE,BUPA Care Homes
Peterborough,http://opendatacommunities.org/id/unitary-authority/peterborough,Peterborough City Council,Adult Social Care,Older People,Supplies and Services,05/08/2015 00:00,752387,1454.76,REVENUE,RESIDENTIAL CARE,BUPA Care Homes
Peterborough,http://opendatacommunities.org/id/unitary-authority/peterborough,Peterborough City Council,Adult Social Care,Older People,Supplies and Services,05/08/2015 00:00,752390,973.72,REVENUE,RESIDENTIAL CARE,BUPA Care Homes
Peterborough,http://opendatacommunities.org/id/unitary-authority/peterborough,Peterborough City Council,Adult Social Care,Older People,Supplies and Services,05/08/2015 00:00,752393,1550.32,REVENUE,RESIDENTIAL CARE,BUPA Care Homes
Peterborough,http://opendatacommunities.org/id/unitary-authority/peterborough,Peterborough City Council,Adult Social Care,Older People,Supplies and Services,05/08/2015 00:00,752394,1475.36,REVENUE,RESIDENTIAL CARE,BUPA Care Homes
Peterborough,http://opendatacommunities.org/id/unitary-authority/peterborough,Peterborough City Council,Adult Social Care,Older People,Supplies and Services,05/08/2015 00:00,752395,1190.32,REVENUE,RESIDENTIAL CARE,BUPA Care Homes
Peterborough,http://opendatacommunities.org/id/unitary-authority/peterborough,Peterborough City Council,Adult Social Care,Older People,Supplies and Services,05/08/2015 00:00,752397,-936.44,REVENUE,RESIDENTIAL CARE,BUPA Care Homes
Peterborough,http://opendatacommunities.org/id/unitary-authority/peterborough,Peterborough City Council,Court Services,Coroner's Court Service,Supplies and Services,05/08/2015 00:00,752402,530,REVENUE,SCIENTIFIC TESTING,Imperial College Consultants Ltd
Peterborough,http://opendatacommunities.org/id/unitary-authority/peterborough,Peterborough City Council,Adult Social Care,Older People,Supplies and Services,05/08/2015 00:00,752407,3158.2,REVENUE,RESIDENTIAL CARE,BUPA Care Homes
Peterborough,http://opendatacommunities.org/id/unitary-authority/peterborough,Peterborough City Council,Children's & Education Services - Children's Social Care,Children Looked After,Employees,05/08/2015 00:00,752480,1210.8,REVENUE,SUPPLY TEACHERS,Textbook Teachers
Peterborough,http://opendatacommunities.org/id/unitary-authority/peterborough,Peterborough City Council,Adult Social Care,Adult Mental Health,Supplies and Services,05/08/2015 00:00,752558,38475,REVENUE,THIRD PARTY PAYMENTS - GRANT,The Richmond Fellowship
Peterborough,http://opendatacommunities.org/id/unitary-authority/peterborough,Peterborough City Council,Adult Social Care,Older People,Supplies and Services,05/08/2015 00:00,752560,1060.9,REVENUE,RESIDENTIAL CARE,Pilgrim Havens
Peterborough,http://opendatacommunities.org/id/unitary-authority/peterborough,Peterborough City Council,Adult Social Care,Older People,Supplies and Services,05/08/2015 00:00,752562,1072.45,REVENUE,RESIDENTIAL CARE,Pilgrim Havens
Peterborough,http://opendatacommunities.org/id/unitary-authority/peterborough,Peterborough City Council,Children's & Education Services - Children's Social Care,Other Children's & Families Services,Employees,05/08/2015 00:00,752586,1065.6,REVENUE,EXTERNAL TEMPORARY STAFF,Service Care Solutions Ltd
Peterborough,http://opendatacommunities.org/id/unitary-authority/peterborough,Peterborough City Council,Children's & Education Services - Children's Social Care,Children Looked After,Employees,05/08/2015 00:00,752608,570,REVENUE,EXTERNAL TEMPORARY STAFF,Wrixon Care Services
Peterborough,http://opendatacommunities.org/id/unitary-authority/peterborough,Peterborough City Council,Children's & Education Services - Education,Secondary,Employees,05/08/2015 00:00,752670,2890.8,REVENUE,SUPPLY TEACHERS,Vision for Education Ltd
Peterborough,http://opendatacommunities.org/id/unitary-authority/peterborough,Peterborough City Council,Children's & Education Services - Children's Social Care,Other Children's & Families Services,Employees,05/08/2015 00:00,752876,1527.36,REVENUE,EXTERNAL TEMPORARY STAFF,Sanctuary Personnel Ltd
Peterborough,http://opendatacommunities.org/id/unitary-authority/peterborough,Peterborough City Council,Children's & Education Services - Children's Social Care,Other Children's & Families Services,Employees,05/08/2015 00:00,752879,2144.52,REVENUE,EXTERNAL TEMPORARY STAFF,Sanctuary Personnel Ltd
Peterborough,http://opendatacommunities.org/id/unitary-authority/peterborough,Peterborough City Council,Children's & Education Services - Children's Social Care,Other Children's & Families Services,Employees,05/08/2015 00:00,752880,1800,REVENUE,EXTERNAL TEMPORARY STAFF,Sanctuary Personnel Ltd
Peterborough,http://opendatacommunities.org/id/unitary-authority/peterborough,Peterborough City Council,Children's & Education Services - Children's Social Care,Other Children's & Families Services,Employees,05/08/2015 00:00,752882,1998,REVENUE,EXTERNAL TEMPORARY STAFF,Sanctuary Personnel Ltd
Peterborough,http://opendatacommunities.org/id/unitary-authority/peterborough,Peterborough City Council,Children's & Education Services - Children's Social Care,Other Children's & Families Services,Employees,05/08/2015 00:00,752883,1598.4,REVENUE,EXTERNAL TEMPORARY STAFF,Sanctuary Personnel Ltd
Peterborough,http://opendatacommunities.org/id/unitary-authority/peterborough,Peterborough City Council,Children's & Education Services - Children's Social Care,Other Children's & Families Services,Employees,05/08/2015 00:00,752885,2097.9,REVENUE,EXTERNAL TEMPORARY STAFF,Sanctuary Personnel Ltd
Peterborough,http://opendatacommunities.org/id/unitary-authority/peterborough,Peterborough City Council,Children's & Education Services - Children's Social Care,Other Children's & Families Services,Employees,05/08/2015 00:00,752886,2109,REVENUE,EXTERNAL TEMPORARY STAFF,Sanctuary Personnel Ltd
Peterborough,http://opendatacommunities.org/id/unitary-authority/peterborough,Peterborough City Council,Adult Social Care,Social Care Activities,More than one Expenses Type,05/08/2015 00:00,752887,1368,REVENUE,EXTERNAL TEMPORARY STAFF,Sanctuary Personnel Ltd
Peterborough,http://opendatacommunities.org/id/unitary-authority/peterborough,Peterborough City Council,Children's & Education Services - Children's Social Care,Other Children's & Families Services,Employees,05/08/2015 00:00,752888,2144.52,REVENUE,EXTERNAL TEMPORARY STAFF,Sanctuary Personnel Ltd
Peterborough,http://opendatacommunities.org/id/unitary-authority/peterborough,Peterborough City Council,Children's & Education Services - Children's Social Care,Other Children's & Families Services,Employees,05/08/2015 00:00,752889,1674.24,REVENUE,EXTERNAL TEMPORARY STAFF,Sanctuary Personnel Ltd
Peterborough,http://opendatacommunities.org/id/unitary-authority/peterborough,Peterborough City Council,Children's & Education Services - Children's Social Care,Other Children's & Families Services,Employees,05/08/2015 00:00,752890,2144.52,REVENUE,EXTERNAL TEMPORARY STAFF,Sanctuary Personnel Ltd
Peterborough,http://opendatacommunities.org/id/unitary-authority/peterborough,Peterborough City Council,Children's & Education Services - Children's Social Care,Other Children's & Families Services,Employees,05/08/2015 00:00,752891,2144.52,REVENUE,EXTERNAL TEMPORARY STAFF,Sanctuary Personnel Ltd
Peterborough,http://opendatacommunities.org/id/unitary-authority/peterborough,Peterborough City Council,Children's & Education Services - Children's Social Care,Other Children's & Families Services,Employees,05/08/2015 00:00,752892,1527.36,REVENUE,EXTERNAL TEMPORARY STAFF,Sanctuary Personnel Ltd
Peterborough,http://opendatacommunities.org/id/unitary-authority/peterborough,Peterborough City Council,Children's & Education Services - Children's Social Care,Other Children's & Families Services,Employees,05/08/2015 00:00,752894,2109,REVENUE,EXTERNAL TEMPORARY STAFF,Sanctuary Personnel Ltd
Peterborough,http://opendatacommunities.org/id/unitary-authority/peterborough,Peterborough City Council,Children's & Education Services - Children's Social Care,Other Children's & Families Services,Employees,05/08/2015 00:00,752895,2144.52,REVENUE,EXTERNAL TEMPORARY STAFF,Sanctuary Personnel Ltd
Peterborough,http://opendatacommunities.org/id/unitary-authority/peterborough,Peterborough City Council,Children's & Education Services - Children's Social Care,Other Children's & Families Services,Employees,05/08/2015 00:00,752896,1286.71,REVENUE,EXTERNAL TEMPORARY STAFF,Sanctuary Personnel Ltd
Peterborough,http://opendatacommunities.org/id/unitary-authority/peterborough,Peterborough City Council,Children's & Education Services - Children's Social Care,Other Children's & Families Services,Employees,05/08/2015 00:00,752897,2127.54,REVENUE,EXTERNAL TEMPORARY STAFF,Sanctuary Personnel Ltd
Peterborough,http://opendatacommunities.org/id/unitary-authority/peterborough,Peterborough City Council,Children's & Education Services - Children's Social Care,Other Children's & Families Services,Employees,05/08/2015 00:00,752899,2144.52,REVENUE,EXTERNAL TEMPORARY STAFF,Sanctuary Personnel Ltd
Peterborough,http://opendatacommunities.org/id/unitary-authority/peterborough,Peterborough City Council,Children's & Education Services - Children's Social Care,Other Children's & Families Services,Employees,05/08/2015 00:00,752900,857.81,REVENUE,EXTERNAL TEMPORARY STAFF,Sanctuary Personnel Ltd
Peterborough,http://opendatacommunities.org/id/unitary-authority/peterborough,Peterborough City Council,Children's & Education Services - Children's Social Care,Other Children's & Families Services,Employees,05/08/2015 00:00,752901,1687.2,REVENUE,EXTERNAL TEMPORARY STAFF,Sanctuary Personnel Ltd
Peterborough,http://opendatacommunities.org/id/unitary-authority/peterborough,Peterborough City Council,Children's & Education Services - Children's Social Care,Other Children's & Families Services,Employees,05/08/2015 00:00,752913,2144.52,REVENUE,EXTERNAL TEMPORARY STAFF,Sanctuary Personnel Ltd
Peterborough,http://opendatacommunities.org/id/unitary-authority/peterborough,Peterborough City Council,Adult Social Care,Split,Third Party Payments,05/08/2015 00:00,752922,4836.07,REVENUE,THIRD PARTY PAYMENTS - CONTRACT,ABOUT ME CARE AND SUPPORT LTD
Peterborough,http://opendatacommunities.org/id/unitary-authority/peterborough,Peterborough City Council,Adult Social Care,Social Care Activities,Employees,05/08/2015 00:00,752995,1263.78,REVENUE,EXTERNAL TEMPORARY STAFF,Caritas Recruitment
Peterborough,http://opendatacommunities.org/id/unitary-authority/peterborough,Peterborough City Council,Adult Social Care,Social Care Activities,Employees,05/08/2015 00:00,752996,1554,REVENUE,EXTERNAL TEMPORARY STAFF,Caritas Recruitment
Peterborough,http://opendatacommunities.org/id/unitary-authority/peterborough,Peterborough City Council,Adult Social Care,Social Care Activities,Employees,05/08/2015 00:00,752998,1554,REVENUE,EXTERNAL TEMPORARY STAFF,Caritas Recruitment
Peterborough,http://opendatacommunities.org/id/unitary-authority/peterborough,Peterborough City Council,Adult Social Care,Social Care Activities,Employees,05/08/2015 00:00,753001,1344,REVENUE,EXTERNAL TEMPORARY STAFF,Caritas Recruitment
Peterborough,http://opendatacommunities.org/id/unitary-authority/peterborough,Peterborough City Council,Adult Social Care,Social Care Activities,Employees,05/08/2015 00:00,753004,2343,REVENUE,EXTERNAL TEMPORARY STAFF,Caritas Recruitment
Peterborough,http://opendatacommunities.org/id/unitary-authority/peterborough,Peterborough City Council,Children's & Education Services - Children's Social Care,Other Children's & Families Services,Employees,05/08/2015 00:00,753069,2127.54,REVENUE,EXTERNAL TEMPORARY STAFF,Sanctuary Personnel Ltd
Peterborough,http://opendatacommunities.org/id/unitary-authority/peterborough,Peterborough City Council,Children's & Education Services - Children's Social Care,Children Looked After,Employees,05/08/2015 00:00,753350,3040.8,REVENUE,SUPPLY TEACHERS,Engage Education
Peterborough,http://opendatacommunities.org/id/unitary-authority/peterborough,Peterborough City Council,Adult Social Care,Adult Physical Disability & Sensory Impairment,Supplies and Services,05/08/2015 00:00,753503,789.6,REVENUE,HOME CARE,Deafblind Enablement Ltd
Peterborough,http://opendatacommunities.org/id/unitary-authority/peterborough,Peterborough City Council,Adult Social Care,Adult Learning Disabilities,Supplies and Services,05/08/2015 00:00,753505,6249.6,REVENUE,HOME CARE,Voyage
Peterborough,http://opendatacommunities.org/id/unitary-authority/peterborough,Peterborough City Council,Support Services,Support Services,Employees,05/08/2015 00:00,753506,683.34,REVENUE,EXTERNAL TEMPORARY STAFF,Reed Specialist Recruitment
Peterborough,http://opendatacommunities.org/id/unitary-authority/peterborough,Peterborough City Council,Support Services,Support Services,Employees,05/08/2015 00:00,753507,679.56,REVENUE,EXTERNAL TEMPORARY STAFF,Reed Specialist Recruitment
Peterborough,http://opendatacommunities.org/id/unitary-authority/peterborough,Peterborough City Council,More than one Service Area Category,More than one Service Division,More than one Expenses Type,05/08/2015 00:00,753510,683.34,"Mixture of Capital, Revenue and/or Balance Sheet",EXTERNAL TEMPORARY STAFF,Reed Specialist Recruitment
Peterborough,http://opendatacommunities.org/id/unitary-authority/peterborough,Peterborough City Council,Cultural and Related Services,Recreation & Sport,Employees,05/08/2015 00:00,753518,677.81,REVENUE,EXTERNAL TEMPORARY STAFF,Reed Specialist Recruitment
Peterborough,http://opendatacommunities.org/id/unitary-authority/peterborough,Peterborough City Council,Children's & Education Services - Children's Social Care,Children Looked After,Employees,05/08/2015 00:00,753519,519.84,REVENUE,EXTERNAL TEMPORARY STAFF,Reed Specialist Recruitment
Peterborough,http://opendatacommunities.org/id/unitary-authority/peterborough,Peterborough City Council,Children's & Education Services - Children's Social Care,Safeguarding Children and Young People Services,Employees,05/08/2015 00:00,753528,622.93,REVENUE,EXTERNAL TEMPORARY STAFF,Reed Personnel Services Plc
Peterborough,http://opendatacommunities.org/id/unitary-authority/peterborough,Peterborough City Council,Capital,Capital,Capital Pending Update to BS,05/08/2015 00:00,753681,6532.42,CAPITAL,BUILDING AND SITE WORKS,McFletch Ltd
Peterborough,http://opendatacommunities.org/id/unitary-authority/peterborough,Peterborough City Council,Children's & Education Services - Children's Social Care,Children Looked After,Premises,05/08/2015 00:00,753682,1159.8,REVENUE,MAINTENANCE,Bull & Co Ltd
Peterborough,http://opendatacommunities.org/id/unitary-authority/peterborough,Peterborough City Council,Deficit/(Surplus) on Trading Undertakings,Trading Account Surpluses & Deficits,Supplies and Services,05/08/2015 00:00,754349,511.36,REVENUE,ITEMS FOR RESALE,Barron Clark Castings Ltd
Peterborough,http://opendatacommunities.org/id/unitary-authority/peterborough,Peterborough City Council,Deficit/(Surplus) on Trading Undertakings,Trading Account Surpluses & Deficits,Supplies and Services,05/08/2015 00:00,754350,795.16,REVENUE,ITEMS FOR RESALE,Barron Clark Castings Ltd
Peterborough,http://opendatacommunities.org/id/unitary-authority/peterborough,Peterborough City Council,Deficit/(Surplus) on Trading Undertakings,Trading Account Surpluses & Deficits,Supplies and Services,05/08/2015 00:00,754362,1828.39,REVENUE,ITEMS FOR RESALE,Barron Clark Castings Ltd
Peterborough,http://opendatacommunities.org/id/unitary-authority/peterborough,Peterborough City Council,Capital,Capital,Capital Pending Update to BS,05/08/2015 00:00,754376,1175.96,CAPITAL,BUILDING AND SITE WORKS,The K A Wing Group Ltd
Peterborough,http://opendatacommunities.org/id/unitary-authority/peterborough,Peterborough City Council,Capital,Capital,Capital Pending Update to BS,05/08/2015 00:00,754377,1203.83,CAPITAL,BUILDING AND SITE WORKS,The K A Wing Group Ltd
Peterborough,http://opendatacommunities.org/id/unitary-authority/peterborough,Peterborough City Council,Capital,Capital,Capital Pending Update to BS,05/08/2015 00:00,754398,930,CAPITAL,GRANT PAYMENT,New Peterborough Carpets
Peterborough,http://opendatacommunities.org/id/unitary-authority/peterborough,Peterborough City Council,Capital,Capital,Capital Pending Update to BS,05/08/2015 00:00,754451,591.84,CAPITAL,BUILDING AND SITE WORKS,The K A Wing Group Ltd
Peterborough,http://opendatacommunities.org/id/unitary-authority/peterborough,Peterborough City Council,Capital,Capital,Capital Pending Update to BS,05/08/2015 00:00,754452,5239.9,CAPITAL,BUILDING AND SITE WORKS,The K A Wing Group Ltd
Peterborough,http://opendatacommunities.org/id/unitary-authority/peterborough,Peterborough City Council,Capital,Capital,Capital Pending Update to BS,05/08/2015 00:00,754458,33133.17,CAPITAL,INFRASTRUCTURE,Ringway Infrastructure Services
Peterborough,http://opendatacommunities.org/id/unitary-authority/peterborough,Peterborough City Council,Capital,Capital,Capital Pending Update to BS,05/08/2015 00:00,754460,49645.49,CAPITAL,INFRASTRUCTURE,Ringway Infrastructure Services
Peterborough,http://opendatacommunities.org/id/unitary-authority/peterborough,Peterborough City Council,Capital,Capital,Capital Pending Update to BS,05/08/2015 00:00,754564,805.06,CAPITAL,BUILDING AND SITE WORKS,Enterprise Managed Services Limited
Peterborough,http://opendatacommunities.org/id/unitary-authority/peterborough,Peterborough City Council,Public Health,Substance Misuse,Third Party Payments,05/08/2015 00:00,754660,1334,REVENUE,THIRD PARTY PAYMENTS - CONTRACT,Millfield Pharmacy
Peterborough,http://opendatacommunities.org/id/unitary-authority/peterborough,Peterborough City Council,Children's & Education Services - Children's Social Care,Other Children's & Families Services,Employees,05/08/2015 00:00,755716,1598.4,REVENUE,EXTERNAL TEMPORARY STAFF,Sanctuary Personnel Ltd
Peterborough,http://opendatacommunities.org/id/unitary-authority/peterborough,Peterborough City Council,Children's & Education Services - Education,Secondary,Supplies and Services,05/08/2015 00:00,755719,61200,REVENUE,HIRED SERVICES,The EAL Academy
Peterborough,http://opendatacommunities.org/id/unitary-authority/peterborough,Peterborough City Council,More than one Service Area Category,More than one Service Division,More than one Expenses Type,05/08/2015 00:00,755780,4105,"Mixture of Capital, Revenue and/or Balance Sheet",GRANT PAYMENT,Casbon Building Services
Peterborough,http://opendatacommunities.org/id/unitary-authority/peterborough,Peterborough City Council,Adult Social Care,Adult Mental Health,Supplies and Services,05/08/2015 00:00,755837,3244,REVENUE,RESIDENTIAL CARE,The Richmond Fellowship
Peterborough,http://opendatacommunities.org/id/unitary-authority/peterborough,Peterborough City Council,Capital,Capital,Capital Pending Update to BS,05/08/2015 00:00,755917,135650.4,CAPITAL,CONSULTANTS FEES,AECOM I & E Ltd
Peterborough,http://opendatacommunities.org/id/unitary-authority/peterborough,Peterborough City Council,Capital,Capital,Capital Pending Update to BS,05/08/2015 00:00,755919,36112.8,CAPITAL,CONSULTANTS FEES,AECOM I & E Ltd
Peterborough,http://opendatacommunities.org/id/unitary-authority/peterborough,Peterborough City Council,More than one Service Area Category,More than one Service Division,More than one Expenses Type,05/08/2015 00:00,755977,6857,"Mixture of Capital, Revenue and/or Balance Sheet",GRANT PAYMENT,Casbon Building Services
Peterborough,http://opendatacommunities.org/id/unitary-authority/peterborough,Peterborough City Council,More than one Service Area Category,More than one Service Division,More than one Expenses Type,05/08/2015 00:00,755978,4932.59,"Mixture of Capital, Revenue and/or Balance Sheet",GRANT PAYMENT,Casbon Building Services
Peterborough,http://opendatacommunities.org/id/unitary-authority/peterborough,Peterborough City Council,More than one Service Area Category,More than one Service Division,Premises,05/08/2015 00:00,755998,609.04,REVENUE,WATER,Anglian Water
Peterborough,http://opendatacommunities.org/id/unitary-authority/peterborough,Peterborough City Council,More than one Service Area Category,More than one Service Division,Premises,05/08/2015 00:00,755999,4771.96,REVENUE,ELECTRICITY,British Gas Business
Peterborough,http://opendatacommunities.org/id/unitary-authority/peterborough,Peterborough City Council,More than one Service Area Category,More than one Service Division,Premises,05/08/2015 00:00,756000,1219.39,REVENUE,ELECTRICITY,British Gas Business
Peterborough,http://opendatacommunities.org/id/unitary-authority/peterborough,Peterborough City Council,More than one Service Area Category,More than one Service Division,Premises,05/08/2015 00:00,756001,4211.28,REVENUE,ELECTRICITY,British Gas Business
Peterborough,http://opendatacommunities.org/id/unitary-authority/peterborough,Peterborough City Council,More than one Service Area Category,More than one Service Division,Premises,05/08/2015 00:00,756002,768.83,REVENUE,ELECTRICITY,British Gas Business
Peterborough,http://opendatacommunities.org/id/unitary-authority/peterborough,Peterborough City Council,Adult Social Care,Adult Learning Disabilities,More than one Expenses Type,05/08/2015 00:00,756006,8327.88,REVENUE,ADULT SOCIAL CARE DIRECT PAYMENT,Redacted Personal Data
Peterborough,http://opendatacommunities.org/id/unitary-authority/peterborough,Peterborough City Council,Adult Social Care,Older People,Supplies and Services,05/08/2015 00:00,756007,982.92,REVENUE,ADULT SOCIAL CARE DIRECT PAYMENT,Redacted Personal Data
Peterborough,http://opendatacommunities.org/id/unitary-authority/peterborough,Peterborough City Council,Adult Social Care,Adult Learning Disabilities,More than one Expenses Type,05/08/2015 00:00,756008,1442.68,REVENUE,ADULT SOCIAL CARE DIRECT PAYMENT,Redacted Personal Data
Peterborough,http://opendatacommunities.org/id/unitary-authority/peterborough,Peterborough City Council,Adult Social Care,Adult Learning Disabilities,Supplies and Services,05/08/2015 00:00,756012,3307.24,REVENUE,ADULT SOCIAL CARE DIRECT PAYMENT,Redacted Personal Data
Peterborough,http://opendatacommunities.org/id/unitary-authority/peterborough,Peterborough City Council,Adult Social Care,Adult Learning Disabilities,Supplies and Services,05/08/2015 00:00,756013,7157.48,REVENUE,ADULT SOCIAL CARE DIRECT PAYMENT,Redacted Personal Data
Peterborough,http://opendatacommunities.org/id/unitary-authority/peterborough,Peterborough City Council,Adult Social Care,Adult Physical Disability & Sensory Impairment,More than one Expenses Type,05/08/2015 00:00,756014,1323.44,REVENUE,ADULT SOCIAL CARE DIRECT PAYMENT,Redacted Personal Data
Peterborough,http://opendatacommunities.org/id/unitary-authority/peterborough,Peterborough City Council,Adult Social Care,Adult Learning Disabilities,More than one Expenses Type,05/08/2015 00:00,756015,1370.44,REVENUE,ADULT SOCIAL CARE DIRECT PAYMENT,Redacted Personal Data
Peterborough,http://opendatacommunities.org/id/unitary-authority/peterborough,Peterborough City Council,Adult Social Care,Adult Physical Disability & Sensory Impairment,More than one Expenses Type,05/08/2015 00:00,756016,941.04,REVENUE,ADULT SOCIAL CARE DIRECT PAYMENT,Redacted Personal Data
Peterborough,http://opendatacommunities.org/id/unitary-authority/peterborough,Peterborough City Council,Adult Social Care,Adult Physical Disability & Sensory Impairment,Supplies and Services,05/08/2015 00:00,756020,1159.2,REVENUE,ADULT SOCIAL CARE DIRECT PAYMENT,Redacted Personal Data
Peterborough,http://opendatacommunities.org/id/unitary-authority/peterborough,Peterborough City Council,Adult Social Care,Older People,More than one Expenses Type,05/08/2015 00:00,756021,1005.6,REVENUE,ADULT SOCIAL CARE DIRECT PAYMENT,Redacted Personal Data
Peterborough,http://opendatacommunities.org/id/unitary-authority/peterborough,Peterborough City Council,Adult Social Care,Older People,Supplies and Services,05/08/2015 00:00,756023,1591.84,REVENUE,ADULT SOCIAL CARE DIRECT PAYMENT,Redacted Personal Data
Peterborough,http://opendatacommunities.org/id/unitary-authority/peterborough,Peterborough City Council,Adult Social Care,Adult Learning Disabilities,More than one Expenses Type,05/08/2015 00:00,756024,714.88,REVENUE,ADULT SOCIAL CARE DIRECT PAYMENT,Redacted Personal Data
Peterborough,http://opendatacommunities.org/id/unitary-authority/peterborough,Peterborough City Council,Adult Social Care,Adult Learning Disabilities,More than one Expenses Type,05/08/2015 00:00,756025,983.56,REVENUE,ADULT SOCIAL CARE DIRECT PAYMENT,Redacted Personal Data
Peterborough,http://opendatacommunities.org/id/unitary-authority/peterborough,Peterborough City Council,Adult Social Care,Adult Learning Disabilities,More than one Expenses Type,05/08/2015 00:00,756026,768.6,REVENUE,ADULT SOCIAL CARE DIRECT PAYMENT,Redacted Personal Data
Peterborough,http://opendatacommunities.org/id/unitary-authority/peterborough,Peterborough City Council,Adult Social Care,Adult Learning Disabilities,More than one Expenses Type,05/08/2015 00:00,756027,6472.84,REVENUE,ADULT SOCIAL CARE DIRECT PAYMENT,Redacted Personal Data
Peterborough,http://opendatacommunities.org/id/unitary-authority/peterborough,Peterborough City Council,Adult Social Care,Adult Learning Disabilities,More than one Expenses Type,05/08/2015 00:00,756028,5067.16,REVENUE,ADULT SOCIAL CARE DIRECT PAYMENT,Redacted Personal Data
Peterborough,http://opendatacommunities.org/id/unitary-authority/peterborough,Peterborough City Council,Adult Social Care,Adult Learning Disabilities,Supplies and Services,05/08/2015 00:00,756029,702.2,REVENUE,ADULT SOCIAL CARE DIRECT PAYMENT,Redacted Personal Data
Peterborough,http://opendatacommunities.org/id/unitary-authority/peterborough,Peterborough City Council,Adult Social Care,Older People,More than one Expenses Type,05/08/2015 00:00,756030,4995.6,REVENUE,ADULT SOCIAL CARE DIRECT PAYMENT,Redacted Personal Data
Peterborough,http://opendatacommunities.org/id/unitary-authority/peterborough,Peterborough City Council,Adult Social Care,Adult Physical Disability & Sensory Impairment,More than one Expenses Type,05/08/2015 00:00,756033,5948.68,REVENUE,ADULT SOCIAL CARE DIRECT PAYMENT,Redacted Personal Data
Peterborough,http://opendatacommunities.org/id/unitary-authority/peterborough,Peterborough City Council,Adult Social Care,Older People,More than one Expenses Type,05/08/2015 00:00,756034,3463.04,REVENUE,ADULT SOCIAL CARE DIRECT PAYMENT,Redacted Personal Data
Peterborough,http://opendatacommunities.org/id/unitary-authority/peterborough,Peterborough City Council,Adult Social Care,Adult Learning Disabilities,Supplies and Services,05/08/2015 00:00,756035,580.84,REVENUE,ADULT SOCIAL CARE DIRECT PAYMENT,Redacted Personal Data
Peterborough,http://opendatacommunities.org/id/unitary-authority/peterborough,Peterborough City Council,Adult Social Care,Older People,Supplies and Services,05/08/2015 00:00,756036,606.16,REVENUE,ADULT SOCIAL CARE DIRECT PAYMENT,Redacted Personal Data
Peterborough,http://opendatacommunities.org/id/unitary-authority/peterborough,Peterborough City Council,Adult Social Care,Adult Learning Disabilities,Supplies and Services,05/08/2015 00:00,756037,1547.76,REVENUE,ADULT SOCIAL CARE DIRECT PAYMENT,Redacted Personal Data
Peterborough,http://opendatacommunities.org/id/unitary-authority/peterborough,Peterborough City Council,Adult Social Care,Older People,More than one Expenses Type,05/08/2015 00:00,756039,2431.6,REVENUE,ADULT SOCIAL CARE DIRECT PAYMENT,Redacted Personal Data
Peterborough,http://opendatacommunities.org/id/unitary-authority/peterborough,Peterborough City Council,Adult Social Care,Adult Learning Disabilities,More than one Expenses Type,05/08/2015 00:00,756040,764.08,REVENUE,ADULT SOCIAL CARE DIRECT PAYMENT,Redacted Personal Data
Peterborough,http://opendatacommunities.org/id/unitary-authority/peterborough,Peterborough City Council,Adult Social Care,Adult Learning Disabilities,More than one Expenses Type,05/08/2015 00:00,756041,6670.44,REVENUE,ADULT SOCIAL CARE DIRECT PAYMENT,Redacted Personal Data
Peterborough,http://opendatacommunities.org/id/unitary-authority/peterborough,Peterborough City Council,Adult Social Care,Adult Learning Disabilities,More than one Expenses Type,05/08/2015 00:00,756042,2592.04,REVENUE,ADULT SOCIAL CARE DIRECT PAYMENT,Redacted Personal Data
Peterborough,http://opendatacommunities.org/id/unitary-authority/peterborough,Peterborough City Council,Adult Social Care,Adult Physical Disability & Sensory Impairment,Supplies and Services,05/08/2015 00:00,756043,1397.52,REVENUE,ADULT SOCIAL CARE DIRECT PAYMENT,Redacted Personal Data
Peterborough,http://opendatacommunities.org/id/unitary-authority/peterborough,Peterborough City Council,Adult Social Care,Adult Learning Disabilities,Supplies and Services,05/08/2015 00:00,756045,2339.56,REVENUE,ADULT SOCIAL CARE DIRECT PAYMENT,Redacted Personal Data
Peterborough,http://opendatacommunities.org/id/unitary-authority/peterborough,Peterborough City Council,Adult Social Care,Older People,Supplies and Services,05/08/2015 00:00,756046,1211.88,REVENUE,ADULT SOCIAL CARE DIRECT PAYMENT,Redacted Personal Data
Peterborough,http://opendatacommunities.org/id/unitary-authority/peterborough,Peterborough City Council,Adult Social Care,Older People,More than one Expenses Type,05/08/2015 00:00,756048,1647.64,REVENUE,ADULT SOCIAL CARE DIRECT PAYMENT,Redacted Personal Data
Peterborough,http://opendatacommunities.org/id/unitary-authority/peterborough,Peterborough City Council,Adult Social Care,Adult Learning Disabilities,More than one Expenses Type,05/08/2015 00:00,756049,651.4,REVENUE,ADULT SOCIAL CARE DIRECT PAYMENT,Redacted Personal Data
Peterborough,http://opendatacommunities.org/id/unitary-authority/peterborough,Peterborough City Council,Adult Social Care,Older People,Supplies and Services,05/08/2015 00:00,756050,1089.48,REVENUE,ADULT SOCIAL CARE DIRECT PAYMENT,Redacted Personal Data
Peterborough,http://opendatacommunities.org/id/unitary-authority/peterborough,Peterborough City Council,Adult Social Care,Adult Learning Disabilities,More than one Expenses Type,05/08/2015 00:00,756051,2650.96,REVENUE,ADULT SOCIAL CARE DIRECT PAYMENT,Redacted Personal Data
Peterborough,http://opendatacommunities.org/id/unitary-authority/peterborough,Peterborough City Council,Adult Social Care,Adult Learning Disabilities,Supplies and Services,05/08/2015 00:00,756052,592.32,REVENUE,ADULT SOCIAL CARE DIRECT PAYMENT,Redacted Personal Data
Peterborough,http://opendatacommunities.org/id/unitary-authority/peterborough,Peterborough City Council,Adult Social Care,Adult Learning Disabilities,More than one Expenses Type,05/08/2015 00:00,756053,1669.56,REVENUE,ADULT SOCIAL CARE DIRECT PAYMENT,Redacted Personal Data
Peterborough,http://opendatacommunities.org/id/unitary-authority/peterborough,Peterborough City Council,Adult Social Care,Adult Learning Disabilities,More than one Expenses Type,05/08/2015 00:00,756054,1669.08,REVENUE,ADULT SOCIAL CARE DIRECT PAYMENT,Redacted Personal Data
Peterborough,http://opendatacommunities.org/id/unitary-authority/peterborough,Peterborough City Council,Adult Social Care,Adult Learning Disabilities,Supplies and Services,05/08/2015 00:00,756055,1339.16,REVENUE,ADULT SOCIAL CARE DIRECT PAYMENT,Redacted Personal Data
Peterborough,http://opendatacommunities.org/id/unitary-authority/peterborough,Peterborough City Council,Adult Social Care,Adult Learning Disabilities,More than one Expenses Type,05/08/2015 00:00,756056,5932.48,REVENUE,ADULT SOCIAL CARE DIRECT PAYMENT,Redacted Personal Data
Peterborough,http://opendatacommunities.org/id/unitary-authority/peterborough,Peterborough City Council,Adult Social Care,Adult Learning Disabilities,Supplies and Services,05/08/2015 00:00,756057,1614.24,REVENUE,ADULT SOCIAL CARE DIRECT PAYMENT,Redacted Personal Data
Peterborough,http://opendatacommunities.org/id/unitary-authority/peterborough,Peterborough City Council,Adult Social Care,Adult Learning Disabilities,More than one Expenses Type,05/08/2015 00:00,756058,1285.36,REVENUE,ADULT SOCIAL CARE DIRECT PAYMENT,Redacted Personal Data
Peterborough,http://opendatacommunities.org/id/unitary-authority/peterborough,Peterborough City Council,Adult Social Care,Adult Learning Disabilities,Supplies and Services,05/08/2015 00:00,756060,2426.32,REVENUE,ADULT SOCIAL CARE DIRECT PAYMENT,Redacted Personal Data
Peterborough,http://opendatacommunities.org/id/unitary-authority/peterborough,Peterborough City Council,Adult Social Care,Adult Learning Disabilities,Supplies and Services,05/08/2015 00:00,756062,1991.4,REVENUE,ADULT SOCIAL CARE DIRECT PAYMENT,Redacted Personal Data
Peterborough,http://opendatacommunities.org/id/unitary-authority/peterborough,Peterborough City Council,Adult Social Care,Older People,Supplies and Services,05/08/2015 00:00,756063,960.6,REVENUE,ADULT SOCIAL CARE DIRECT PAYMENT,Redacted Personal Data
Peterborough,http://opendatacommunities.org/id/unitary-authority/peterborough,Peterborough City Council,Adult Social Care,Adult Learning Disabilities,More than one Expenses Type,05/08/2015 00:00,756066,2815.24,REVENUE,ADULT SOCIAL CARE DIRECT PAYMENT,Redacted Personal Data
Peterborough,http://opendatacommunities.org/id/unitary-authority/peterborough,Peterborough City Council,Adult Social Care,Adult Learning Disabilities,More than one Expenses Type,05/08/2015 00:00,756067,547.24,REVENUE,ADULT SOCIAL CARE DIRECT PAYMENT,Redacted Personal Data
Peterborough,http://opendatacommunities.org/id/unitary-authority/peterborough,Peterborough City Council,Adult Social Care,Older People,More than one Expenses Type,05/08/2015 00:00,756068,680.8,REVENUE,ADULT SOCIAL CARE DIRECT PAYMENT,Redacted Personal Data
Peterborough,http://opendatacommunities.org/id/unitary-authority/peterborough,Peterborough City Council,Adult Social Care,Adult Learning Disabilities,Supplies and Services,05/08/2015 00:00,756069,1340.4,REVENUE,ADULT SOCIAL CARE DIRECT PAYMENT,Redacted Personal Data
Peterborough,http://opendatacommunities.org/id/unitary-authority/peterborough,Peterborough City Council,Adult Social Care,Adult Learning Disabilities,Supplies and Services,05/08/2015 00:00,756070,1436,REVENUE,ADULT SOCIAL CARE DIRECT PAYMENT,Redacted Personal Data
Peterborough,http://opendatacommunities.org/id/unitary-authority/peterborough,Peterborough City Council,Adult Social Care,Adult Learning Disabilities,Supplies and Services,05/08/2015 00:00,756072,2090.6,REVENUE,ADULT SOCIAL CARE DIRECT PAYMENT,Redacted Personal Data
Peterborough,http://opendatacommunities.org/id/unitary-authority/peterborough,Peterborough City Council,Adult Social Care,Adult Learning Disabilities,More than one Expenses Type,05/08/2015 00:00,756073,2632.48,REVENUE,ADULT SOCIAL CARE DIRECT PAYMENT,Redacted Personal Data
Peterborough,http://opendatacommunities.org/id/unitary-authority/peterborough,Peterborough City Council,Adult Social Care,Older People,Supplies and Services,05/08/2015 00:00,756074,2174.32,REVENUE,ADULT SOCIAL CARE DIRECT PAYMENT,Redacted Personal Data
Peterborough,http://opendatacommunities.org/id/unitary-authority/peterborough,Peterborough City Council,Adult Social Care,Adult Learning Disabilities,More than one Expenses Type,05/08/2015 00:00,756075,1700,REVENUE,ADULT SOCIAL CARE DIRECT PAYMENT,Redacted Personal Data
Peterborough,http://opendatacommunities.org/id/unitary-authority/peterborough,Peterborough City Council,Adult Social Care,Older People,Supplies and Services,05/08/2015 00:00,756076,1670.2,REVENUE,ADULT SOCIAL CARE DIRECT PAYMENT,Redacted Personal Data
Peterborough,http://opendatacommunities.org/id/unitary-authority/peterborough,Peterborough City Council,Adult Social Care,Older People,More than one Expenses Type,05/08/2015 00:00,756077,2313.84,REVENUE,ADULT SOCIAL CARE DIRECT PAYMENT,Redacted Personal Data
Peterborough,http://opendatacommunities.org/id/unitary-authority/peterborough,Peterborough City Council,Adult Social Care,Adult Learning Disabilities,Supplies and Services,05/08/2015 00:00,756083,705.36,REVENUE,ADULT SOCIAL CARE DIRECT PAYMENT,Redacted Personal Data
Peterborough,http://opendatacommunities.org/id/unitary-authority/peterborough,Peterborough City Council,Adult Social Care,Older People,More than one Expenses Type,05/08/2015 00:00,756084,972.72,REVENUE,ADULT SOCIAL CARE DIRECT PAYMENT,Redacted Personal Data
Peterborough,http://opendatacommunities.org/id/unitary-authority/peterborough,Peterborough City Council,Adult Social Care,Adult Learning Disabilities,Supplies and Services,05/08/2015 00:00,756085,2537.36,REVENUE,ADULT SOCIAL CARE DIRECT PAYMENT,Redacted Personal Data
Peterborough,http://opendatacommunities.org/id/unitary-authority/peterborough,Peterborough City Council,Adult Social Care,Older People,Supplies and Services,05/08/2015 00:00,756086,889.76,REVENUE,ADULT SOCIAL CARE DIRECT PAYMENT,Redacted Personal Data
Peterborough,http://opendatacommunities.org/id/unitary-authority/peterborough,Peterborough City Council,Adult Social Care,Older People,Supplies and Services,05/08/2015 00:00,756089,587.64,REVENUE,ADULT SOCIAL CARE DIRECT PAYMENT,Redacted Personal Data
Peterborough,http://opendatacommunities.org/id/unitary-authority/peterborough,Peterborough City Council,Adult Social Care,Adult Physical Disability & Sensory Impairment,Supplies and Services,05/08/2015 00:00,756090,2176,REVENUE,ADULT SOCIAL CARE DIRECT PAYMENT,Redacted Personal Data
Peterborough,http://opendatacommunities.org/id/unitary-authority/peterborough,Peterborough City Council,Adult Social Care,Older People,Supplies and Services,05/08/2015 00:00,756091,852.32,REVENUE,ADULT SOCIAL CARE DIRECT PAYMENT,Redacted Personal Data
Peterborough,http://opendatacommunities.org/id/unitary-authority/peterborough,Peterborough City Council,Adult Social Care,Adult Learning Disabilities,Supplies and Services,05/08/2015 00:00,756092,958.88,REVENUE,ADULT SOCIAL CARE DIRECT PAYMENT,Redacted Personal Data
Peterborough,http://opendatacommunities.org/id/unitary-authority/peterborough,Peterborough City Council,Adult Social Care,Adult Physical Disability & Sensory Impairment,Supplies and Services,05/08/2015 00:00,756093,1716.32,REVENUE,ADULT SOCIAL CARE DIRECT PAYMENT,Redacted Personal Data
Peterborough,http://opendatacommunities.org/id/unitary-authority/peterborough,Peterborough City Council,Adult Social Care,Older People,Supplies and Services,05/08/2015 00:00,756096,655.2,REVENUE,ADULT SOCIAL CARE DIRECT PAYMENT,Redacted Personal Data
Peterborough,http://opendatacommunities.org/id/unitary-authority/peterborough,Peterborough City Council,Adult Social Care,Older People,Supplies and Services,05/08/2015 00:00,756098,619.52,REVENUE,ADULT SOCIAL CARE DIRECT PAYMENT,Redacted Personal Data
Peterborough,http://opendatacommunities.org/id/unitary-authority/peterborough,Peterborough City Council,Adult Social Care,Adult Physical Disability & Sensory Impairment,Supplies and Services,05/08/2015 00:00,756102,637.84,REVENUE,ADULT SOCIAL CARE DIRECT PAYMENT,Redacted Personal Data
Peterborough,http://opendatacommunities.org/id/unitary-authority/peterborough,Peterborough City Council,Adult Social Care,Older People,More than one Expenses Type,05/08/2015 00:00,756104,689,REVENUE,ADULT SOCIAL CARE DIRECT PAYMENT,Redacted Personal Data
Peterborough,http://opendatacommunities.org/id/unitary-authority/peterborough,Peterborough City Council,Adult Social Care,Adult Learning Disabilities,Supplies and Services,05/08/2015 00:00,756105,1273.88,REVENUE,ADULT SOCIAL CARE DIRECT PAYMENT,Redacted Personal Data
Peterborough,http://opendatacommunities.org/id/unitary-authority/peterborough,Peterborough City Council,Adult Social Care,Older People,More than one Expenses Type,05/08/2015 00:00,756109,1567.52,REVENUE,ADULT SOCIAL CARE DIRECT PAYMENT,Redacted Personal Data
Peterborough,http://opendatacommunities.org/id/unitary-authority/peterborough,Peterborough City Council,Adult Social Care,Older People,More than one Expenses Type,05/08/2015 00:00,756110,671.64,REVENUE,ADULT SOCIAL CARE DIRECT PAYMENT,Redacted Personal Data
Peterborough,http://opendatacommunities.org/id/unitary-authority/peterborough,Peterborough City Council,Adult Social Care,Older People,Supplies and Services,05/08/2015 00:00,756111,625.52,REVENUE,ADULT SOCIAL CARE DIRECT PAYMENT,Redacted Personal Data
Peterborough,http://opendatacommunities.org/id/unitary-authority/peterborough,Peterborough City Council,Adult Social Care,Older People,Supplies and Services,05/08/2015 00:00,756114,1005.32,REVENUE,ADULT SOCIAL CARE DIRECT PAYMENT,Redacted Personal Data
Peterborough,http://opendatacommunities.org/id/unitary-authority/peterborough,Peterborough City Council,Adult Social Care,Older People,Supplies and Services,05/08/2015 00:00,756115,760.88,REVENUE,ADULT SOCIAL CARE DIRECT PAYMENT,Redacted Personal Data
Peterborough,http://opendatacommunities.org/id/unitary-authority/peterborough,Peterborough City Council,Adult Social Care,Older People,Supplies and Services,05/08/2015 00:00,756116,725.08,REVENUE,ADULT SOCIAL CARE DIRECT PAYMENT,Redacted Personal Data
Peterborough,http://opendatacommunities.org/id/unitary-authority/peterborough,Peterborough City Council,Adult Social Care,Older People,Supplies and Services,05/08/2015 00:00,756117,967.76,REVENUE,ADULT SOCIAL CARE DIRECT PAYMENT,Redacted Personal Data
Peterborough,http://opendatacommunities.org/id/unitary-authority/peterborough,Peterborough City Council,Adult Social Care,Older People,More than one Expenses Type,05/08/2015 00:00,756118,901.04,REVENUE,ADULT SOCIAL CARE DIRECT PAYMENT,Redacted Personal Data
Peterborough,http://opendatacommunities.org/id/unitary-authority/peterborough,Peterborough City Council,Adult Social Care,Older People,More than one Expenses Type,05/08/2015 00:00,756119,1170.8,REVENUE,ADULT SOCIAL CARE DIRECT PAYMENT,Redacted Personal Data
Peterborough,http://opendatacommunities.org/id/unitary-authority/peterborough,Peterborough City Council,Adult Social Care,Older People,Supplies and Services,05/08/2015 00:00,756120,915.96,REVENUE,ADULT SOCIAL CARE DIRECT PAYMENT,Redacted Personal Data
Peterborough,http://opendatacommunities.org/id/unitary-authority/peterborough,Peterborough City Council,Adult Social Care,Older People,More than one Expenses Type,05/08/2015 00:00,756122,1424.12,REVENUE,ADULT SOCIAL CARE DIRECT PAYMENT,Redacted Personal Data
Peterborough,http://opendatacommunities.org/id/unitary-authority/peterborough,Peterborough City Council,Adult Social Care,Older People,Supplies and Services,05/08/2015 00:00,756124,1012.44,REVENUE,ADULT SOCIAL CARE DIRECT PAYMENT,Redacted Personal Data
Peterborough,http://opendatacommunities.org/id/unitary-authority/peterborough,Peterborough City Council,Adult Social Care,Older People,Supplies and Services,05/08/2015 00:00,756125,603.2,REVENUE,ADULT SOCIAL CARE DIRECT PAYMENT,Redacted Personal Data
Peterborough,http://opendatacommunities.org/id/unitary-authority/peterborough,Peterborough City Council,Adult Social Care,Older People,Supplies and Services,05/08/2015 00:00,756129,2467.8,REVENUE,ADULT SOCIAL CARE DIRECT PAYMENT,Redacted Personal Data
Peterborough,http://opendatacommunities.org/id/unitary-authority/peterborough,Peterborough City Council,Adult Social Care,Older People,More than one Expenses Type,05/08/2015 00:00,756130,1490,REVENUE,ADULT SOCIAL CARE DIRECT PAYMENT,Redacted Personal Data
Peterborough,http://opendatacommunities.org/id/unitary-authority/peterborough,Peterborough City Council,Adult Social Care,Older People,More than one Expenses Type,05/08/2015 00:00,756131,1978.92,REVENUE,ADULT SOCIAL CARE DIRECT PAYMENT,Redacted Personal Data
Peterborough,http://opendatacommunities.org/id/unitary-authority/peterborough,Peterborough City Council,Adult Social Care,Older People,Supplies and Services,05/08/2015 00:00,756132,1376.32,REVENUE,ADULT SOCIAL CARE DIRECT PAYMENT,Redacted Personal Data
Peterborough,http://opendatacommunities.org/id/unitary-authority/peterborough,Peterborough City Council,Adult Social Care,Older People,Supplies and Services,05/08/2015 00:00,756133,733.36,REVENUE,ADULT SOCIAL CARE DIRECT PAYMENT,Redacted Personal Data
Peterborough,http://opendatacommunities.org/id/unitary-authority/peterborough,Peterborough City Council,Adult Social Care,Older People,Supplies and Services,05/08/2015 00:00,756134,2720,REVENUE,ADULT SOCIAL CARE DIRECT PAYMENT,Redacted Personal Data
Peterborough,http://opendatacommunities.org/id/unitary-authority/peterborough,Peterborough City Council,Adult Social Care,Older People,More than one Expenses Type,05/08/2015 00:00,756135,2962.24,REVENUE,ADULT SOCIAL CARE DIRECT PAYMENT,Redacted Personal Data
Peterborough,http://opendatacommunities.org/id/unitary-authority/peterborough,Peterborough City Council,Adult Social Care,Older People,Supplies and Services,05/08/2015 00:00,756137,1340.4,REVENUE,ADULT SOCIAL CARE DIRECT PAYMENT,Redacted Personal Data
Peterborough,http://opendatacommunities.org/id/unitary-authority/peterborough,Peterborough City Council,Adult Social Care,Older People,More than one Expenses Type,05/08/2015 00:00,756138,1688.52,REVENUE,ADULT SOCIAL CARE DIRECT PAYMENT,Redacted Personal Data
Peterborough,http://opendatacommunities.org/id/unitary-authority/peterborough,Peterborough City Council,Adult Social Care,Older People,Supplies and Services,05/08/2015 00:00,756141,878.92,REVENUE,ADULT SOCIAL CARE DIRECT PAYMENT,Redacted Personal Data
Peterborough,http://opendatacommunities.org/id/unitary-authority/peterborough,Peterborough City Council,Adult Social Care,Older People,Supplies and Services,05/08/2015 00:00,756144,520,REVENUE,ADULT SOCIAL CARE DIRECT PAYMENT,Redacted Personal Data
Peterborough,http://opendatacommunities.org/id/unitary-authority/peterborough,Peterborough City Council,Adult Social Care,Older People,More than one Expenses Type,05/08/2015 00:00,756146,1785.32,REVENUE,ADULT SOCIAL CARE DIRECT PAYMENT,Redacted Personal Data
Peterborough,http://opendatacommunities.org/id/unitary-authority/peterborough,Peterborough City Council,Adult Social Care,Older People,Supplies and Services,05/08/2015 00:00,756147,1390.12,REVENUE,ADULT SOCIAL CARE DIRECT PAYMENT,Redacted Personal Data
Peterborough,http://opendatacommunities.org/id/unitary-authority/peterborough,Peterborough City Council,Adult Social Care,Older People,More than one Expenses Type,05/08/2015 00:00,756148,1051.44,REVENUE,ADULT SOCIAL CARE DIRECT PAYMENT,Redacted Personal Data
Peterborough,http://opendatacommunities.org/id/unitary-authority/peterborough,Peterborough City Council,Adult Social Care,Adult Learning Disabilities,More than one Expenses Type,05/08/2015 00:00,756153,2912,REVENUE,ADULT SOCIAL CARE DIRECT PAYMENT,Redacted Personal Data
Peterborough,http://opendatacommunities.org/id/unitary-authority/peterborough,Peterborough City Council,Adult Social Care,Older People,More than one Expenses Type,05/08/2015 00:00,756154,1750.96,REVENUE,ADULT SOCIAL CARE DIRECT PAYMENT,Redacted Personal Data
Peterborough,http://opendatacommunities.org/id/unitary-authority/peterborough,Peterborough City Council,Adult Social Care,Adult Physical Disability & Sensory Impairment,Supplies and Services,05/08/2015 00:00,756156,619.4,REVENUE,ADULT SOCIAL CARE DIRECT PAYMENT,Redacted Personal Data
Peterborough,http://opendatacommunities.org/id/unitary-authority/peterborough,Peterborough City Council,Adult Social Care,Older People,Supplies and Services,05/08/2015 00:00,756158,1037.84,REVENUE,ADULT SOCIAL CARE DIRECT PAYMENT,Redacted Personal Data
Peterborough,http://opendatacommunities.org/id/unitary-authority/peterborough,Peterborough City Council,Adult Social Care,Older People,Supplies and Services,05/08/2015 00:00,756159,2240.8,REVENUE,ADULT SOCIAL CARE DIRECT PAYMENT,Redacted Personal Data
Peterborough,http://opendatacommunities.org/id/unitary-authority/peterborough,Peterborough City Council,Adult Social Care,Older People,More than one Expenses Type,05/08/2015 00:00,756160,1512.4,REVENUE,ADULT SOCIAL CARE DIRECT PAYMENT,Redacted Personal Data
Peterborough,http://opendatacommunities.org/id/unitary-authority/peterborough,Peterborough City Council,Adult Social Care,Older People,More than one Expenses Type,05/08/2015 00:00,756163,931.2,REVENUE,ADULT SOCIAL CARE DIRECT PAYMENT,Redacted Personal Data
Peterborough,http://opendatacommunities.org/id/unitary-authority/peterborough,Peterborough City Council,Adult Social Care,Adult Learning Disabilities,More than one Expenses Type,05/08/2015 00:00,756164,3867.16,REVENUE,ADULT SOCIAL CARE DIRECT PAYMENT,Redacted Personal Data
Peterborough,http://opendatacommunities.org/id/unitary-authority/peterborough,Peterborough City Council,Adult Social Care,Older People,Supplies and Services,05/08/2015 00:00,756165,606.6,REVENUE,ADULT SOCIAL CARE DIRECT PAYMENT,Redacted Personal Data
Peterborough,http://opendatacommunities.org/id/unitary-authority/peterborough,Peterborough City Council,Adult Social Care,Older People,Supplies and Services,05/08/2015 00:00,756167,1303.04,REVENUE,ADULT SOCIAL CARE DIRECT PAYMENT,Redacted Personal Data
Peterborough,http://opendatacommunities.org/id/unitary-authority/peterborough,Peterborough City Council,Adult Social Care,Older People,More than one Expenses Type,05/08/2015 00:00,756168,1308.84,REVENUE,ADULT SOCIAL CARE DIRECT PAYMENT,Redacted Personal Data
Peterborough,http://opendatacommunities.org/id/unitary-authority/peterborough,Peterborough City Council,Adult Social Care,Older People,More than one Expenses Type,05/08/2015 00:00,756170,858.48,REVENUE,ADULT SOCIAL CARE DIRECT PAYMENT,Redacted Personal Data
Peterborough,http://opendatacommunities.org/id/unitary-authority/peterborough,Peterborough City Council,Adult Social Care,Older People,Supplies and Services,05/08/2015 00:00,756172,526.32,REVENUE,ADULT SOCIAL CARE DIRECT PAYMENT,Redacted Personal Data
Peterborough,http://opendatacommunities.org/id/unitary-authority/peterborough,Peterborough City Council,Adult Social Care,Older People,More than one Expenses Type,05/08/2015 00:00,756174,748.04,REVENUE,ADULT SOCIAL CARE DIRECT PAYMENT,Redacted Personal Data
Peterborough,http://opendatacommunities.org/id/unitary-authority/peterborough,Peterborough City Council,Adult Social Care,Older People,Supplies and Services,05/08/2015 00:00,756176,1407.4,REVENUE,ADULT SOCIAL CARE DIRECT PAYMENT,Redacted Personal Data
Peterborough,http://opendatacommunities.org/id/unitary-authority/peterborough,Peterborough City Council,Adult Social Care,Older People,More than one Expenses Type,05/08/2015 00:00,756178,1331.88,REVENUE,ADULT SOCIAL CARE DIRECT PAYMENT,Redacted Personal Data
Peterborough,http://opendatacommunities.org/id/unitary-authority/peterborough,Peterborough City Council,Adult Social Care,Older People,Supplies and Services,05/08/2015 00:00,756183,3287.2,REVENUE,ADULT SOCIAL CARE DIRECT PAYMENT,Redacted Personal Data
Peterborough,http://opendatacommunities.org/id/unitary-authority/peterborough,Peterborough City Council,Adult Social Care,Adult Learning Disabilities,More than one Expenses Type,05/08/2015 00:00,756187,2463,REVENUE,ADULT SOCIAL CARE DIRECT PAYMENT,Redacted Personal Data
Peterborough,http://opendatacommunities.org/id/unitary-authority/peterborough,Peterborough City Council,Adult Social Care,Older People,Supplies and Services,05/08/2015 00:00,756188,915.96,REVENUE,ADULT SOCIAL CARE DIRECT PAYMENT,Redacted Personal Data
Peterborough,http://opendatacommunities.org/id/unitary-authority/peterborough,Peterborough City Council,Adult Social Care,Older People,Supplies and Services,05/08/2015 00:00,756189,938.28,REVENUE,ADULT SOCIAL CARE DIRECT PAYMENT,Redacted Personal Data
Peterborough,http://opendatacommunities.org/id/unitary-authority/peterborough,Peterborough City Council,Adult Social Care,Older People,Supplies and Services,05/08/2015 00:00,756190,1610.96,REVENUE,ADULT SOCIAL CARE DIRECT PAYMENT,Redacted Personal Data
Peterborough,http://opendatacommunities.org/id/unitary-authority/peterborough,Peterborough City Council,Adult Social Care,Older People,Supplies and Services,05/08/2015 00:00,756191,625.52,REVENUE,ADULT SOCIAL CARE DIRECT PAYMENT,Redacted Personal Data
Peterborough,http://opendatacommunities.org/id/unitary-authority/peterborough,Peterborough City Council,Adult Social Care,Adult Physical Disability & Sensory Impairment,Supplies and Services,05/08/2015 00:00,756192,1380,REVENUE,ADULT SOCIAL CARE DIRECT PAYMENT,Redacted Personal Data
Peterborough,http://opendatacommunities.org/id/unitary-authority/peterborough,Peterborough City Council,Adult Social Care,Adult Learning Disabilities,More than one Expenses Type,05/08/2015 00:00,756193,1665,REVENUE,ADULT SOCIAL CARE DIRECT PAYMENT,Redacted Personal Data
Peterborough,http://opendatacommunities.org/id/unitary-authority/peterborough,Peterborough City Council,Adult Social Care,Adult Learning Disabilities,More than one Expenses Type,05/08/2015 00:00,756194,8024.68,REVENUE,ADULT SOCIAL CARE DIRECT PAYMENT,Redacted Personal Data
Peterborough,http://opendatacommunities.org/id/unitary-authority/peterborough,Peterborough City Council,Adult Social Care,Older People,Supplies and Services,05/08/2015 00:00,756195,1559.68,REVENUE,ADULT SOCIAL CARE DIRECT PAYMENT,Redacted Personal Data
Peterborough,http://opendatacommunities.org/id/unitary-authority/peterborough,Peterborough City Council,Adult Social Care,Adult Learning Disabilities,More than one Expenses Type,05/08/2015 00:00,756196,882.72,REVENUE,ADULT SOCIAL CARE DIRECT PAYMENT,Redacted Personal Data
Peterborough,http://opendatacommunities.org/id/unitary-authority/peterborough,Peterborough City Council,Adult Social Care,Adult Learning Disabilities,Supplies and Services,05/08/2015 00:00,756197,2398.8,REVENUE,ADULT SOCIAL CARE DIRECT PAYMENT,Redacted Personal Data
Peterborough,http://opendatacommunities.org/id/unitary-authority/peterborough,Peterborough City Council,Adult Social Care,Adult Learning Disabilities,More than one Expenses Type,05/08/2015 00:00,756199,5927.28,REVENUE,ADULT SOCIAL CARE DIRECT PAYMENT,Redacted Personal Data
Peterborough,http://opendatacommunities.org/id/unitary-authority/peterborough,Peterborough City Council,Adult Social Care,Adult Learning Disabilities,More than one Expenses Type,05/08/2015 00:00,756203,1848.72,REVENUE,ADULT SOCIAL CARE DIRECT PAYMENT,Redacted Personal Data
Peterborough,http://opendatacommunities.org/id/unitary-authority/peterborough,Peterborough City Council,Adult Social Care,Adult Learning Disabilities,Supplies and Services,05/08/2015 00:00,756204,1604.6,REVENUE,ADULT SOCIAL CARE DIRECT PAYMENT,Redacted Personal Data
Peterborough,http://opendatacommunities.org/id/unitary-authority/peterborough,Peterborough City Council,Adult Social Care,Older People,Supplies and Services,05/08/2015 00:00,756205,7015.12,REVENUE,ADULT SOCIAL CARE DIRECT PAYMENT,Redacted Personal Data
Peterborough,http://opendatacommunities.org/id/unitary-authority/peterborough,Peterborough City Council,Adult Social Care,Adult Physical Disability & Sensory Impairment,More than one Expenses Type,05/08/2015 00:00,756206,738.36,REVENUE,ADULT SOCIAL CARE DIRECT PAYMENT,Redacted Personal Data
Peterborough,http://opendatacommunities.org/id/unitary-authority/peterborough,Peterborough City Council,Adult Social Care,Adult Mental Health,More than one Expenses Type,05/08/2015 00:00,756207,937.16,REVENUE,ADULT SOCIAL CARE DIRECT PAYMENT,Redacted Personal Data
Peterborough,http://opendatacommunities.org/id/unitary-authority/peterborough,Peterborough City Council,Adult Social Care,Adult Learning Disabilities,More than one Expenses Type,05/08/2015 00:00,756208,6194.4,REVENUE,ADULT SOCIAL CARE DIRECT PAYMENT,Redacted Personal Data
Peterborough,http://opendatacommunities.org/id/unitary-authority/peterborough,Peterborough City Council,Adult Social Care,Older People,Supplies and Services,05/08/2015 00:00,756209,1161.72,REVENUE,ADULT SOCIAL CARE DIRECT PAYMENT,Redacted Personal Data
Peterborough,http://opendatacommunities.org/id/unitary-authority/peterborough,Peterborough City Council,Adult Social Care,Adult Physical Disability & Sensory Impairment,Supplies and Services,05/08/2015 00:00,756210,647.84,REVENUE,ADULT SOCIAL CARE DIRECT PAYMENT,Redacted Personal Data
Peterborough,http://opendatacommunities.org/id/unitary-authority/peterborough,Peterborough City Council,Adult Social Care,Adult Learning Disabilities,More than one Expenses Type,05/08/2015 00:00,756213,5022.96,REVENUE,ADULT SOCIAL CARE DIRECT PAYMENT,Redacted Personal Data
Peterborough,http://opendatacommunities.org/id/unitary-authority/peterborough,Peterborough City Council,Adult Social Care,Older People,Supplies and Services,05/08/2015 00:00,756214,952,REVENUE,ADULT SOCIAL CARE DIRECT PAYMENT,Redacted Personal Data
Peterborough,http://opendatacommunities.org/id/unitary-authority/peterborough,Peterborough City Council,Adult Social Care,Older People,More than one Expenses Type,05/08/2015 00:00,756216,12791.96,REVENUE,ADULT SOCIAL CARE DIRECT PAYMENT,Redacted Personal Data
Peterborough,http://opendatacommunities.org/id/unitary-authority/peterborough,Peterborough City Council,Adult Social Care,Adult Learning Disabilities,More than one Expenses Type,05/08/2015 00:00,756217,5590.76,REVENUE,ADULT SOCIAL CARE DIRECT PAYMENT,Redacted Personal Data
Peterborough,http://opendatacommunities.org/id/unitary-authority/peterborough,Peterborough City Council,Adult Social Care,Adult Learning Disabilities,Supplies and Services,05/08/2015 00:00,756218,2748.12,REVENUE,ADULT SOCIAL CARE DIRECT PAYMENT,Redacted Personal Data
Peterborough,http://opendatacommunities.org/id/unitary-authority/peterborough,Peterborough City Council,Adult Social Care,Older People,More than one Expenses Type,05/08/2015 00:00,756219,762.28,REVENUE,ADULT SOCIAL CARE DIRECT PAYMENT,Redacted Personal Data
Peterborough,http://opendatacommunities.org/id/unitary-authority/peterborough,Peterborough City Council,Adult Social Care,Adult Learning Disabilities,Supplies and Services,05/08/2015 00:00,756221,2608.68,REVENUE,ADULT SOCIAL CARE DIRECT PAYMENT,Redacted Personal Data
Peterborough,http://opendatacommunities.org/id/unitary-authority/peterborough,Peterborough City Council,Adult Social Care,Adult Learning Disabilities,More than one Expenses Type,05/08/2015 00:00,756222,3052.28,REVENUE,ADULT SOCIAL CARE DIRECT PAYMENT,Redacted Personal Data
Peterborough,http://opendatacommunities.org/id/unitary-authority/peterborough,Peterborough City Council,Adult Social Care,Older People,Supplies and Services,05/08/2015 00:00,756223,759.56,REVENUE,ADULT SOCIAL CARE DIRECT PAYMENT,Redacted Personal Data
Peterborough,http://opendatacommunities.org/id/unitary-authority/peterborough,Peterborough City Council,Adult Social Care,Adult Learning Disabilities,More than one Expenses Type,05/08/2015 00:00,756224,5578,REVENUE,ADULT SOCIAL CARE DIRECT PAYMENT,Redacted Personal Data
Peterborough,http://opendatacommunities.org/id/unitary-authority/peterborough,Peterborough City Council,Adult Social Care,Adult Learning Disabilities,Supplies and Services,05/08/2015 00:00,756225,1124,REVENUE,ADULT SOCIAL CARE DIRECT PAYMENT,Redacted Personal Data
Peterborough,http://opendatacommunities.org/id/unitary-authority/peterborough,Peterborough City Council,Adult Social Care,Adult Learning Disabilities,More than one Expenses Type,05/08/2015 00:00,756227,1425.56,REVENUE,ADULT SOCIAL CARE DIRECT PAYMENT,Redacted Personal Data
Peterborough,http://opendatacommunities.org/id/unitary-authority/peterborough,Peterborough City Council,Adult Social Care,Adult Mental Health,Supplies and Services,05/08/2015 00:00,756228,1088,REVENUE,ADULT SOCIAL CARE DIRECT PAYMENT,Redacted Personal Data
Peterborough,http://opendatacommunities.org/id/unitary-authority/peterborough,Peterborough City Council,Adult Social Care,Older People,More than one Expenses Type,05/08/2015 00:00,756229,1107.6,REVENUE,ADULT SOCIAL CARE DIRECT PAYMENT,Redacted Personal Data
Peterborough,http://opendatacommunities.org/id/unitary-authority/peterborough,Peterborough City Council,Adult Social Care,Adult Learning Disabilities,More than one Expenses Type,05/08/2015 00:00,756230,4467.36,REVENUE,ADULT SOCIAL CARE DIRECT PAYMENT,Redacted Personal Data
Peterborough,http://opendatacommunities.org/id/unitary-authority/peterborough,Peterborough City Council,Adult Social Care,Adult Learning Disabilities,More than one Expenses Type,05/08/2015 00:00,756232,2305.56,REVENUE,ADULT SOCIAL CARE DIRECT PAYMENT,Redacted Personal Data
Peterborough,http://opendatacommunities.org/id/unitary-authority/peterborough,Peterborough City Council,Adult Social Care,Older People,Supplies and Services,05/08/2015 00:00,756233,657.6,REVENUE,ADULT SOCIAL CARE DIRECT PAYMENT,Redacted Personal Data
Peterborough,http://opendatacommunities.org/id/unitary-authority/peterborough,Peterborough City Council,Adult Social Care,Adult Learning Disabilities,Supplies and Services,05/08/2015 00:00,756234,580.84,REVENUE,ADULT SOCIAL CARE DIRECT PAYMENT,Redacted Personal Data
Peterborough,http://opendatacommunities.org/id/unitary-authority/peterborough,Peterborough City Council,Adult Social Care,Older People,More than one Expenses Type,05/08/2015 00:00,756235,5712.72,REVENUE,ADULT SOCIAL CARE DIRECT PAYMENT,Redacted Personal Data
Peterborough,http://opendatacommunities.org/id/unitary-authority/peterborough,Peterborough City Council,Adult Social Care,Adult Learning Disabilities,More than one Expenses Type,05/08/2015 00:00,756236,1670.6,REVENUE,ADULT SOCIAL CARE DIRECT PAYMENT,Redacted Personal Data
Peterborough,http://opendatacommunities.org/id/unitary-authority/peterborough,Peterborough City Council,Adult Social Care,Older People,Fees and Charges,05/08/2015 00:00,756237,625.52,REVENUE,ADULT SOCIAL CARE DIRECT PAYMENT,Redacted Personal Data
Peterborough,http://opendatacommunities.org/id/unitary-authority/peterborough,Peterborough City Council,Adult Social Care,Adult Learning Disabilities,Supplies and Services,05/08/2015 00:00,756238,1158.44,REVENUE,ADULT SOCIAL CARE DIRECT PAYMENT,Redacted Personal Data
Peterborough,http://opendatacommunities.org/id/unitary-authority/peterborough,Peterborough City Council,Adult Social Care,Adult Learning Disabilities,More than one Expenses Type,05/08/2015 00:00,756239,2964.48,REVENUE,ADULT SOCIAL CARE DIRECT PAYMENT,Redacted Personal Data
Peterborough,http://opendatacommunities.org/id/unitary-authority/peterborough,Peterborough City Council,Adult Social Care,Adult Learning Disabilities,Supplies and Services,05/08/2015 00:00,756240,592.84,REVENUE,ADULT SOCIAL CARE DIRECT PAYMENT,Redacted Personal Data
Peterborough,http://opendatacommunities.org/id/unitary-authority/peterborough,Peterborough City Council,Adult Social Care,Older People,More than one Expenses Type,05/08/2015 00:00,756241,2090.76,REVENUE,ADULT SOCIAL CARE DIRECT PAYMENT,Redacted Personal Data
Peterborough,http://opendatacommunities.org/id/unitary-authority/peterborough,Peterborough City Council,Adult Social Care,Adult Learning Disabilities,Supplies and Services,05/08/2015 00:00,756244,618.84,REVENUE,ADULT SOCIAL CARE DIRECT PAYMENT,Redacted Personal Data
Peterborough,http://opendatacommunities.org/id/unitary-authority/peterborough,Peterborough City Council,Adult Social Care,Adult Learning Disabilities,Supplies and Services,05/08/2015 00:00,756245,773.28,REVENUE,ADULT SOCIAL CARE DIRECT PAYMENT,Redacted Personal Data
Peterborough,http://opendatacommunities.org/id/unitary-authority/peterborough,Peterborough City Council,Adult Social Care,Adult Physical Disability & Sensory Impairment,Supplies and Services,05/08/2015 00:00,756248,600,REVENUE,ADULT SOCIAL CARE DIRECT PAYMENT,Redacted Personal Data
Peterborough,http://opendatacommunities.org/id/unitary-authority/peterborough,Peterborough City Council,Adult Social Care,Adult Mental Health,Supplies and Services,05/08/2015 00:00,756249,518.4,REVENUE,ADULT SOCIAL CARE DIRECT PAYMENT,Redacted Personal Data
Peterborough,http://opendatacommunities.org/id/unitary-authority/peterborough,Peterborough City Council,Adult Social Care,Older People,Supplies and Services,05/08/2015 00:00,756250,1790,REVENUE,ADULT SOCIAL CARE DIRECT PAYMENT,Redacted Personal Data
Peterborough,http://opendatacommunities.org/id/unitary-authority/peterborough,Peterborough City Council,Adult Social Care,Older People,Supplies and Services,05/08/2015 00:00,756251,1094.68,REVENUE,ADULT SOCIAL CARE DIRECT PAYMENT,Redacted Personal Data
Peterborough,http://opendatacommunities.org/id/unitary-authority/peterborough,Peterborough City Council,Adult Social Care,Older People,More than one Expenses Type,05/08/2015 00:00,756252,2120.84,REVENUE,ADULT SOCIAL CARE DIRECT PAYMENT,Redacted Personal Data
Peterborough,http://opendatacommunities.org/id/unitary-authority/peterborough,Peterborough City Council,Adult Social Care,Adult Learning Disabilities,Supplies and Services,05/08/2015 00:00,756253,892.8,REVENUE,ADULT SOCIAL CARE DIRECT PAYMENT,Redacted Personal Data
Peterborough,http://opendatacommunities.org/id/unitary-authority/peterborough,Peterborough City Council,Adult Social Care,Older People,Supplies and Services,05/08/2015 00:00,756254,1027.64,REVENUE,ADULT SOCIAL CARE DIRECT PAYMENT,Redacted Personal Data
Peterborough,http://opendatacommunities.org/id/unitary-authority/peterborough,Peterborough City Council,Adult Social Care,Adult Learning Disabilities,More than one Expenses Type,05/08/2015 00:00,756255,5117.92,REVENUE,ADULT SOCIAL CARE DIRECT PAYMENT,Redacted Personal Data
Peterborough,http://opendatacommunities.org/id/unitary-authority/peterborough,Peterborough City Council,Adult Social Care,Adult Learning Disabilities,Supplies and Services,05/08/2015 00:00,756256,906.16,REVENUE,ADULT SOCIAL CARE DIRECT PAYMENT,Redacted Personal Data
Peterborough,http://opendatacommunities.org/id/unitary-authority/peterborough,Peterborough City Council,Adult Social Care,Older People,More than one Expenses Type,05/08/2015 00:00,756257,2273.32,REVENUE,ADULT SOCIAL CARE DIRECT PAYMENT,Redacted Personal Data
Peterborough,http://opendatacommunities.org/id/unitary-authority/peterborough,Peterborough City Council,Adult Social Care,Adult Learning Disabilities,Supplies and Services,05/08/2015 00:00,756259,960,REVENUE,ADULT SOCIAL CARE DIRECT PAYMENT,Redacted Personal Data
Peterborough,http://opendatacommunities.org/id/unitary-authority/peterborough,Peterborough City Council,Adult Social Care,Older People,Supplies and Services,05/08/2015 00:00,756261,2450,REVENUE,ADULT SOCIAL CARE DIRECT PAYMENT,Redacted Personal Data
Peterborough,http://opendatacommunities.org/id/unitary-authority/peterborough,Peterborough City Council,Adult Social Care,Older People,More than one Expenses Type,05/08/2015 00:00,756263,2600.08,REVENUE,ADULT SOCIAL CARE DIRECT PAYMENT,Redacted Personal Data
Peterborough,http://opendatacommunities.org/id/unitary-authority/peterborough,Peterborough City Council,Adult Social Care,Older People,Supplies and Services,05/08/2015 00:00,756265,1137.52,REVENUE,ADULT SOCIAL CARE DIRECT PAYMENT,Redacted Personal Data
Peterborough,http://opendatacommunities.org/id/unitary-authority/peterborough,Peterborough City Council,Adult Social Care,Adult Learning Disabilities,More than one Expenses Type,05/08/2015 00:00,756266,7707.6,REVENUE,ADULT SOCIAL CARE DIRECT PAYMENT,Redacted Personal Data
Peterborough,http://opendatacommunities.org/id/unitary-authority/peterborough,Peterborough City Council,Adult Social Care,Adult Learning Disabilities,More than one Expenses Type,05/08/2015 00:00,756267,659.32,REVENUE,ADULT SOCIAL CARE DIRECT PAYMENT,Redacted Personal Data
Peterborough,http://opendatacommunities.org/id/unitary-authority/peterborough,Peterborough City Council,Adult Social Care,Older People,Supplies and Services,05/08/2015 00:00,756268,633.6,REVENUE,ADULT SOCIAL CARE DIRECT PAYMENT,Redacted Personal Data
Peterborough,http://opendatacommunities.org/id/unitary-authority/peterborough,Peterborough City Council,Adult Social Care,Older People,More than one Expenses Type,05/08/2015 00:00,756269,1630.08,REVENUE,ADULT SOCIAL CARE DIRECT PAYMENT,Redacted Personal Data
Peterborough,http://opendatacommunities.org/id/unitary-authority/peterborough,Peterborough City Council,Adult Social Care,Older People,Supplies and Services,05/08/2015 00:00,756270,627.2,REVENUE,ADULT SOCIAL CARE DIRECT PAYMENT,Redacted Personal Data
Peterborough,http://opendatacommunities.org/id/unitary-authority/peterborough,Peterborough City Council,Adult Social Care,Adult Physical Disability & Sensory Impairment,Supplies and Services,05/08/2015 00:00,756271,792,REVENUE,ADULT SOCIAL CARE DIRECT PAYMENT,Redacted Personal Data
Peterborough,http://opendatacommunities.org/id/unitary-authority/peterborough,Peterborough City Council,Adult Social Care,Older People,More than one Expenses Type,05/08/2015 00:00,756272,4393.4,REVENUE,ADULT SOCIAL CARE DIRECT PAYMENT,Redacted Personal Data
Peterborough,http://opendatacommunities.org/id/unitary-authority/peterborough,Peterborough City Council,Adult Social Care,Older People,More than one Expenses Type,05/08/2015 00:00,756273,3639.04,REVENUE,ADULT SOCIAL CARE DIRECT PAYMENT,Redacted Personal Data
Peterborough,http://opendatacommunities.org/id/unitary-authority/peterborough,Peterborough City Council,Adult Social Care,Adult Learning Disabilities,More than one Expenses Type,05/08/2015 00:00,756274,5365.56,REVENUE,ADULT SOCIAL CARE DIRECT PAYMENT,Redacted Personal Data
Peterborough,http://opendatacommunities.org/id/unitary-authority/peterborough,Peterborough City Council,Adult Social Care,Adult Mental Health,Supplies and Services,05/08/2015 00:00,756275,606.4,REVENUE,ADULT SOCIAL CARE DIRECT PAYMENT,Redacted Personal Data
Peterborough,http://opendatacommunities.org/id/unitary-authority/peterborough,Peterborough City Council,Adult Social Care,Adult Mental Health,Supplies and Services,05/08/2015 00:00,756276,758.08,REVENUE,ADULT SOCIAL CARE DIRECT PAYMENT,Redacted Personal Data
Peterborough,http://opendatacommunities.org/id/unitary-authority/peterborough,Peterborough City Council,Adult Social Care,Adult Mental Health,Supplies and Services,05/08/2015 00:00,756280,524.88,REVENUE,ADULT SOCIAL CARE DIRECT PAYMENT,Redacted Personal Data
Peterborough,http://opendatacommunities.org/id/unitary-authority/peterborough,Peterborough City Council,Adult Social Care,Adult Mental Health,Supplies and Services,05/08/2015 00:00,756285,918,REVENUE,ADULT SOCIAL CARE DIRECT PAYMENT,Redacted Personal Data
Peterborough,http://opendatacommunities.org/id/unitary-authority/peterborough,Peterborough City Council,Adult Social Care,Adult Mental Health,Supplies and Services,05/08/2015 00:00,756286,724,REVENUE,ADULT SOCIAL CARE DIRECT PAYMENT,Redacted Personal Data
Peterborough,http://opendatacommunities.org/id/unitary-authority/peterborough,Peterborough City Council,Adult Social Care,Adult Mental Health,Supplies and Services,05/08/2015 00:00,756287,589.6,REVENUE,ADULT SOCIAL CARE DIRECT PAYMENT,Redacted Personal Data
Peterborough,http://opendatacommunities.org/id/unitary-authority/peterborough,Peterborough City Council,Adult Social Care,Adult Mental Health,More than one Expenses Type,05/08/2015 00:00,756288,575.72,REVENUE,ADULT SOCIAL CARE DIRECT PAYMENT,Redacted Personal Data
Peterborough,http://opendatacommunities.org/id/unitary-authority/peterborough,Peterborough City Council,Adult Social Care,Adult Mental Health,Supplies and Services,05/08/2015 00:00,756290,1522.48,REVENUE,ADULT SOCIAL CARE DIRECT PAYMENT,Redacted Personal Data
Peterborough,http://opendatacommunities.org/id/unitary-authority/peterborough,Peterborough City Council,Adult Social Care,Adult Mental Health,Supplies and Services,05/08/2015 00:00,756292,1750,REVENUE,ADULT SOCIAL CARE DIRECT PAYMENT,Redacted Personal Data
Peterborough,http://opendatacommunities.org/id/unitary-authority/peterborough,Peterborough City Council,Adult Social Care,Adult Learning Disabilities,More than one Expenses Type,05/08/2015 00:00,756293,3460.24,REVENUE,ADULT SOCIAL CARE DIRECT PAYMENT,Redacted Personal Data
Peterborough,http://opendatacommunities.org/id/unitary-authority/peterborough,Peterborough City Council,Adult Social Care,Adult Learning Disabilities,More than one Expenses Type,05/08/2015 00:00,756295,1643.76,REVENUE,ADULT SOCIAL CARE DIRECT PAYMENT,Redacted Personal Data
Peterborough,http://opendatacommunities.org/id/unitary-authority/peterborough,Peterborough City Council,Adult Social Care,Adult Mental Health,Supplies and Services,05/08/2015 00:00,756297,1266.48,REVENUE,ADULT SOCIAL CARE DIRECT PAYMENT,Redacted Personal Data
Peterborough,http://opendatacommunities.org/id/unitary-authority/peterborough,Peterborough City Council,Adult Social Care,Adult Mental Health,Supplies and Services,05/08/2015 00:00,756300,980.88,REVENUE,ADULT SOCIAL CARE DIRECT PAYMENT,Redacted Personal Data
Peterborough,http://opendatacommunities.org/id/unitary-authority/peterborough,Peterborough City Council,Adult Social Care,Adult Learning Disabilities,More than one Expenses Type,05/08/2015 00:00,756301,6910.88,REVENUE,ADULT SOCIAL CARE DIRECT PAYMENT,Redacted Personal Data
Peterborough,http://opendatacommunities.org/id/unitary-authority/peterborough,Peterborough City Council,Adult Social Care,Adult Learning Disabilities,Supplies and Services,05/08/2015 00:00,756302,4168.4,REVENUE,ADULT SOCIAL CARE DIRECT PAYMENT,Redacted Personal Data
Peterborough,http://opendatacommunities.org/id/unitary-authority/peterborough,Peterborough City Council,Adult Social Care,Adult Mental Health,More than one Expenses Type,05/08/2015 00:00,756303,539.36,REVENUE,ADULT SOCIAL CARE DIRECT PAYMENT,Redacted Personal Data
Peterborough,http://opendatacommunities.org/id/unitary-authority/peterborough,Peterborough City Council,Adult Social Care,Older People,Supplies and Services,05/08/2015 00:00,756304,716.8,REVENUE,ADULT SOCIAL CARE DIRECT PAYMENT,Redacted Personal Data
Peterborough,http://opendatacommunities.org/id/unitary-authority/peterborough,Peterborough City Council,Adult Social Care,Older People,Supplies and Services,05/08/2015 00:00,756305,3830.72,REVENUE,ADULT SOCIAL CARE DIRECT PAYMENT,Redacted Personal Data
Peterborough,http://opendatacommunities.org/id/unitary-authority/peterborough,Peterborough City Council,Adult Social Care,Adult Mental Health,Supplies and Services,05/08/2015 00:00,756306,637.6,REVENUE,ADULT SOCIAL CARE DIRECT PAYMENT,Redacted Personal Data
Peterborough,http://opendatacommunities.org/id/unitary-authority/peterborough,Peterborough City Council,Adult Social Care,Adult Mental Health,Supplies and Services,05/08/2015 00:00,756308,792.8,REVENUE,ADULT SOCIAL CARE DIRECT PAYMENT,Redacted Personal Data
Peterborough,http://opendatacommunities.org/id/unitary-authority/peterborough,Peterborough City Council,Adult Social Care,Adult Learning Disabilities,More than one Expenses Type,05/08/2015 00:00,756309,5249.84,REVENUE,ADULT SOCIAL CARE DIRECT PAYMENT,Redacted Personal Data
Peterborough,http://opendatacommunities.org/id/unitary-authority/peterborough,Peterborough City Council,Adult Social Care,Adult Mental Health,Supplies and Services,05/08/2015 00:00,756310,1085.36,REVENUE,ADULT SOCIAL CARE DIRECT PAYMENT,Redacted Personal Data
Peterborough,http://opendatacommunities.org/id/unitary-authority/peterborough,Peterborough City Council,Adult Social Care,Adult Mental Health,Supplies and Services,05/08/2015 00:00,756311,668.88,REVENUE,ADULT SOCIAL CARE DIRECT PAYMENT,Redacted Personal Data
Peterborough,http://opendatacommunities.org/id/unitary-authority/peterborough,Peterborough City Council,Adult Social Care,Adult Mental Health,More than one Expenses Type,05/08/2015 00:00,756313,508,REVENUE,ADULT SOCIAL CARE DIRECT PAYMENT,Redacted Personal Data
Peterborough,http://opendatacommunities.org/id/unitary-authority/peterborough,Peterborough City Council,Adult Social Care,Adult Learning Disabilities,Supplies and Services,05/08/2015 00:00,756314,10074.4,REVENUE,ADULT SOCIAL CARE DIRECT PAYMENT,Redacted Personal Data
Peterborough,http://opendatacommunities.org/id/unitary-authority/peterborough,Peterborough City Council,Adult Social Care,Adult Mental Health,Supplies and Services,05/08/2015 00:00,756319,829.6,REVENUE,ADULT SOCIAL CARE DIRECT PAYMENT,Redacted Personal Data
Peterborough,http://opendatacommunities.org/id/unitary-authority/peterborough,Peterborough City Council,Adult Social Care,Adult Mental Health,Supplies and Services,05/08/2015 00:00,756320,827.28,REVENUE,ADULT SOCIAL CARE DIRECT PAYMENT,Redacted Personal Data
Peterborough,http://opendatacommunities.org/id/unitary-authority/peterborough,Peterborough City Council,Adult Social Care,Adult Learning Disabilities,More than one Expenses Type,05/08/2015 00:00,756321,1843.08,REVENUE,ADULT SOCIAL CARE DIRECT PAYMENT,Redacted Personal Data
Peterborough,http://opendatacommunities.org/id/unitary-authority/peterborough,Peterborough City Council,Adult Social Care,Adult Mental Health,Supplies and Services,05/08/2015 00:00,756322,589.6,REVENUE,ADULT SOCIAL CARE DIRECT PAYMENT,Redacted Personal Data
Peterborough,http://opendatacommunities.org/id/unitary-authority/peterborough,Peterborough City Council,Adult Social Care,Adult Mental Health,Supplies and Services,05/08/2015 00:00,756323,589.6,REVENUE,ADULT SOCIAL CARE DIRECT PAYMENT,Redacted Personal Data
Peterborough,http://opendatacommunities.org/id/unitary-authority/peterborough,Peterborough City Council,Adult Social Care,Adult Mental Health,Supplies and Services,05/08/2015 00:00,756326,1056,REVENUE,ADULT SOCIAL CARE DIRECT PAYMENT,Redacted Personal Data
Peterborough,http://opendatacommunities.org/id/unitary-authority/peterborough,Peterborough City Council,Adult Social Care,Adult Mental Health,Supplies and Services,05/08/2015 00:00,756327,594.4,REVENUE,ADULT SOCIAL CARE DIRECT PAYMENT,Redacted Personal Data
Peterborough,http://opendatacommunities.org/id/unitary-authority/peterborough,Peterborough City Council,Adult Social Care,Adult Mental Health,Supplies and Services,05/08/2015 00:00,756328,551.28,REVENUE,ADULT SOCIAL CARE DIRECT PAYMENT,Redacted Personal Data
Peterborough,http://opendatacommunities.org/id/unitary-authority/peterborough,Peterborough City Council,Adult Social Care,Adult Mental Health,Supplies and Services,05/08/2015 00:00,756329,1065.68,REVENUE,ADULT SOCIAL CARE DIRECT PAYMENT,Redacted Personal Data
Peterborough,http://opendatacommunities.org/id/unitary-authority/peterborough,Peterborough City Council,Adult Social Care,Adult Learning Disabilities,Supplies and Services,05/08/2015 00:00,756330,950.4,REVENUE,ADULT SOCIAL CARE DIRECT PAYMENT,Redacted Personal Data
Peterborough,http://opendatacommunities.org/id/unitary-authority/peterborough,Peterborough City Council,Adult Social Care,Adult Learning Disabilities,More than one Expenses Type,05/08/2015 00:00,756332,5490.72,REVENUE,ADULT SOCIAL CARE DIRECT PAYMENT,Redacted Personal Data
Peterborough,http://opendatacommunities.org/id/unitary-authority/peterborough,Peterborough City Council,Adult Social Care,Adult Learning Disabilities,More than one Expenses Type,05/08/2015 00:00,756333,1955.88,REVENUE,ADULT SOCIAL CARE DIRECT PAYMENT,Redacted Personal Data
Peterborough,http://opendatacommunities.org/id/unitary-authority/peterborough,Peterborough City Council,Adult Social Care,Adult Learning Disabilities,Supplies and Services,05/08/2015 00:00,756334,1431.2,REVENUE,ADULT SOCIAL CARE DIRECT PAYMENT,Redacted Personal Data
Peterborough,http://opendatacommunities.org/id/unitary-authority/peterborough,Peterborough City Council,Adult Social Care,Adult Mental Health,Supplies and Services,05/08/2015 00:00,756335,564.88,REVENUE,ADULT SOCIAL CARE DIRECT PAYMENT,Redacted Personal Data
Peterborough,http://opendatacommunities.org/id/unitary-authority/peterborough,Peterborough City Council,Adult Social Care,Adult Learning Disabilities,Supplies and Services,05/08/2015 00:00,756336,921.28,REVENUE,ADULT SOCIAL CARE DIRECT PAYMENT,Redacted Personal Data
Peterborough,http://opendatacommunities.org/id/unitary-authority/peterborough,Peterborough City Council,Adult Social Care,Adult Learning Disabilities,More than one Expenses Type,05/08/2015 00:00,756337,2831.16,REVENUE,ADULT SOCIAL CARE DIRECT PAYMENT,Redacted Personal Data
Peterborough,http://opendatacommunities.org/id/unitary-authority/peterborough,Peterborough City Council,Adult Social Care,Adult Mental Health,Supplies and Services,05/08/2015 00:00,756338,1079.28,REVENUE,ADULT SOCIAL CARE DIRECT PAYMENT,Redacted Personal Data
Peterborough,http://opendatacommunities.org/id/unitary-authority/peterborough,Peterborough City Council,Adult Social Care,Older People,Supplies and Services,05/08/2015 00:00,756339,932.44,REVENUE,ADULT SOCIAL CARE DIRECT PAYMENT,Redacted Personal Data
Peterborough,http://opendatacommunities.org/id/unitary-authority/peterborough,Peterborough City Council,Adult Social Care,Older People,Supplies and Services,05/08/2015 00:00,756340,1267.2,REVENUE,ADULT SOCIAL CARE DIRECT PAYMENT,Redacted Personal Data
Peterborough,http://opendatacommunities.org/id/unitary-authority/peterborough,Peterborough City Council,Adult Social Care,Adult Mental Health,Supplies and Services,05/08/2015 00:00,756341,1069.08,REVENUE,ADULT SOCIAL CARE DIRECT PAYMENT,Redacted Personal Data
Peterborough,http://opendatacommunities.org/id/unitary-authority/peterborough,Peterborough City Council,Adult Social Care,Adult Learning Disabilities,Supplies and Services,05/08/2015 00:00,756343,6783.4,REVENUE,ADULT SOCIAL CARE DIRECT PAYMENT,Redacted Personal Data
Peterborough,http://opendatacommunities.org/id/unitary-authority/peterborough,Peterborough City Council,Adult Social Care,Adult Learning Disabilities,Supplies and Services,05/08/2015 00:00,756344,6783.4,REVENUE,ADULT SOCIAL CARE DIRECT PAYMENT,Redacted Personal Data
Peterborough,http://opendatacommunities.org/id/unitary-authority/peterborough,Peterborough City Council,Adult Social Care,Adult Learning Disabilities,More than one Expenses Type,05/08/2015 00:00,756347,523.2,REVENUE,ADULT SOCIAL CARE DIRECT PAYMENT,Redacted Personal Data
Peterborough,http://opendatacommunities.org/id/unitary-authority/peterborough,Peterborough City Council,Adult Social Care,Adult Learning Disabilities,More than one Expenses Type,05/08/2015 00:00,756348,764.88,REVENUE,ADULT SOCIAL CARE DIRECT PAYMENT,Redacted Personal Data
Peterborough,http://opendatacommunities.org/id/unitary-authority/peterborough,Peterborough City Council,Adult Social Care,Adult Learning Disabilities,More than one Expenses Type,05/08/2015 00:00,756349,5336.68,REVENUE,ADULT SOCIAL CARE DIRECT PAYMENT,Redacted Personal Data
Peterborough,http://opendatacommunities.org/id/unitary-authority/peterborough,Peterborough City Council,Adult Social Care,Older People,Supplies and Services,05/08/2015 00:00,756350,893.6,REVENUE,ADULT SOCIAL CARE DIRECT PAYMENT,Redacted Personal Data
Peterborough,http://opendatacommunities.org/id/unitary-authority/peterborough,Peterborough City Council,Adult Social Care,Adult Learning Disabilities,Supplies and Services,05/08/2015 00:00,756351,6783,REVENUE,ADULT SOCIAL CARE DIRECT PAYMENT,Redacted Personal Data
Peterborough,http://opendatacommunities.org/id/unitary-authority/peterborough,Peterborough City Council,Adult Social Care,Adult Learning Disabilities,Supplies and Services,05/08/2015 00:00,756353,888.48,REVENUE,ADULT SOCIAL CARE DIRECT PAYMENT,Redacted Personal Data
Peterborough,http://opendatacommunities.org/id/unitary-authority/peterborough,Peterborough City Council,Adult Social Care,Older People,More than one Expenses Type,05/08/2015 00:00,756355,4366.36,REVENUE,ADULT SOCIAL CARE DIRECT PAYMENT,Redacted Personal Data
Peterborough,http://opendatacommunities.org/id/unitary-authority/peterborough,Peterborough City Council,Adult Social Care,Older People,More than one Expenses Type,05/08/2015 00:00,756356,4881.96,REVENUE,ADULT SOCIAL CARE DIRECT PAYMENT,Redacted Personal Data
Peterborough,http://opendatacommunities.org/id/unitary-authority/peterborough,Peterborough City Council,Adult Social Care,Adult Mental Health,Supplies and Services,05/08/2015 00:00,756358,1025.08,REVENUE,ADULT SOCIAL CARE DIRECT PAYMENT,Redacted Personal Data
Peterborough,http://opendatacommunities.org/id/unitary-authority/peterborough,Peterborough City Council,Adult Social Care,Adult Mental Health,Supplies and Services,05/08/2015 00:00,756359,1192.8,REVENUE,ADULT SOCIAL CARE DIRECT PAYMENT,Redacted Personal Data
Peterborough,http://opendatacommunities.org/id/unitary-authority/peterborough,Peterborough City Council,Adult Social Care,Adult Learning Disabilities,Supplies and Services,05/08/2015 00:00,756360,3038.24,REVENUE,ADULT SOCIAL CARE DIRECT PAYMENT,Redacted Personal Data
Peterborough,http://opendatacommunities.org/id/unitary-authority/peterborough,Peterborough City Council,Adult Social Care,Older People,More than one Expenses Type,05/08/2015 00:00,756361,621.92,REVENUE,ADULT SOCIAL CARE DIRECT PAYMENT,Redacted Personal Data
Peterborough,http://opendatacommunities.org/id/unitary-authority/peterborough,Peterborough City Council,Adult Social Care,Older People,More than one Expenses Type,05/08/2015 00:00,756362,692.28,REVENUE,ADULT SOCIAL CARE DIRECT PAYMENT,Redacted Personal Data
Peterborough,http://opendatacommunities.org/id/unitary-authority/peterborough,Peterborough City Council,Adult Social Care,Adult Learning Disabilities,Supplies and Services,05/08/2015 00:00,756363,5811.4,REVENUE,ADULT SOCIAL CARE DIRECT PAYMENT,Redacted Personal Data
Peterborough,http://opendatacommunities.org/id/unitary-authority/peterborough,Peterborough City Council,Adult Social Care,Older People,Supplies and Services,05/08/2015 00:00,756364,522.48,REVENUE,ADULT SOCIAL CARE DIRECT PAYMENT,Redacted Personal Data
Peterborough,http://opendatacommunities.org/id/unitary-authority/peterborough,Peterborough City Council,Adult Social Care,Adult Learning Disabilities,More than one Expenses Type,05/08/2015 00:00,756365,12735.4,REVENUE,ADULT SOCIAL CARE DIRECT PAYMENT,Redacted Personal Data
Peterborough,http://opendatacommunities.org/id/unitary-authority/peterborough,Peterborough City Council,Adult Social Care,Adult Learning Disabilities,More than one Expenses Type,05/08/2015 00:00,756366,6637.6,REVENUE,ADULT SOCIAL CARE DIRECT PAYMENT,Redacted Personal Data
Peterborough,http://opendatacommunities.org/id/unitary-authority/peterborough,Peterborough City Council,Adult Social Care,Adult Mental Health,Supplies and Services,05/08/2015 00:00,756367,1200,REVENUE,ADULT SOCIAL CARE DIRECT PAYMENT,Redacted Personal Data
Peterborough,http://opendatacommunities.org/id/unitary-authority/peterborough,Peterborough City Council,Adult Social Care,Adult Learning Disabilities,More than one Expenses Type,05/08/2015 00:00,756368,8640.16,REVENUE,ADULT SOCIAL CARE DIRECT PAYMENT,Redacted Personal Data
Peterborough,http://opendatacommunities.org/id/unitary-authority/peterborough,Peterborough City Council,Adult Social Care,Adult Learning Disabilities,More than one Expenses Type,05/08/2015 00:00,756369,6802.68,REVENUE,ADULT SOCIAL CARE DIRECT PAYMENT,Redacted Personal Data
Peterborough,http://opendatacommunities.org/id/unitary-authority/peterborough,Peterborough City Council,Adult Social Care,Adult Learning Disabilities,Supplies and Services,05/08/2015 00:00,756370,700,REVENUE,ADULT SOCIAL CARE DIRECT PAYMENT,Redacted Personal Data
Peterborough,http://opendatacommunities.org/id/unitary-authority/peterborough,Peterborough City Council,Adult Social Care,Older People,Supplies and Services,05/08/2015 00:00,756373,774.48,REVENUE,ADULT SOCIAL CARE DIRECT PAYMENT,Redacted Personal Data
Peterborough,http://opendatacommunities.org/id/unitary-authority/peterborough,Peterborough City Council,Adult Social Care,Adult Learning Disabilities,More than one Expenses Type,05/08/2015 00:00,756376,3697.4,REVENUE,ADULT SOCIAL CARE DIRECT PAYMENT,Redacted Personal Data
Peterborough,http://opendatacommunities.org/id/unitary-authority/peterborough,Peterborough City Council,Adult Social Care,Adult Physical Disability & Sensory Impairment,Supplies and Services,05/08/2015 00:00,756377,652.08,REVENUE,ADULT SOCIAL CARE DIRECT PAYMENT,Redacted Personal Data
Peterborough,http://opendatacommunities.org/id/unitary-authority/peterborough,Peterborough City Council,Adult Social Care,Adult Learning Disabilities,Supplies and Services,05/08/2015 00:00,756378,3753.12,REVENUE,ADULT SOCIAL CARE DIRECT PAYMENT,Redacted Personal Data
Peterborough,http://opendatacommunities.org/id/unitary-authority/peterborough,Peterborough City Council,Adult Social Care,Adult Learning Disabilities,Supplies and Services,05/08/2015 00:00,756379,681.08,REVENUE,ADULT SOCIAL CARE DIRECT PAYMENT,Redacted Personal Data
Peterborough,http://opendatacommunities.org/id/unitary-authority/peterborough,Peterborough City Council,Adult Social Care,Adult Mental Health,Supplies and Services,05/08/2015 00:00,756380,851.08,REVENUE,ADULT SOCIAL CARE DIRECT PAYMENT,Redacted Personal Data
Peterborough,http://opendatacommunities.org/id/unitary-authority/peterborough,Peterborough City Council,Adult Social Care,Older People,Supplies and Services,05/08/2015 00:00,756381,1528.44,REVENUE,ADULT SOCIAL CARE DIRECT PAYMENT,Redacted Personal Data
Peterborough,http://opendatacommunities.org/id/unitary-authority/peterborough,Peterborough City Council,Adult Social Care,Older People,Supplies and Services,05/08/2015 00:00,756382,784,REVENUE,ADULT SOCIAL CARE DIRECT PAYMENT,Redacted Personal Data
Peterborough,http://opendatacommunities.org/id/unitary-authority/peterborough,Peterborough City Council,Adult Social Care,Adult Mental Health,Supplies and Services,05/08/2015 00:00,756383,620.88,REVENUE,ADULT SOCIAL CARE DIRECT PAYMENT,Redacted Personal Data
Peterborough,http://opendatacommunities.org/id/unitary-authority/peterborough,Peterborough City Council,Adult Social Care,Older People,Supplies and Services,05/08/2015 00:00,756384,633.6,REVENUE,ADULT SOCIAL CARE DIRECT PAYMENT,Redacted Personal Data
Peterborough,http://opendatacommunities.org/id/unitary-authority/peterborough,Peterborough City Council,Adult Social Care,Adult Learning Disabilities,More than one Expenses Type,05/08/2015 00:00,756387,901.44,REVENUE,ADULT SOCIAL CARE DIRECT PAYMENT,Redacted Personal Data
Peterborough,http://opendatacommunities.org/id/unitary-authority/peterborough,Peterborough City Council,Adult Social Care,Older People,More than one Expenses Type,05/08/2015 00:00,756390,1749.32,REVENUE,ADULT SOCIAL CARE DIRECT PAYMENT,Redacted Personal Data
Peterborough,http://opendatacommunities.org/id/unitary-authority/peterborough,Peterborough City Council,Adult Social Care,Older People,Supplies and Services,05/08/2015 00:00,756391,2430.48,REVENUE,ADULT SOCIAL CARE DIRECT PAYMENT,Redacted Personal Data
Peterborough,http://opendatacommunities.org/id/unitary-authority/peterborough,Peterborough City Council,Adult Social Care,Adult Learning Disabilities,More than one Expenses Type,05/08/2015 00:00,756392,643.24,REVENUE,ADULT SOCIAL CARE DIRECT PAYMENT,Redacted Personal Data
Peterborough,http://opendatacommunities.org/id/unitary-authority/peterborough,Peterborough City Council,Adult Social Care,Older People,More than one Expenses Type,05/08/2015 00:00,756394,871.44,REVENUE,ADULT SOCIAL CARE DIRECT PAYMENT,Redacted Personal Data
Peterborough,http://opendatacommunities.org/id/unitary-authority/peterborough,Peterborough City Council,Adult Social Care,Adult Learning Disabilities,Supplies and Services,05/08/2015 00:00,756396,3750.68,REVENUE,ADULT SOCIAL CARE DIRECT PAYMENT,Redacted Personal Data
Peterborough,http://opendatacommunities.org/id/unitary-authority/peterborough,Peterborough City Council,Adult Social Care,Adult Learning Disabilities,Supplies and Services,05/08/2015 00:00,756397,733.36,REVENUE,ADULT SOCIAL CARE DIRECT PAYMENT,Redacted Personal Data
Peterborough,http://opendatacommunities.org/id/unitary-authority/peterborough,Peterborough City Council,Adult Social Care,Older People,More than one Expenses Type,05/08/2015 00:00,756398,2017.76,REVENUE,ADULT SOCIAL CARE DIRECT PAYMENT,Redacted Personal Data
Peterborough,http://opendatacommunities.org/id/unitary-authority/peterborough,Peterborough City Council,Adult Social Care,Older People,Supplies and Services,05/08/2015 00:00,756399,625.48,REVENUE,ADULT SOCIAL CARE DIRECT PAYMENT,Redacted Personal Data
Peterborough,http://opendatacommunities.org/id/unitary-authority/peterborough,Peterborough City Council,Adult Social Care,Adult Learning Disabilities,Supplies and Services,05/08/2015 00:00,756400,1140.96,REVENUE,ADULT SOCIAL CARE DIRECT PAYMENT,Redacted Personal Data
Peterborough,http://opendatacommunities.org/id/unitary-authority/peterborough,Peterborough City Council,Adult Social Care,Adult Mental Health,Supplies and Services,05/08/2015 00:00,756401,858.48,REVENUE,ADULT SOCIAL CARE DIRECT PAYMENT,Redacted Personal Data
Peterborough,http://opendatacommunities.org/id/unitary-authority/peterborough,Peterborough City Council,Adult Social Care,Older People,More than one Expenses Type,05/08/2015 00:00,756403,1794.32,REVENUE,ADULT SOCIAL CARE DIRECT PAYMENT,Redacted Personal Data
Peterborough,http://opendatacommunities.org/id/unitary-authority/peterborough,Peterborough City Council,Adult Social Care,Older People,Supplies and Services,05/08/2015 00:00,756404,574.4,REVENUE,ADULT SOCIAL CARE DIRECT PAYMENT,Redacted Personal Data
Peterborough,http://opendatacommunities.org/id/unitary-authority/peterborough,Peterborough City Council,Adult Social Care,Older People,Supplies and Services,05/08/2015 00:00,756405,1026.48,REVENUE,ADULT SOCIAL CARE DIRECT PAYMENT,Redacted Personal Data
Peterborough,http://opendatacommunities.org/id/unitary-authority/peterborough,Peterborough City Council,Adult Social Care,Older People,More than one Expenses Type,05/08/2015 00:00,756406,539.44,REVENUE,ADULT SOCIAL CARE DIRECT PAYMENT,Redacted Personal Data
Peterborough,http://opendatacommunities.org/id/unitary-authority/peterborough,Peterborough City Council,Adult Social Care,Older People,Supplies and Services,05/08/2015 00:00,756408,7186.4,REVENUE,ADULT SOCIAL CARE DIRECT PAYMENT,Redacted Personal Data
Peterborough,http://opendatacommunities.org/id/unitary-authority/peterborough,Peterborough City Council,Adult Social Care,Older People,Supplies and Services,05/08/2015 00:00,756409,670.2,REVENUE,ADULT SOCIAL CARE DIRECT PAYMENT,Redacted Personal Data
Peterborough,http://opendatacommunities.org/id/unitary-authority/peterborough,Peterborough City Council,Adult Social Care,Older People,More than one Expenses Type,05/08/2015 00:00,756410,2713.03,REVENUE,ADULT SOCIAL CARE DIRECT PAYMENT,Redacted Personal Data
Peterborough,http://opendatacommunities.org/id/unitary-authority/peterborough,Peterborough City Council,Adult Social Care,Older People,Supplies and Services,05/08/2015 00:00,756411,537.4,REVENUE,ADULT SOCIAL CARE DIRECT PAYMENT,Redacted Personal Data
Peterborough,http://opendatacommunities.org/id/unitary-authority/peterborough,Peterborough City Council,Adult Social Care,Older People,Supplies and Services,05/08/2015 00:00,756412,585.48,REVENUE,ADULT SOCIAL CARE DIRECT PAYMENT,Redacted Personal Data
Peterborough,http://opendatacommunities.org/id/unitary-authority/peterborough,Peterborough City Council,Adult Social Care,Older People,Supplies and Services,05/08/2015 00:00,756413,2486.58,REVENUE,ADULT SOCIAL CARE DIRECT PAYMENT,Redacted Personal Data
Peterborough,http://opendatacommunities.org/id/unitary-authority/peterborough,Peterborough City Council,Adult Social Care,Older People,Supplies and Services,05/08/2015 00:00,756414,530.32,REVENUE,ADULT SOCIAL CARE DIRECT PAYMENT,Redacted Personal Data
Peterborough,http://opendatacommunities.org/id/unitary-authority/peterborough,Peterborough City Council,Adult Social Care,Adult Physical Disability & Sensory Impairment,Supplies and Services,05/08/2015 00:00,756416,1818.4,REVENUE,ADULT SOCIAL CARE DIRECT PAYMENT,Redacted Personal Data
Peterborough,http://opendatacommunities.org/id/unitary-authority/peterborough,Peterborough City Council,Adult Social Care,Older People,Supplies and Services,05/08/2015 00:00,756417,530.32,REVENUE,ADULT SOCIAL CARE DIRECT PAYMENT,Redacted Personal Data
Peterborough,http://opendatacommunities.org/id/unitary-authority/peterborough,Peterborough City Council,Adult Social Care,Older People,More than one Expenses Type,05/08/2015 00:00,756419,550.88,REVENUE,ADULT SOCIAL CARE DIRECT PAYMENT,Redacted Personal Data
Peterborough,http://opendatacommunities.org/id/unitary-authority/peterborough,Peterborough City Council,Adult Social Care,Adult Mental Health,Supplies and Services,05/08/2015 00:00,756421,2308.68,REVENUE,ADULT SOCIAL CARE DIRECT PAYMENT,Redacted Personal Data
Peterborough,http://opendatacommunities.org/id/unitary-authority/peterborough,Peterborough City Council,Adult Social Care,Older People,Supplies and Services,05/08/2015 00:00,756422,950.4,REVENUE,ADULT SOCIAL CARE DIRECT PAYMENT,Redacted Personal Data
Peterborough,http://opendatacommunities.org/id/unitary-authority/peterborough,Peterborough City Council,Adult Social Care,Older People,Supplies and Services,05/08/2015 00:00,756424,548.8,REVENUE,ADULT SOCIAL CARE DIRECT PAYMENT,Redacted Personal Data
Peterborough,http://opendatacommunities.org/id/unitary-authority/peterborough,Peterborough City Council,Adult Social Care,Older People,Supplies and Services,05/08/2015 00:00,756425,898.88,REVENUE,ADULT SOCIAL CARE DIRECT PAYMENT,Redacted Personal Data
Peterborough,http://opendatacommunities.org/id/unitary-authority/peterborough,Peterborough City Council,Adult Social Care,Older People,More than one Expenses Type,05/08/2015 00:00,756426,777.96,REVENUE,ADULT SOCIAL CARE DIRECT PAYMENT,Redacted Personal Data
Peterborough,http://opendatacommunities.org/id/unitary-authority/peterborough,Peterborough City Council,Adult Social Care,Older People,Supplies and Services,05/08/2015 00:00,756429,2998.96,REVENUE,ADULT SOCIAL CARE DIRECT PAYMENT,Redacted Personal Data
Peterborough,http://opendatacommunities.org/id/unitary-authority/peterborough,Peterborough City Council,Adult Social Care,Adult Mental Health,Supplies and Services,05/08/2015 00:00,756430,2158.48,REVENUE,ADULT SOCIAL CARE DIRECT PAYMENT,Redacted Personal Data
Peterborough,http://opendatacommunities.org/id/unitary-authority/peterborough,Peterborough City Council,Adult Social Care,Older People,Supplies and Services,05/08/2015 00:00,756431,990.72,REVENUE,ADULT SOCIAL CARE DIRECT PAYMENT,Redacted Personal Data
Peterborough,http://opendatacommunities.org/id/unitary-authority/peterborough,Peterborough City Council,Adult Social Care,Older People,More than one Expenses Type,05/08/2015 00:00,756433,591.51,REVENUE,ADULT SOCIAL CARE DIRECT PAYMENT,Redacted Personal Data
Peterborough,http://opendatacommunities.org/id/unitary-authority/peterborough,Peterborough City Council,Adult Social Care,Older People,Supplies and Services,05/08/2015 00:00,756434,774.48,REVENUE,ADULT SOCIAL CARE DIRECT PAYMENT,Redacted Personal Data
Peterborough,http://opendatacommunities.org/id/unitary-authority/peterborough,Peterborough City Council,Adult Social Care,Older People,More than one Expenses Type,05/08/2015 00:00,756435,502.4,REVENUE,ADULT SOCIAL CARE DIRECT PAYMENT,Redacted Personal Data
Peterborough,http://opendatacommunities.org/id/unitary-authority/peterborough,Peterborough City Council,Adult Social Care,Older People,Supplies and Services,05/08/2015 00:00,756436,577.4,REVENUE,ADULT SOCIAL CARE DIRECT PAYMENT,Redacted Personal Data
Peterborough,http://opendatacommunities.org/id/unitary-authority/peterborough,Peterborough City Council,Adult Social Care,Older People,Supplies and Services,05/08/2015 00:00,756437,7100.92,REVENUE,ADULT SOCIAL CARE DIRECT PAYMENT,Redacted Personal Data
Peterborough,http://opendatacommunities.org/id/unitary-authority/peterborough,Peterborough City Council,Adult Social Care,Older People,More than one Expenses Type,05/08/2015 00:00,756438,2789.68,REVENUE,ADULT SOCIAL CARE DIRECT PAYMENT,Redacted Personal Data
Peterborough,http://opendatacommunities.org/id/unitary-authority/peterborough,Peterborough City Council,Adult Social Care,Older People,Supplies and Services,05/08/2015 00:00,756439,944.32,REVENUE,ADULT SOCIAL CARE DIRECT PAYMENT,Redacted Personal Data
Peterborough,http://opendatacommunities.org/id/unitary-authority/peterborough,Peterborough City Council,Adult Social Care,Older People,Supplies and Services,05/08/2015 00:00,756440,3556,REVENUE,ADULT SOCIAL CARE DIRECT PAYMENT,Redacted Personal Data
Peterborough,http://opendatacommunities.org/id/unitary-authority/peterborough,Peterborough City Council,Adult Social Care,Older People,Supplies and Services,05/08/2015 00:00,756441,6131.64,REVENUE,ADULT SOCIAL CARE DIRECT PAYMENT,Redacted Personal Data
Peterborough,http://opendatacommunities.org/id/unitary-authority/peterborough,Peterborough City Council,Adult Social Care,Older People,More than one Expenses Type,05/08/2015 00:00,756445,4879.6,REVENUE,ADULT SOCIAL CARE DIRECT PAYMENT,Redacted Personal Data
Peterborough,http://opendatacommunities.org/id/unitary-authority/peterborough,Peterborough City Council,Adult Social Care,Older People,Supplies and Services,05/08/2015 00:00,756446,625.52,REVENUE,ADULT SOCIAL CARE DIRECT PAYMENT,Redacted Personal Data
Peterborough,http://opendatacommunities.org/id/unitary-authority/peterborough,Peterborough City Council,Adult Social Care,Older People,Supplies and Services,05/08/2015 00:00,756447,8634,REVENUE,ADULT SOCIAL CARE DIRECT PAYMENT,Redacted Personal Data
Peterborough,http://opendatacommunities.org/id/unitary-authority/peterborough,Peterborough City Council,Adult Social Care,Older People,Supplies and Services,05/08/2015 00:00,756449,6932.68,REVENUE,ADULT SOCIAL CARE DIRECT PAYMENT,Redacted Personal Data
Peterborough,http://opendatacommunities.org/id/unitary-authority/peterborough,Peterborough City Council,Adult Social Care,Older People,More than one Expenses Type,05/08/2015 00:00,756450,3448.24,REVENUE,ADULT SOCIAL CARE DIRECT PAYMENT,Redacted Personal Data
Peterborough,http://opendatacommunities.org/id/unitary-authority/peterborough,Peterborough City Council,Adult Social Care,Older People,Supplies and Services,05/08/2015 00:00,756451,624.4,REVENUE,ADULT SOCIAL CARE DIRECT PAYMENT,Redacted Personal Data
Peterborough,http://opendatacommunities.org/id/unitary-authority/peterborough,Peterborough City Council,Adult Social Care,Older People,More than one Expenses Type,05/08/2015 00:00,756454,1344.64,REVENUE,ADULT SOCIAL CARE DIRECT PAYMENT,Redacted Personal Data
Peterborough,http://opendatacommunities.org/id/unitary-authority/peterborough,Peterborough City Council,Adult Social Care,Older People,Supplies and Services,05/08/2015 00:00,756455,903.08,REVENUE,ADULT SOCIAL CARE DIRECT PAYMENT,Redacted Personal Data
Peterborough,http://opendatacommunities.org/id/unitary-authority/peterborough,Peterborough City Council,Adult Social Care,Older People,More than one Expenses Type,05/08/2015 00:00,756456,2242.4,REVENUE,ADULT SOCIAL CARE DIRECT PAYMENT,Redacted Personal Data
Peterborough,http://opendatacommunities.org/id/unitary-authority/peterborough,Peterborough City Council,Adult Social Care,Older People,Supplies and Services,05/08/2015 00:00,756459,700,REVENUE,ADULT SOCIAL CARE DIRECT PAYMENT,Redacted Personal Data
Peterborough,http://opendatacommunities.org/id/unitary-authority/peterborough,Peterborough City Council,Adult Social Care,Older People,Supplies and Services,05/08/2015 00:00,756461,1205.28,REVENUE,ADULT SOCIAL CARE DIRECT PAYMENT,Redacted Personal Data
Peterborough,http://opendatacommunities.org/id/unitary-authority/peterborough,Peterborough City Council,Adult Social Care,Older People,More than one Expenses Type,05/08/2015 00:00,756466,4091.24,REVENUE,ADULT SOCIAL CARE DIRECT PAYMENT,Redacted Personal Data
Peterborough,http://opendatacommunities.org/id/unitary-authority/peterborough,Peterborough City Council,Adult Social Care,Older People,Supplies and Services,05/08/2015 00:00,756469,3712.08,REVENUE,ADULT SOCIAL CARE DIRECT PAYMENT,Redacted Personal Data
Peterborough,http://opendatacommunities.org/id/unitary-authority/peterborough,Peterborough City Council,Adult Social Care,Older People,Supplies and Services,05/08/2015 00:00,756470,984,REVENUE,ADULT SOCIAL CARE DIRECT PAYMENT,Redacted Personal Data
Peterborough,http://opendatacommunities.org/id/unitary-authority/peterborough,Peterborough City Council,Adult Social Care,Older People,Supplies and Services,05/08/2015 00:00,756471,2280.88,REVENUE,ADULT SOCIAL CARE DIRECT PAYMENT,Redacted Personal Data
Peterborough,http://opendatacommunities.org/id/unitary-authority/peterborough,Peterborough City Council,Adult Social Care,Older People,Supplies and Services,05/08/2015 00:00,756472,1167.48,REVENUE,ADULT SOCIAL CARE DIRECT PAYMENT,Redacted Personal Data
Peterborough,http://opendatacommunities.org/id/unitary-authority/peterborough,Peterborough City Council,Adult Social Care,Adult Learning Disabilities,Supplies and Services,05/08/2015 00:00,756474,993.28,REVENUE,ADULT SOCIAL CARE DIRECT PAYMENT,Redacted Personal Data
Peterborough,http://opendatacommunities.org/id/unitary-authority/peterborough,Peterborough City Council,Adult Social Care,Adult Learning Disabilities,Supplies and Services,05/08/2015 00:00,756475,1020.96,REVENUE,ADULT SOCIAL CARE DIRECT PAYMENT,Redacted Personal Data
Peterborough,http://opendatacommunities.org/id/unitary-authority/peterborough,Peterborough City Council,Adult Social Care,Adult Learning Disabilities,Supplies and Services,05/08/2015 00:00,756476,1020.96,REVENUE,ADULT SOCIAL CARE DIRECT PAYMENT,Redacted Personal Data
Peterborough,http://opendatacommunities.org/id/unitary-authority/peterborough,Peterborough City Council,Adult Social Care,Adult Learning Disabilities,Supplies and Services,05/08/2015 00:00,756477,1247.28,REVENUE,ADULT SOCIAL CARE DIRECT PAYMENT,Redacted Personal Data
Peterborough,http://opendatacommunities.org/id/unitary-authority/peterborough,Peterborough City Council,Adult Social Care,Adult Learning Disabilities,Supplies and Services,05/08/2015 00:00,756478,1021.08,REVENUE,ADULT SOCIAL CARE DIRECT PAYMENT,Redacted Personal Data
Peterborough,http://opendatacommunities.org/id/unitary-authority/peterborough,Peterborough City Council,Adult Social Care,Adult Learning Disabilities,Supplies and Services,05/08/2015 00:00,756479,3092,REVENUE,ADULT SOCIAL CARE DIRECT PAYMENT,Redacted Personal Data
Peterborough,http://opendatacommunities.org/id/unitary-authority/peterborough,Peterborough City Council,Adult Social Care,Adult Learning Disabilities,Supplies and Services,05/08/2015 00:00,756480,778.2,REVENUE,ADULT SOCIAL CARE DIRECT PAYMENT,Redacted Personal Data
Peterborough,http://opendatacommunities.org/id/unitary-authority/peterborough,Peterborough City Council,Adult Social Care,Adult Learning Disabilities,Supplies and Services,05/08/2015 00:00,756481,1216.68,REVENUE,ADULT SOCIAL CARE DIRECT PAYMENT,Redacted Personal Data
Peterborough,http://opendatacommunities.org/id/unitary-authority/peterborough,Peterborough City Council,Adult Social Care,Adult Learning Disabilities,Supplies and Services,05/08/2015 00:00,756482,1020.96,REVENUE,ADULT SOCIAL CARE DIRECT PAYMENT,Redacted Personal Data
Peterborough,http://opendatacommunities.org/id/unitary-authority/peterborough,Peterborough City Council,Adult Social Care,Adult Learning Disabilities,Supplies and Services,05/08/2015 00:00,756483,1020.96,REVENUE,ADULT SOCIAL CARE DIRECT PAYMENT,Redacted Personal Data
Peterborough,http://opendatacommunities.org/id/unitary-authority/peterborough,Peterborough City Council,Adult Social Care,Adult Learning Disabilities,Supplies and Services,05/08/2015 00:00,756484,1020.96,REVENUE,ADULT SOCIAL CARE DIRECT PAYMENT,Redacted Personal Data
Peterborough,http://opendatacommunities.org/id/unitary-authority/peterborough,Peterborough City Council,Adult Social Care,Older People,Supplies and Services,05/08/2015 00:00,756485,1020,REVENUE,ADULT SOCIAL CARE DIRECT PAYMENT,Redacted Personal Data
Peterborough,http://opendatacommunities.org/id/unitary-authority/peterborough,Peterborough City Council,Adult Social Care,Older People,More than one Expenses Type,05/08/2015 00:00,756486,3160.71,REVENUE,ADULT SOCIAL CARE DIRECT PAYMENT,Redacted Personal Data
Peterborough,http://opendatacommunities.org/id/unitary-authority/peterborough,Peterborough City Council,More than one Service Area Category,More than one Service Division,More than one Expenses Type,05/08/2015 00:00,756508,480539.39,"Mixture of Capital, Revenue and/or Balance Sheet",THIRD PARTY PAYMENTS - CONTRACT,Enterprise Managed Services Limited
Peterborough,http://opendatacommunities.org/id/unitary-authority/peterborough,Peterborough City Council,More than one Service Area Category,More than one Service Division,Transport,05/08/2015 00:00,756533,1032.3,REVENUE,HIRED TRANSPORT,Redacted Personal Data
Peterborough,http://opendatacommunities.org/id/unitary-authority/peterborough,Peterborough City Council,Children's & Education Services - Children's Social Care,Children Looked After,Transport,05/08/2015 00:00,756534,1184.4,REVENUE,HIRED TRANSPORT,Redacted Personal Data
Peterborough,http://opendatacommunities.org/id/unitary-authority/peterborough,Peterborough City Council,More than one Service Area Category,More than one Service Division,Transport,05/08/2015 00:00,756540,552.6,REVENUE,HIRED TRANSPORT,Redacted Personal Data
Peterborough,http://opendatacommunities.org/id/unitary-authority/peterborough,Peterborough City Council,Children's & Education Services - Education,Other Education and Community Budget,Transport,05/08/2015 00:00,756546,1962,REVENUE,HIRED TRANSPORT,A2B Euro Cars
Peterborough,http://opendatacommunities.org/id/unitary-authority/peterborough,Peterborough City Council,Children's & Education Services - Education,Other Education and Community Budget,Transport,05/08/2015 00:00,756547,3038.4,REVENUE,HIRED TRANSPORT,A2B Euro Cars
Peterborough,http://opendatacommunities.org/id/unitary-authority/peterborough,Peterborough City Council,Children's & Education Services - Education,Other Education and Community Budget,Transport,05/08/2015 00:00,756559,1785.36,REVENUE,HIRED TRANSPORT,Goldstar Cabs Ltd
Peterborough,http://opendatacommunities.org/id/unitary-authority/peterborough,Peterborough City Council,Children's & Education Services - Education,Other Education and Community Budget,Transport,05/08/2015 00:00,756562,1902.72,REVENUE,HIRED TRANSPORT,Goldstar Cabs Ltd
Peterborough,http://opendatacommunities.org/id/unitary-authority/peterborough,Peterborough City Council,Children's & Education Services - Education,Other Education and Community Budget,Transport,05/08/2015 00:00,756563,1674,REVENUE,HIRED TRANSPORT,Goldstar Cabs Ltd
Peterborough,http://opendatacommunities.org/id/unitary-authority/peterborough,Peterborough City Council,Support Services,Support Services,Premises,05/08/2015 00:00,756616,759.76,REVENUE,INSURANCE PREMIUMS,Zurich Insurance Company
Peterborough,http://opendatacommunities.org/id/unitary-authority/peterborough,Peterborough City Council,Highways and Transport Services,Traffic management & Road Safety,Supplies and Services,05/08/2015 00:00,756627,881.53,REVENUE,TELEPHONES,British Telecom PLC
Peterborough,http://opendatacommunities.org/id/unitary-authority/peterborough,Peterborough City Council,Adult Social Care,Older People,Supplies and Services,05/08/2015 00:00,756637,6656.6,REVENUE,RESIDENTIAL CARE,PJ Care Ltd
Peterborough,http://opendatacommunities.org/id/unitary-authority/peterborough,Peterborough City Council,Adult Social Care,Older People,Supplies and Services,05/08/2015 00:00,756641,4054.4,REVENUE,HOME CARE,Voyage
Peterborough,http://opendatacommunities.org/id/unitary-authority/peterborough,Peterborough City Council,Public Health,Substance Misuse,Third Party Payments,05/08/2015 00:00,756642,1621,REVENUE,THIRD PARTY PAYMENTS - CONTRACT,ASDA PHARMACY PETERBOROUGH
Peterborough,http://opendatacommunities.org/id/unitary-authority/peterborough,Peterborough City Council,Adult Social Care,Older People,Supplies and Services,05/08/2015 00:00,756643,5110.4,REVENUE,HOME CARE,Voyage
Peterborough,http://opendatacommunities.org/id/unitary-authority/peterborough,Peterborough City Council,Adult Social Care,Older People,Supplies and Services,05/08/2015 00:00,756644,4318.4,REVENUE,HOME CARE,Voyage
Peterborough,http://opendatacommunities.org/id/unitary-authority/peterborough,Peterborough City Council,Adult Social Care,Older People,Supplies and Services,05/08/2015 00:00,756646,3368,REVENUE,HOME CARE,Voyage
Peterborough,http://opendatacommunities.org/id/unitary-authority/peterborough,Peterborough City Council,Adult Social Care,Older People,Supplies and Services,05/08/2015 00:00,756647,3632,REVENUE,HOME CARE,Voyage
Peterborough,http://opendatacommunities.org/id/unitary-authority/peterborough,Peterborough City Council,Adult Social Care,Older People,Supplies and Services,05/08/2015 00:00,756648,4265.6,REVENUE,HOME CARE,Voyage
Peterborough,http://opendatacommunities.org/id/unitary-authority/peterborough,Peterborough City Council,Adult Social Care,Older People,Supplies and Services,05/08/2015 00:00,756650,4054.4,REVENUE,HOME CARE,Voyage
Peterborough,http://opendatacommunities.org/id/unitary-authority/peterborough,Peterborough City Council,Adult Social Care,Older People,Supplies and Services,05/08/2015 00:00,756651,3632,REVENUE,HOME CARE,Voyage
Peterborough,http://opendatacommunities.org/id/unitary-authority/peterborough,Peterborough City Council,Adult Social Care,Older People,Supplies and Services,05/08/2015 00:00,756652,1392.27,REVENUE,RESIDENTIAL CARE,Stonehaven (Healthcare) Ltd TA The Manor Exminster
Peterborough,http://opendatacommunities.org/id/unitary-authority/peterborough,Peterborough City Council,Children's & Education Services - Education,Other Education and Community Budget,Transport,05/08/2015 00:00,756681,739.68,REVENUE,HIRED TRANSPORT,Redacted Personal Data
Peterborough,http://opendatacommunities.org/id/unitary-authority/peterborough,Peterborough City Council,Adult Social Care,Older People,Supplies and Services,05/08/2015 00:00,756684,1218.24,REVENUE,RESIDENTIAL CARE,Stonehaven (Healthcare) Ltd TA The Manor Exminster
Peterborough,http://opendatacommunities.org/id/unitary-authority/peterborough,Peterborough City Council,Adult Social Care,Older People,Supplies and Services,05/08/2015 00:00,756706,1855.71,REVENUE,RESIDENTIAL CARE,BROADLEIGH NURSING HOME
Peterborough,http://opendatacommunities.org/id/unitary-authority/peterborough,Peterborough City Council,Adult Social Care,Older People,Supplies and Services,05/08/2015 00:00,756707,1917.57,REVENUE,RESIDENTIAL CARE,BROADLEIGH NURSING HOME
Peterborough,http://opendatacommunities.org/id/unitary-authority/peterborough,Peterborough City Council,More than one Service Area Category,More than one Service Division,Balance Sheet,05/08/2015 00:00,756765,749809.59,Balance Sheet,PENSIONS,Teachers Pensions
Peterborough,http://opendatacommunities.org/id/unitary-authority/peterborough,Peterborough City Council,Adult Social Care,Social Care Activities,Employees,05/08/2015 00:00,756779,806.4,REVENUE,EXTERNAL TEMPORARY STAFF,Medicare First
Peterborough,http://opendatacommunities.org/id/unitary-authority/peterborough,Peterborough City Council,Adult Social Care,Social Care Activities,Employees,05/08/2015 00:00,756780,806.4,REVENUE,EXTERNAL TEMPORARY STAFF,Medicare First
Peterborough,http://opendatacommunities.org/id/unitary-authority/peterborough,Peterborough City Council,Adult Social Care,Social Care Activities,More than one Expenses Type,05/08/2015 00:00,756812,4830.85,REVENUE,Numerous,Fieldwork Admin Team (IMPREST)
Peterborough,http://opendatacommunities.org/id/unitary-authority/peterborough,Peterborough City Council,More than one Service Area Category,More than one Service Division,More than one Expenses Type,05/08/2015 00:00,756832,2837.38,REVENUE,Numerous,Peterborough City Council
Peterborough,http://opendatacommunities.org/id/unitary-authority/peterborough,Peterborough City Council,Children's & Education Services - Children's Social Care,Family Support Services,More than one Expenses Type,05/08/2015 00:00,756850,1213.9,REVENUE,Numerous,Cherry Lodge (Imprest)
Peterborough,http://opendatacommunities.org/id/unitary-authority/peterborough,Peterborough City Council,More than one Service Area Category,More than one Service Division,More than one Expenses Type,05/08/2015 00:00,756852,4334.33,REVENUE,Numerous,Coroners Service (Imprest)
Peterborough,http://opendatacommunities.org/id/unitary-authority/peterborough,Peterborough City Council,Support Services,Support Services,Premises,07/08/2015 00:00,654679,1899,REVENUE,EQUIPMENT PURCHASE,Straight PLC.
